Ref No,Fund Type,Dept,Cost Centre Description    ,Description    ,Creditor Name    ,GL Code Net Amount,Payment date        
2,Revenue,CAHD,A & CL - Employability 17/18,Examination Fees,NOCN,500.00, 01-Feb-2018
3,Revenue,CAHD,Internship Programme,Consultants Fees,Individual,705.00, 06-Feb-2018
4,Revenue,CAHD,EARLY YEARS DISABILITY  ACCES FUND,Preventative Assistance,Bright Sparks,1230.00, 09-Feb-2018
5,Revenue,CAHD,EARLY YEARS DISABILITY  ACCES FUND,Preventative Assistance,Christchurch Pre School,1230.00, 09-Feb-2018
6,Revenue,CAHD,EARLY YEARS DISABILITY  ACCES FUND,Preventative Assistance,North Common Pre-School,1230.00, 09-Feb-2018
7,Revenue,CAHD,EARLY YEARS DISABILITY  ACCES FUND,Preventative Assistance,Page Park Pre-School,615.00, 09-Feb-2018
8,Revenue,CAHD,EARLY YEARS DISABILITY  ACCES FUND,Preventative Assistance,Great Expectations Nursery,615.00, 13-Feb-2018
9,Revenue,CAHD,EARLY YEARS DISABILITY  ACCES FUND,Preventative Assistance,L A Childcare,615.00, 13-Feb-2018
10,Revenue,CAHD,Early Years Inclusion Fund,Other Public Bodies,Pandamonium Limited,1400.00, 13-Feb-2018
11,Revenue,CAHD,Grange School Holding Account,Fees - General,TLT LLP,15400.00, 13-Feb-2018
12,Revenue,CAHD,CSC - Ofsted Work,Agency Staff (Admin/Support Staff) Pay,Individual,1500.00, 14-Feb-2018
13,Revenue,CAHD,EARLY YEARS DISABILITY  ACCES FUND,Preventative Assistance,Pandamonium Limited,615.00, 15-Feb-2018
14,Revenue,CAHD,Early Years Inclusion Fund,Other Public Bodies,Severn Beach Pre-School,1000.00, 15-Feb-2018
15,Revenue,CAHD,EARLY YEARS DISABILITY  ACCES FUND,Preventative Assistance,Woodpeckers Nursery,615.00, 15-Feb-2018
16,Revenue,CAHD,Early Years Inclusion Fund,Other Public Bodies,Sodbury Vale Day Nursery,1000.00, 16-Feb-2018
17,Revenue,CAHD,CSC - Ofsted Work,Agency Staff (Admin/Support Staff) Pay,Individual,8400.10, 20-Feb-2018
18,Revenue,CAHD,Education Psychology SEND Strategy Work,Grants to Voluntary Bodies,South Gloucestershire Parents and Carers,5000.00, 21-Feb-2018
19,Revenue,CAHD,Early Years Inclusion Fund,Other Public Bodies,Little Gems PreSchool Limited,650.00, 23-Feb-2018
20,Revenue,CAHD,Early Years Inclusion Fund,Other Public Bodies,Little Gems PreSchool Limited,650.00, 23-Feb-2018
21,Revenue,CAHD,Early Years Inclusion Fund,Other Public Bodies,Muddy Puddles Day Nursery and Pre-School,1000.00, 23-Feb-2018
22,Revenue,CAHD,Learning Difficulties,Premises Hire,Circadian Trust,583.20, 01-Feb-2018
23,Revenue,CAHD,DAT Treatment,Other Small Contracts,Boots UK Ltd,825.00, 02-Feb-2018
24,Revenue,CAHD,DAT Treatment,Other Small Contracts,Boots UK Ltd,1050.00, 02-Feb-2018
25,Revenue,CAHD,DAT Treatment,Other Small Contracts,Ideal Pharmacy Ltd,825.00, 02-Feb-2018
26,Revenue,CAHD,DAT Treatment,Other Small Contracts,Lloyds Pharmacy Limited,675.00, 02-Feb-2018
27,Revenue,CAHD,DAT Treatment,Other Small Contracts,M J Williams Ltd T/ A Abbotswood Pharmacy,525.00, 02-Feb-2018
28,Revenue,CAHD,DAT Treatment,Other Small Contracts,Shaunaks Limited,1575.00, 02-Feb-2018
29,Revenue,CAHD,DAT Treatment,Other Small Contracts,Shaunaks Ltd,525.00, 02-Feb-2018
30,Revenue,CAHD,Tobacco Control,Other Small Contracts,Almondsbury Surgery,851.00, 05-Feb-2018
31,Revenue,CAHD,Tobacco Control,Other Small Contracts,Bradley Stoke Surgery,4301.00, 05-Feb-2018
32,Revenue,CAHD,Tobacco Control,Other Small Contracts,Christchurch Family Medical  Centre,2553.00, 05-Feb-2018
33,Revenue,CAHD,Tobacco Control,Other Small Contracts,Close Farm Surgery,1771.00, 05-Feb-2018
34,Revenue,CAHD,Tobacco Control,Other Small Contracts,Coniston Medical Practice,805.00, 05-Feb-2018
35,Revenue,CAHD,Tobacco Control,Other Small Contracts,Courtside Surgery,2254.00, 05-Feb-2018
36,Revenue,CAHD,Tobacco Control,Other Small Contracts,Dr W J Foubister & Partners,552.00, 05-Feb-2018
37,Revenue,CAHD,Tobacco Control,Other Small Contracts,Drs Male Thompson & LewisDO NOT USE,1012.00, 05-Feb-2018
38,Revenue,CAHD,Tobacco Control,Other Small Contracts,Frome Valley Medical Centre,3634.00, 05-Feb-2018
39,Revenue,CAHD,Tobacco Control,Other Small Contracts,Hanham Health,4163.00, 05-Feb-2018
40,Revenue,CAHD,Tobacco Control,Other Small Contracts,Kennedy Way Surgery,598.00, 05-Feb-2018
41,Revenue,CAHD,Tobacco Control,Other Small Contracts,Kingswood Health Centre,1817.00, 05-Feb-2018
42,Revenue,CAHD,Tobacco Control,Other Small Contracts,Montpelier Health Pilning Surgery,851.00, 05-Feb-2018
43,Revenue,CAHD,Tobacco Control,Other Small Contracts,St Mary Street Surgery,552.00, 05-Feb-2018
44,Revenue,CAHD,Tobacco Control,Other Small Contracts,Stoke Gifford Medical Centre,736.00, 05-Feb-2018
45,Revenue,CAHD,Tobacco Control,Other Small Contracts,The Orchard Medical Centre,1495.00, 05-Feb-2018
46,Revenue,CAHD,Tobacco Control,Other Small Contracts,The Willow Surgery,1633.00, 05-Feb-2018
47,Revenue,CAHD,Tobacco Control,Other Small Contracts,Three Shires Medical Practice,1380.00, 05-Feb-2018
48,Revenue,CAHD,Tobacco Control,Other Small Contracts,Wellington Road Family Practice L81642,552.00,[] 05-Feb-2018
49,Revenue,CAHD,Tobacco Control,Other Small Contracts,West Walk Surgery,1449.00, 05-Feb-2018
50,Revenue,CAHD,Leadership and Business Support,Other Small Contracts,NHS South Gloucestershire CCG,125410.00, 07-Feb-2018
51,Revenue,CAHD,Children & Young People�s Health,Other Small Contracts,Sirona Care & Health CIC,229550.00, 07-Feb-2018
52,Revenue,CAHD,Mental Health and Emotional Wellbeing,Project Funding,Merlin Housing Society (Service Charges),18200.00, 08-Feb-2018
53,Revenue,CAHD,"Strategy, Advice and Public Protection",Other Small Contracts,Ashtead Technology,2747.00, 12-Feb-2018
54,Revenue,CAHD,Sexual Health,Other Small Contracts,Bradley Stoke Surgery,966.00, 13-Feb-2018
55,Revenue,CAHD,Sexual Health,Other Small Contracts,Bradley Stoke Surgery,2312.48, 13-Feb-2018
56,Revenue,CAHD,Sexual Health,Other Small Contracts,Close Farm Surgery,563.50, 13-Feb-2018
57,Revenue,CAHD,Sexual Health,Other Small Contracts,Concord Medical Centre,1851.50, 13-Feb-2018
58,Revenue,CAHD,Sexual Health,Other Small Contracts,Concord Medical Centre,1930.52, 13-Feb-2018
59,Revenue,CAHD,Sexual Health,Other Small Contracts,Coniston Medical Practice,966.00, 13-Feb-2018
60,Revenue,CAHD,Sexual Health,Other Small Contracts,Coniston Medical Practice,1847.94, 13-Feb-2018
61,Revenue,CAHD,Sexual Health,Other Small Contracts,Courtside Surgery,1851.50, 13-Feb-2018
62,Revenue,CAHD,Sexual Health,Other Small Contracts,Courtside Surgery,2322.82, 13-Feb-2018
63,Revenue,CAHD,Public Health Project Funding - OffSH,Consultants Fees,D Harvey Consulting Limited,1252.80, 13-Feb-2018
64,Revenue,CAHD,Public Health Project Funding - OffSH,Consultants Fees,D Harvey Consulting Limited,700.00, 13-Feb-2018
65,Revenue,CAHD,Sexual Health,Other Small Contracts,Emersons Green Medical Centre,805.00, 13-Feb-2018
66,Revenue,CAHD,Sexual Health,Other Small Contracts,Emersons Green Medical Centre,1280.12, 13-Feb-2018
67,Revenue,CAHD,Sexual Health,Other Small Contracts,Frome Valley Medical Centre,1368.50, 13-Feb-2018
68,Revenue,CAHD,Sexual Health,Other Small Contracts,Hanham Health,1449.00, 13-Feb-2018
69,Revenue,CAHD,Sexual Health,Other Small Contracts,Hanham Health,1951.18, 13-Feb-2018
70,Revenue,CAHD,Sexual Health,Other Small Contracts,Kennedy Way Surgery,724.50, 13-Feb-2018
71,Revenue,CAHD,Sexual Health,Other Small Contracts,Kennedy Way Surgery,898.16, 13-Feb-2018
72,Revenue,CAHD,Sexual Health,Other Small Contracts,Kingswood Health Centre,805.00, 13-Feb-2018
73,Revenue,CAHD,Sexual Health,Other Small Contracts,Kingswood Health Centre,2281.52, 13-Feb-2018
74,Revenue,CAHD,Sexual Health,Other Small Contracts,Montpelier Health Pilning Surgery,505.86, 13-Feb-2018
75,Revenue,CAHD,Public Health Project Funding - OffSH,Consultants Fees,Ruth Woolley Ltd,1431.76, 13-Feb-2018
76,Revenue,CAHD,Sexual Health,Other Small Contracts,Stoke Gifford Medical Centre,1529.50, 13-Feb-2018
77,Revenue,CAHD,Sexual Health,Other Small Contracts,Stoke Gifford Medical Centre,1517.56, 13-Feb-2018
78,Revenue,CAHD,Sexual Health,Other Small Contracts,The Orchard Medical Centre,805.00, 13-Feb-2018
79,Revenue,CAHD,Sexual Health,Other Small Contracts,The Orchard Medical Centre,1228.50, 13-Feb-2018
80,Revenue,CAHD,Sexual Health,Other Small Contracts,The Willow Surgery,1207.50, 13-Feb-2018
81,Revenue,CAHD,Sexual Health,Other Small Contracts,The Willow Surgery,1125.28, 13-Feb-2018
82,Revenue,CAHD,Sexual Health,Other Small Contracts,Three Shires Medical Practice,1449.00, 13-Feb-2018
83,Revenue,CAHD,Sexual Health,Other Small Contracts,West Walk Surgery,1690.50, 13-Feb-2018
84,Revenue,CAHD,Sexual Health,Other Small Contracts,West Walk Surgery,588.44, 13-Feb-2018
85,Revenue,CAHD,DAT Treatment,Rent,Ashville Asset Management Limited,417.67, 15-Feb-2018
86,Revenue,CAHD,Public Health Project Funding - OffSH,Consultants Fees,D Harvey Consulting Limited,1624.90, 16-Feb-2018
87,Revenue,CAHD,Public Health Project Funding - OffSH,Consultants Fees,D Harvey Consulting Limited,700.00, 16-Feb-2018
88,Revenue,CAHD,Public Health Project Funding - OffSH,Consultants Fees,D Harvey Consulting Limited,1083.30, 16-Feb-2018
89,Revenue,CAHD,Tobacco Control,Other Supplies & Services,Intermedical,2370.00, 16-Feb-2018
90,Revenue,CAHD,Children & Young People�s Health,Other Small Contracts,NHS Bristol CCG,271828.08, 16-Feb-2018
91,Revenue,CAHD,Health Inequalities,Other Small Contracts,Age Concern South Gloucestershire,24000.00, 19-Feb-2018
92,Revenue,CAHD,Mental Health and Emotional Wellbeing,Project Funding,The Diversity Trust,2000.00, 21-Feb-2018
93,Revenue,CAHD,Sexual Health,Other Small Contracts,Chelsea and Westminster Hospital,508.53, 22-Feb-2018
94,Revenue,CAHD,Leadership and Business Support,Operational Staff Pay,Gloucestershire Hospitals NHSFT,4258.28, 22-Feb-2018
95,Revenue,CAHD,Mental Health and Emotional Wellbeing,Other Supplies & Services,Wiltshire County Council,500.00, 23-Feb-2018
96,Revenue,CAHD,Children & Young People�s Health,Educational Materials,Bristol City Council,823.50, 27-Feb-2018
97,Revenue,CAHD,CSC - Agency Fostering,Foster Parent Allowances,Capstone Foster Care (South West) Limited,3634.62, 01-Feb-2018
98,Revenue,CAHD,CSC - Agency Fostering,Foster Parent Allowances,Capstone Foster Care (South West) Limited,3498.66, 01-Feb-2018
99,Revenue,CAHD,CSC - Agency Fostering,Foster Parent Allowances,Capstone Foster Care (South West) Limited,3498.66, 01-Feb-2018
100,Revenue,CAHD,CSC - Agency Fostering,Foster Parent Allowances,Capstone Foster Care (South West) Limited,3634.62, 01-Feb-2018
101,Revenue,CAHD,CAHC - Complaints & Advocacy Service,Complaints External Expenses,Individual,573.50, 01-Feb-2018
102,Revenue,CAHD,CSC - Legal Fees,Legal Fees,Individual,2550.00, 01-Feb-2018
103,Revenue,CAHD,CSC - Vinney Green Secure Unit,Gas,West Mercia Energy,2233.59, 01-Feb-2018
104,Revenue,CAHD,CSC - Vinney Green Secure Unit,Gas,West Mercia Energy,2781.66, 01-Feb-2018
105,Revenue,CAHD,CSC - Adoption Support Fund,Post Adoption,Individual,1019.50, 02-Feb-2018
106,Revenue,CAHD,Pensions - Non DSG,Annual Pension,Bath & North East Somerset Council,109538.23, 02-Feb-2018
107,Revenue,CAHD,CSC - Vinney Green Secure Unit,R & M by Departments,Bristol Electrical Wholesale Limited,1515.80, 02-Feb-2018
108,Revenue,CAHD,CSC - Vinney Green Secure Unit,R & M by Departments,Bristol Electrical Wholesale Limited,500.65, 02-Feb-2018
109,Revenue,CAHD,CSC - Care Leavers Support Costs,Independent Living,Bromford Housing Association,2989.92, 02-Feb-2018
110,Revenue,CAHD,Special Needs - Special Schools HTST,Client Transport,Individual,766.26, 02-Feb-2018
111,Revenue,CAHD,Hospital Tuition,Other Private Contractors,Huntercombe Hospital Maidenhead,1350.00, 02-Feb-2018
112,Revenue,CAHD,CSC - Section 17 Long Term Support,"Provisions (Food, etc)",Individual,650.00, 02-Feb-2018
113,Revenue,CAHD,CSC - Care Leavers Independent Living,Adults - Family Support,Key2 Futures Limited,2967.01, 02-Feb-2018
114,Revenue,CAHD,CSC - LAC Placements,Client Transport,Individual,552.60, 02-Feb-2018
115,Revenue,CAHD,CSC - Age Related Allowances,Children - Family Support,Individual,1288.00, 02-Feb-2018
116,Revenue,CAHD,CSC - Professional Fees Foster Carers,Children - Family Support,Individual,1264.00, 02-Feb-2018
117,Revenue,CAHD,CSC - LAC Placements,Client Transport,Individual,635.50, 02-Feb-2018
118,Revenue,CAHD,CSC - Purchase/Sale of Placements,Other Third Party Costs,SFCS,3583.25, 02-Feb-2018
119,Revenue,CAHD,CSC - Regional Adoption Agency Project,Software Support & Maintenance,Social Care Network Solutions Limited,750.00, 02-Feb-2018
120,Revenue,CAHD,CSC - Short Breaks,Grants to Voluntary Bodies,The Guide Dogs for the Blind Association,1060.00, 02-Feb-2018
121,Revenue,CAHD,Independent Special Placements - Pre 16,Other Private Contractors,The Sheiling School Thornbury General Account,26590.00, 02-Feb-2018
122,Revenue,CAHD,CSC - Adoption Support Fund,Post Adoption,Individual,645.00, 05-Feb-2018
123,Revenue,CAHD,CSC - Allowances,Post Adoption,Individual,636.00, 05-Feb-2018
124,Revenue,CAHD,CSC - Care Leavers Independent Living,Independent Living,Premier Care Management Limited,16545.00, 05-Feb-2018
125,Revenue,CAHD,Post 16 High Needs Placements,Other Private Contractors,Sports Heroes Limited,3185.00, 05-Feb-2018
126,Revenue,CAHD,CSC - Legal Fees,Legal Fees,Individual,650.00, 06-Feb-2018
127,Revenue,CAHD,Court Case & Counsel's Advice Costs,Legal Fees,Individual,5000.00, 06-Feb-2018
128,Revenue,CAHD,CSC - Agency Fostering,Foster Parent Allowances,Amicus Foster Care Ltd,4879.00, 07-Feb-2018
129,Revenue,CAHD,CSC - Care Leavers Independent Living,Adults - Family Support,Key2 Futures Limited,2414.28, 07-Feb-2018
130,Revenue,CAHD,CSC - Care Leavers Independent Living,Adults - Family Support,Key2 Futures Limited,1254.40, 07-Feb-2018
131,Revenue,CAHD,CSC - Care Leavers Independent Living,Adults - Family Support,Key2 Futures Limited,1829.62, 07-Feb-2018
132,Revenue,CAHD,CSC - Care Leavers Independent Living,Adults - Family Support,Key2 Futures Limited,1829.62, 07-Feb-2018
133,Revenue,CAHD,Post 16 High Needs Placements,Other Private Contractors,Natureworks Training Community Interest,910.00, 07-Feb-2018
134,Revenue,CAHD,CSC - Agency Fostering,Foster Parent Allowances,Regional Foster Placements South West Ltd,2018.52, 07-Feb-2018
135,Revenue,CAHD,CSC - Residential Placements,Permanent Residential,Young Foundations Limited,14485.71, 07-Feb-2018
136,Revenue,CAHD,CSC - Agency Fostering,Foster Parent Allowances,Action for Children,12375.00, 08-Feb-2018
137,Revenue,CAHD,CSC - Agency Fostering,Foster Parent Allowances,Action for Children,6975.00, 08-Feb-2018
138,Revenue,CAHD,CSC - Agency Fostering,Foster Parent Allowances,Action for Children,6975.00, 08-Feb-2018
139,Revenue,CAHD,CSC - Safeguarding Board,Training Expenses,Individual,900.00, 08-Feb-2018
140,Revenue,CAHD,Sensory Support Joint Arrangement,Other L.A.'s - General,Bristol City Council,115319.00, 08-Feb-2018
141,Revenue,CAHD,CSC - Vinney Green Secure Unit,Support Services Recharges (above line),DGF Psychology Limited,750.00, 08-Feb-2018
142,Revenue,CAHD,Virtual School for Looked After Children,Consultants Fees,Individual,2400.00, 08-Feb-2018
143,Revenue,CAHD,CSC - Legal Fees,Legal Fees,Individual,500.00, 08-Feb-2018
144,Revenue,CAHD,CSC - Legal Fees,Legal Fees,Individual,500.00, 08-Feb-2018
145,Revenue,CAHD,CSC - Child Protection Advocacy,Grants to Voluntary Bodies,Signis Ltd,3750.00, 08-Feb-2018
146,Revenue,CAHD,CSC - Independent Visitors Scheme,Grants to Voluntary Bodies,Signis Ltd,9000.00, 08-Feb-2018
147,Revenue,CAHD,"Education, Learning and Skills",Agency Staff (Admin/Support Staff) Pay,Baltimore Consulting Group,2070.00, 09-Feb-2018
148,Revenue,CAHD,0-25 Management Team,Educational Materials,Kent County Council,535.60, 09-Feb-2018
149,Revenue,CAHD,CSC - Professional Fees Foster Carers,Respite Care,Individual,617.71, 09-Feb-2018
150,Revenue,CAHD,Post 16 High Needs Placements,Other Private Contractors,Ruskinmill Trust Ltd,3202.00, 09-Feb-2018
151,Revenue,CAHD,CSC - Adoption Support Fund,Post Adoption,SHOT Therapy Ltd,540.00, 09-Feb-2018
152,Revenue,CAHD,CSC - Adoption Support Fund,Post Adoption,Therapy Space Bristol Limited,800.00, 09-Feb-2018
153,Revenue,CAHD,CSC - Regional Adoption Agency Project,Agency Staff (Admin/Support Staff) Pay,TMP (UK) Limited,1253.00, 09-Feb-2018
154,Revenue,CAHD,CSC - OT Equipment - Children,Daily Living Equipment,TVM Cheltenham Limited,2060.00, 09-Feb-2018
155,Revenue,CAHD,CSC - Residential Placements,Permanent Residential,Durham County Council,25060.00, 12-Feb-2018
156,Revenue,CAHD,CSC - Care Leavers Independent Living,Adults - Family Support,Premier Care Management Limited,938.30, 12-Feb-2018
157,Revenue,CAHD,Post 16 LDD Transport to college,Contract Hire & Operational Leases,Ruskin Mill College,8855.25, 12-Feb-2018
158,Revenue,CAHD,Youth Centres North Locality,Other Premises Costs,Little Stoke YC - Stoke Gifford Parish Council,700.00, 13-Feb-2018
159,Revenue,CAHD,Independent Special Placements - Pre 16,Other Private Contractors,Treloar Trust,35790.56, 13-Feb-2018
160,Revenue,CAHD,CSC - Vinney Green Secure Unit,Service Contracts (Premises),Allday Time Systems Limited,841.25, 14-Feb-2018
161,Revenue,CAHD,CSC - Safeguarding Board,Training Expenses,Individual,820.00, 14-Feb-2018
162,Revenue,CAHD,CSC - Vinney Green Secure Unit,"Provisions (Food, etc)",Charles Saunders Limited,526.01, 14-Feb-2018
163,Revenue,CAHD,CSC - Vinney Green Secure Unit,"Provisions (Food, etc)",Charles Saunders Limited,568.77, 14-Feb-2018
164,Revenue,CAHD,"Education, Learning and Skills",Catering,Cleve Rugby Football Club Limited,577.50, 14-Feb-2018
165,Revenue,CAHD,CSC - ASYE,Training Expenses,Individual,500.00, 14-Feb-2018
166,Revenue,CAHD,CSC - ASYE,Training Expenses,Individual,500.00, 14-Feb-2018
167,Revenue,CAHD,0-25 Management Team,Agency Staff (Admin/Support Staff) Pay,Permanent Futures Ltd,2044.00, 14-Feb-2018
168,Revenue,CAHD,0-25 Management Team,Agency Staff (Admin/Support Staff) Pay,Permanent Futures Ltd,1635.20, 14-Feb-2018
169,Revenue,CAHD,CSC - Care Leavers Independent Living,Independent Living,S G Y H,1893.50, 14-Feb-2018
170,Revenue,CAHD,Independent Special Placements - Pre 16,Other Private Contractors,Silverhill School,1785.98,[] 14-Feb-2018
171,Revenue,CAHD,Independent Special Placements - Pre 16,Other Private Contractors,Silverhill School,1562.73, 14-Feb-2018
172,Revenue,CAHD,Independent Special Placements - Pre 16,Other Private Contractors,Silverhill School,595.33, 14-Feb-2018
173,Revenue,CAHD,Independent Special Placements - Pre 16,Other Private Contractors,Silverhill School,1190.65, 14-Feb-2018
174,Revenue,CAHD,CSC - Safeguarding Board,Other Supplies & Services,Individual,1200.00, 14-Feb-2018
175,Revenue,CAHD,CSC - Safeguarding Board,Other Supplies & Services,Individual,1150.00, 14-Feb-2018
176,Revenue,CAHD,CSC - Agency Fostering,Foster Parent Allowances,Action for Children,3352.34, 15-Feb-2018
177,Revenue,CAHD,CSC - YOT Pooled Budget,Software Support & Maintenance,CACI Limited,7612.52, 15-Feb-2018
178,Revenue,CAHD,Training Budget - Children`s Social Serv,Training Expenses,Child Trauma Intervention Services,4250.00, 15-Feb-2018
179,Revenue,CAHD,CSC - Care Leavers Independent Living,Adults - Family Support,Next Step Care Management Limited,2103.57, 15-Feb-2018
180,Revenue,CAHD,Post 16 High Needs Placements,Other Private Contractors,Ruskinmill Trust Ltd,26666.66, 15-Feb-2018
181,Revenue,CAHD,CSC - Agency Fostering,Foster Parent Allowances,The Foster Care Co-operative,3393.23, 15-Feb-2018
182,Revenue,CAHD,CSC - Agency Fostering,Foster Parent Allowances,The Foster Care Co-operative,3393.23, 15-Feb-2018
183,Revenue,CAHD,Independent Special Placements - Pre 16,Other Private Contractors,Aurora Care & Education,5745.54, 16-Feb-2018
184,Revenue,CAHD,CSC - Legal Assessments,Preventative Assistance,Barcan+Kirby LLP,1025.00, 16-Feb-2018
185,Revenue,CAHD,CSC - Special Guardianship Orders,Client Transport,Individual,530.84, 16-Feb-2018
186,Revenue,CAHD,CSC - Agency Fostering,Foster Parent Allowances,Five Rivers Child Care Limited,4069.86, 16-Feb-2018
187,Revenue,CAHD,CSC - Legal Fees,Legal Fees,Individual,590.00, 16-Feb-2018
188,Revenue,CAHD,CSC - LAC Placements,Client Transport,Individual,526.22, 16-Feb-2018
189,Revenue,CAHD,Education Psychology,Educational Supplies & Equipment,Pearson Education Limited,9403.75, 16-Feb-2018
190,Revenue,CAHD,CSC - Vinney Green Secure Unit,Telephones,South West Communications Group,422.92, 16-Feb-2018
191,Revenue,CAHD,CSC - Vinney Green Secure Unit,Telephones for Clients,South West Communications Group,567.83, 16-Feb-2018
192,Revenue,CAHD,CSC - Adoption Support Fund,Post Adoption,Three Ways Brighter Futures,630.00, 16-Feb-2018
193,Revenue,CAHD,CSC - Adoption Support Fund,Post Adoption,Three Ways Brighter Futures,1295.00, 16-Feb-2018
194,Revenue,CAHD,Post 16 High Needs Placements,Other Private Contractors,WESC Foundation,37247.49, 16-Feb-2018
195,Revenue,CAHD,"Education, Learning and Skills",Catering,Bawa Healthcare & Leisure,348.33, 19-Feb-2018
196,Revenue,CAHD,"Education, Learning and Skills",Premises Hire,Bawa Healthcare & Leisure,310.00, 19-Feb-2018
197,Revenue,CAHD,CSC - Residential Placements,Permanent Residential,Branas ISAF Ltd,21035.71, 19-Feb-2018
198,Revenue,CAHD,CSC - Residential Placements,Permanent Residential,Branas ISAF Ltd,31500.00, 19-Feb-2018
199,Revenue,CAHD,0-25 Management Team,Agency Staff (Admin/Support Staff) Pay,Permanent Futures Ltd,2044.00, 19-Feb-2018
200,Revenue,CAHD,CSC - Residential Placements,Permanent Residential,Individual,17492.86, 19-Feb-2018
201,Revenue,CAHD,CSC - Care Leavers Independent Living,Independent Living,Premier Care Management Limited,5515.00, 19-Feb-2018
202,Revenue,CAHD,CSC - OT Equipment - Children,Daily Living Equipment,Safespaces (Cornholme) Ltd,450.00, 19-Feb-2018
203,Revenue,CAHD,CSC - Asylum Seekers - Unaccompanied,Foster Parent Allowances,Sunbeam Fostering Agency Limited,3299.29, 19-Feb-2018
204,Revenue,CAHD,CSC - Section 17 0-25,Preventative Assistance,Angel Care Support Limited,2964.00, 20-Feb-2018
205,Revenue,CAHD,Special Needs - Special Schools HTST,Client Transport,Individual,529.20, 20-Feb-2018
206,Revenue,CAHD,CSC - Agency Fostering,Foster Parent Allowances,Regional Foster Placements South West Ltd,3476.34, 20-Feb-2018
207,Revenue,CAHD,CSC - Vinney Green Secure Unit,Training Expenses,South West Coaching,840.00, 20-Feb-2018
208,Revenue,CAHD,CSC - Vinney Green Secure Unit,Other Consumable Materials,The Consortium,1107.07, 20-Feb-2018
209,Revenue,CAHD,Schools Block Growth Contingency,Other Public Bodies,Wellsway MAT T/A The Meadows Primary School,22551.70, 20-Feb-2018
210,Revenue,CAHD,CSC - Section 17 0-25,Preventative Assistance,Angel Care Support Limited,3952.00, 21-Feb-2018
211,Revenue,CAHD,0-25 Management Team,Interpreting & Translation,K International Plc,510.00, 21-Feb-2018
212,Revenue,CAHD,CSC - LAC Placements,Client Transport,RSP Limited,57.50, 21-Feb-2018
213,Revenue,CAHD,CSC - LAC Placements,Client Transport,RSP Limited,493.10, 21-Feb-2018
214,Revenue,CAHD,CSC - Quality Review Unit,Client Transport,RSP Limited,157.60, 21-Feb-2018
215,Revenue,CAHD,CSC - LAC Placements,Client Transport,RSP Limited,1325.50, 21-Feb-2018
216,Revenue,CAHD,CSC - LAC Placements,Client Transport,RSP Limited,676.10, 21-Feb-2018
217,Revenue,CAHD,CSC - LAC Placements,Client Transport,RSP Limited,95.80, 21-Feb-2018
218,Revenue,CAHD,Post 16 High Needs Placements,Other Private Contractors,South Gloucestershire and Stroud College,44741.48, 21-Feb-2018
219,Revenue,CAHD,Post 16 High Needs Placements,Other Private Contractors,South Gloucestershire and Stroud College,44741.48, 21-Feb-2018
220,Revenue,CAHD,Post 16 High Needs Placements,Other Private Contractors,South Gloucestershire and Stroud College,27576.53, 21-Feb-2018
221,Revenue,CAHD,Post 16 High Needs Placements,Other Private Contractors,South Gloucestershire and Stroud College,27137.11, 21-Feb-2018
222,Revenue,CAHD,Post 16 High Needs Placements,Other Private Contractors,South Gloucestershire and Stroud College,44741.48, 21-Feb-2018
223,Revenue,CAHD,CSC - Residential Placements,Permanent Residential,Branas ISAF Ltd,19928.57, 22-Feb-2018
224,Revenue,CAHD,CSC - Adoption Support Fund,Post Adoption,Individual,2283.60, 22-Feb-2018
225,Revenue,CAHD,CSC - Section 17 0-25,Preventative Assistance,Impact Mentoring,450.00, 22-Feb-2018
226,Revenue,CAHD,CSC - Adoption Support Fund,Post Adoption,Individual,1352.00, 22-Feb-2018
227,Revenue,CAHD,CSC - Adoption Support Fund,Post Adoption,Individual,1705.51, 22-Feb-2018
228,Revenue,CAHD,CSC - Adoption Support Fund,Post Adoption,Individual,1705.49, 22-Feb-2018
229,Revenue,CAHD,CSC - Adoption Support Fund,Post Adoption,Individual,1566.00, 22-Feb-2018
230,Revenue,CAHD,CSC - Adoption Support Fund,Post Adoption,Individual,1566.00, 22-Feb-2018
231,Revenue,CAHD,CSC - Adoption Support Fund,Post Adoption,Individual,522.00, 22-Feb-2018
232,Revenue,CAHD,CSC - Adoption Support Fund,Post Adoption,Individual,686.00, 22-Feb-2018
233,Revenue,CAHD,CSC - Adoption Support Fund,Post Adoption,Individual,742.00, 22-Feb-2018
234,Revenue,CAHD,Post 16 High Needs Placements,Other Private Contractors,Ruskinmill Trust Ltd,16333.33, 22-Feb-2018
235,Revenue,CAHD,Post 16 High Needs Placements,Other Private Contractors,Ruskinmill Trust Ltd,28694.33, 22-Feb-2018
236,Revenue,CAHD,Post 16 High Needs Placements,Other Private Contractors,Ruskinmill Trust Ltd,11415.33,[] 22-Feb-2018
237,Revenue,CAHD,Post 16 High Needs Placements,Other Private Contractors,Ruskinmill Trust Ltd,19111.33, 22-Feb-2018
238,Revenue,CAHD,Post 16 High Needs Placements,Other Private Contractors,Ruskinmill Trust Ltd,20128.67, 22-Feb-2018
239,Revenue,CAHD,Post 16 High Needs Placements,Other Private Contractors,Ruskinmill Trust Ltd,16333.33, 22-Feb-2018
240,Revenue,CAHD,Post 16 High Needs Placements,Other Private Contractors,St Roses School,14729.67, 22-Feb-2018
241,Revenue,CAHD,CSC - Adoption Support Fund,Post Adoption,Individual,2256.00, 22-Feb-2018
242,Revenue,CAHD,CSC - OT Equipment - Children,Daily Living Equipment,TVM Cheltenham Limited,2065.00, 22-Feb-2018
243,Revenue,CAHD,Independent Special Placements - Pre 16,Other Private Contractors,Aurora Care & Education,70288.46, 23-Feb-2018
244,Revenue,CAHD,Pensions - Non DSG,Annual Pension,Bath & North East Somerset Council,108688.83, 23-Feb-2018
245,Revenue,CAHD,CSC - LAC Placements,Personal Needs of Clients,Curo Housing,582.52, 23-Feb-2018
246,Revenue,CAHD,CSC - Legal Fees,Legal Fees,Individual,1636.10, 23-Feb-2018
247,Revenue,CAHD,CSC - LAC Placements,Other Transport Costs,Exclusive Secure Care Services,1169.00, 23-Feb-2018
248,Revenue,CAHD,CSC - Care Leavers Support Costs,Furniture & Fittings Loose,Individual,770.00, 23-Feb-2018
249,Revenue,CAHD,CAHC - Complaints & Advocacy Service,Complaints External Expenses,Individual,688.60, 23-Feb-2018
250,Revenue,CAHD,CSC - Professional Fees Foster Carers,Respite Care,Individual,551.16, 23-Feb-2018
251,Revenue,CAHD,CSC - Asylum Seekers - Unaccompanied,Independent Living,Merlin H.S.Limited,720.05, 23-Feb-2018
252,Revenue,CAHD,CSC - Professional Fees Foster Carers,Special Fostering Scheme,Individual,554.71, 23-Feb-2018
253,Revenue,CAHD,CSC - Professional Fees Foster Carers,Respite Care,Individual,511.81, 23-Feb-2018
254,Revenue,CAHD,CSC - Age Related Allowances,Children - Family Support,Individual,736.00, 23-Feb-2018
255,Revenue,CAHD,CSC - Professional Fees Foster Carers,Children - Family Support,Individual,564.29, 23-Feb-2018
256,Revenue,CAHD,CSC - Special Guardianship Orders,Client Transport,Individual,604.00, 23-Feb-2018
257,Revenue,CAHD,CSC - Residential Placements,Permanent Residential,Resource Partners SPV Ltd,8228.28, 23-Feb-2018
258,Revenue,CAHD,CSC - Residential Placements,Permanent Residential,Resource Partners SPV Ltd,21478.55, 23-Feb-2018
259,Revenue,CAHD,Independent Special Placements - Pre 16,Other Private Contractors,Silverhill School,1562.73, 23-Feb-2018
260,Revenue,CAHD,Independent Special Placements - Pre 16,Other Private Contractors,Silverhill School,595.33,[] 23-Feb-2018
261,Revenue,CAHD,Independent Special Placements - Pre 16,Other Private Contractors,Silverhill School,1666.92, 23-Feb-2018
262,Revenue,CAHD,CSC - Care Leavers Independent Living,Adults - Family Support,The Leaving Care Company Limited,3468.00, 23-Feb-2018
263,Revenue,CAHD,CSC - Agency Fostering,Foster Parent Allowances,Action for Children,3027.92, 26-Feb-2018
264,Revenue,CAHD,CSC - Section 17 0-25,Preventative Assistance,Angel Care Support Limited,2052.00, 26-Feb-2018
265,Revenue,CAHD,CSC - Section 17 0-25,Preventative Assistance,Angel Care Support Limited,2280.00, 26-Feb-2018
266,Revenue,CAHD,CSC - Legal Fees,Legal Fees,Individual,500.00, 26-Feb-2018
267,Revenue,CAHD,CSC - Agency Fostering,Foster Parent Allowances,Enhanced Foster Care Ltd,4200.00, 26-Feb-2018
268,Revenue,CAHD,CSC - Agency Fostering,Foster Parent Allowances,Foster Care Associates Limited,3731.84, 26-Feb-2018
269,Revenue,CAHD,CSC - Asylum Seekers - Unaccompanied,Foster Parent Allowances,Foster Care Associates Limited,3231.76, 26-Feb-2018
270,Revenue,CAHD,0-25 Management Team,Agency Staff (Admin/Support Staff) Pay,Permanent Futures Ltd,3679.20, 26-Feb-2018
271,Revenue,CAHD,CSC - Safeguarding Board,Training Expenses,Sea Change,1800.00, 26-Feb-2018
272,Revenue,CAHD,Independent Special Placements - Pre 16,Other Private Contractors,Sports Heroes Limited,3380.00, 26-Feb-2018
273,Revenue,CAHD,CSC - Vinney Green Secure Unit,Service Contracts (Premises),Trend Control Systems Limited,3693.75,[] 26-Feb-2018
274,Revenue,CAHD,CSC - Agency Fostering,Foster Parent Allowances,Action for Children,6300.00, 27-Feb-2018
275,Revenue,CAHD,CSC - Section 17 SOUTH,Other Supplies & Services,Alere Toxicology PLC,483.80, 27-Feb-2018
276,Revenue,CAHD,CSC - Residential Placements,Permanent Residential,Beechwood Court Ltd,6626.82, 27-Feb-2018
277,Revenue,CAHD,Statemented Support Academies,Other Public Bodies,Cabot Learning Federation,18994.50, 27-Feb-2018
278,Revenue,CAHD,Academy Resource Base Funding,Other Public Bodies,Cabot Learning Federation,1085.94, 27-Feb-2018
279,Revenue,CAHD,Academy Resource Base Funding,Other Public Bodies,Cabot Learning Federation,1423.01, 27-Feb-2018
280,Revenue,CAHD,Academy Resource Base Funding,Other Public Bodies,Cabot Learning Federation,1572.76, 27-Feb-2018
281,Revenue,CAHD,Academy Resource Base Funding,Other Public Bodies,Cabot Learning Federation,1085.94, 27-Feb-2018
282,Revenue,CAHD,Academy Resource Base Funding,Other Public Bodies,Cabot Learning Federation,1423.01, 27-Feb-2018
283,Revenue,CAHD,Academy Resource Base Funding,Other Public Bodies,Cabot Learning Federation,1085.94, 27-Feb-2018
284,Revenue,CAHD,Academy Resource Base Funding,Other Public Bodies,Cabot Learning Federation,1423.01, 27-Feb-2018
285,Revenue,CAHD,Academy Resource Base Funding,Other Public Bodies,Cabot Learning Federation,1085.94, 27-Feb-2018
286,Revenue,CAHD,Academy Resource Base Funding,Other Public Bodies,Cabot Learning Federation,599.12, 27-Feb-2018
287,Revenue,CAHD,Academy Resource Base Funding,Other Public Bodies,Cabot Learning Federation,1572.76, 27-Feb-2018
288,Revenue,CAHD,Academy Resource Base Funding,Other Public Bodies,Cabot Learning Federation,1423.01, 27-Feb-2018
289,Revenue,CAHD,Academy Resource Base Funding,Other Public Bodies,Cabot Learning Federation,823.81, 27-Feb-2018
290,Revenue,CAHD,Academy Resource Base Funding,Other Public Bodies,Cabot Learning Federation,2706.82, 27-Feb-2018
291,Revenue,CAHD,Statemented Support Academies,Other Public Bodies,Cabot Learning Federation,17689.00, 27-Feb-2018
292,Revenue,CAHD,Statemented Support Academies,Other Public Bodies,Cabot Learning Federation,86646.00, 27-Feb-2018
293,Revenue,CAHD,Statemented Support Academies,Other Public Bodies,Cabot Learning Federation,3370.50, 27-Feb-2018
294,Revenue,CAHD,Statemented Support Academies,Other Public Bodies,Castle School Education Trust,70122.50, 27-Feb-2018
295,Revenue,CAHD,Statemented Support Academies,Other Public Bodies,Castle School Education Trust,12113.50, 27-Feb-2018
296,Revenue,CAHD,Academy Resource Base Funding,Other Public Bodies,Castle School Education Trust,1572.76, 27-Feb-2018
297,Revenue,CAHD,Academy Resource Base Funding,Other Public Bodies,Castle School Education Trust,1572.76, 27-Feb-2018
298,Revenue,CAHD,Academy Resource Base Funding,Other Public Bodies,Castle School Education Trust,1572.76, 27-Feb-2018
299,Revenue,CAHD,Academy Resource Base Funding,Other Public Bodies,Castle School Education Trust,1572.76, 27-Feb-2018
300,Revenue,CAHD,Statemented Support Academies,Other Public Bodies,Downend School,2999.50, 27-Feb-2018
301,Revenue,CAHD,CSC - Residential Placements,Permanent Residential,Friends Therapeutic Community Trust,14000.00, 27-Feb-2018
302,Revenue,CAHD,Academy Resource Base Funding,Other Public Bodies,Greenshaw Learning Trust T/A Yate Academy,936.20, 27-Feb-2018
303,Revenue,CAHD,Academy Resource Base Funding,Other Public Bodies,Greenshaw Learning Trust T/A Yate Academy,1572.76, 27-Feb-2018
304,Revenue,CAHD,Academy Resource Base Funding,Other Public Bodies,Greenshaw Learning Trust T/A Yate Academy,1423.01, 27-Feb-2018
305,Revenue,CAHD,Academy Resource Base Funding,Other Public Bodies,Greenshaw Learning Trust T/A Yate Academy,1085.94, 27-Feb-2018
306,Revenue,CAHD,Academy Resource Base Funding,Other Public Bodies,Greenshaw Learning Trust T/A Yate Academy,1085.94, 27-Feb-2018
307,Revenue,CAHD,Academy Resource Base Funding,Other Public Bodies,Greenshaw Learning Trust T/A Yate Academy,599.12, 27-Feb-2018
308,Revenue,CAHD,Academy Resource Base Funding,Other Public Bodies,Greenshaw Learning Trust T/A Yate Academy,1572.76, 27-Feb-2018
309,Revenue,CAHD,Academy Resource Base Funding,Other Public Bodies,Greenshaw Learning Trust T/A Yate Academy,1423.01, 27-Feb-2018
310,Revenue,CAHD,Statemented Support Academies,Other Public Bodies,Greenshaw Learning Trust T/A Yate Academy,19050.50, 27-Feb-2018
311,Revenue,CAHD,CSC - Residential Placements,Permanent Residential,Hillcrest Children`s Services LtdDO NOT USE,21036.00, 27-Feb-2018
312,Revenue,CAHD,Hospital Tuition,Other Private Contractors,Huntercombe Hospital Maidenhead,2250.00, 27-Feb-2018
313,Revenue,CAHD,CAHC - Complaints & Advocacy Service,Complaints External Expenses,Individual,500.00, 27-Feb-2018
314,Revenue,CAHD,Statemented Support Academies,Other Public Bodies,Olympus Academy Trust,12932.50, 27-Feb-2018
315,Revenue,CAHD,Academy Resource Base Funding,Other Public Bodies,Olympus Academy Trust,1085.94, 27-Feb-2018
316,Revenue,CAHD,Academy Resource Base Funding,Other Public Bodies,Olympus Academy Trust,1085.94, 27-Feb-2018
317,Revenue,CAHD,Statemented Support Academies,Other Public Bodies,Olympus Academy Trust,32091.50, 27-Feb-2018
318,Revenue,CAHD,Academy Resource Base Funding,Other Public Bodies,Olympus Academy Trust,1423.01, 27-Feb-2018
319,Revenue,CAHD,Academy Resource Base Funding,Other Public Bodies,Olympus Academy Trust,599.12, 27-Feb-2018
320,Revenue,CAHD,Academy Resource Base Funding,Other Public Bodies,Olympus Academy Trust,1085.94, 27-Feb-2018
321,Revenue,CAHD,Academy Resource Base Funding,Other Public Bodies,Olympus Academy Trust,823.81, 27-Feb-2018
322,Revenue,CAHD,Academy Resource Base Funding,Other Public Bodies,Olympus Academy Trust,1423.01, 27-Feb-2018
323,Revenue,CAHD,Academy Resource Base Funding,Other Public Bodies,Olympus Academy Trust,1423.01, 27-Feb-2018
324,Revenue,CAHD,Academy Resource Base Funding,Other Public Bodies,Olympus Academy Trust,1572.76, 27-Feb-2018
325,Revenue,CAHD,Academy Resource Base Funding,Other Public Bodies,Olympus Academy Trust,1423.01, 27-Feb-2018
326,Revenue,CAHD,Academy Resource Base Funding,Other Public Bodies,Olympus Academy Trust,1423.01, 27-Feb-2018
327,Revenue,CAHD,Academy Resource Base Funding,Other Public Bodies,Olympus Academy Trust,823.81, 27-Feb-2018
328,Revenue,CAHD,Academy Resource Base Funding,Other Public Bodies,Olympus Academy Trust,1423.01, 27-Feb-2018
329,Revenue,CAHD,Academy Resource Base Funding,Other Public Bodies,Olympus Academy Trust,1423.01, 27-Feb-2018
330,Revenue,CAHD,Academy Resource Base Funding,Other Public Bodies,Olympus Academy Trust,1423.01, 27-Feb-2018
331,Revenue,CAHD,Academy Resource Base Funding,Other Public Bodies,Olympus Academy Trust,1423.01, 27-Feb-2018
332,Revenue,CAHD,Statemented Support Academies,Other Public Bodies,Olympus Academy Trust,1190.00, 27-Feb-2018
333,Revenue,CAHD,Statemented Support Academies,Other Public Bodies,Olympus Academy Trust,15620.50, 27-Feb-2018
334,Revenue,CAHD,Statemented Support Academies,Other Public Bodies,Olympus Academy Trust,17976.00, 27-Feb-2018
335,Revenue,CAHD,SEN High Needs - Not at School Base,Other Private Contractors,Sensory West Ltd,1233.46, 27-Feb-2018
336,Revenue,CAHD,CSC - OT Equipment - Children,Daily Living Equipment,Specialised Orthotic Services Limited,1176.63, 27-Feb-2018
337,Revenue,CAHD,CSC - Care Leavers Independent Living,Adults - Family Support,The Leaving Care Company Limited,5119.43, 27-Feb-2018
338,Revenue,CAHD,Statemented Support Academies,Other Public Bodies,Wellsway MAT T/A Sir Bernard Lovell School,8004.50,[] 27-Feb-2018
339,Revenue,CAHD,Statemented Support Academies,Other Public Bodies,Wellsway MAT T/A The Meadows Primary School,3502.00, 27-Feb-2018
340,Revenue,CAHD,CSC - Agency Fostering,Foster Parent Allowances,Amicus Foster Care Ltd,4907.40, 28-Feb-2018
341,Revenue,CAHD,CSC - Agency Fostering,Foster Parent Allowances,Amicus Foster Care Ltd,4406.84, 28-Feb-2018
342,Revenue,CAHD,CSC - Vinney Green Secure Unit,Educational Materials,Ascentis,501.60, 28-Feb-2018
343,Revenue,CAHD,CSC - Vinney Green Secure Unit,Printing & Stationery,Banner         (For SGC Print Room Use Only),503.79, 28-Feb-2018
344,Revenue,CAHD,CSC - Vinney Green Secure Unit,Printing & Stationery,Banner UK,616.32, 28-Feb-2018
345,Revenue,CAHD,CSC - Fostering Carer Support,Sporting Expenses,Circadian Trust,528.85, 28-Feb-2018
346,Revenue,CAHD,CSC - Vinney Green Secure Unit,Service Contracts (Premises),Sedgemoor Telecom Limited,832.76, 28-Feb-2018
347,Revenue,CAHD,CSC - Care Leavers Independent Living,Adults - Family Support,Supported Independence Limited,1750.72, 28-Feb-2018
348,Revenue,CAHD,CSC - Agency Fostering,Foster Parent Allowances,TACT,2305.78, 28-Feb-2018
349,Revenue,CAHD,CSC - Asylum Seekers - Unaccompanied,Foster Parent Allowances,TACT,3162.00, 28-Feb-2018
350,Revenue,CAHD,CSC - Asylum Seekers - Unaccompanied,Foster Parent Allowances,TACT,3286.00, 28-Feb-2018
351,Revenue,CAHD,CSC - Vinney Green Secure Unit,Electricity,West Mercia Energy,7081.85, 28-Feb-2018
352,Revenue,CAHD,Supporting People Programme,Grants to Voluntary Bodies,1625 Independent People,14536.00, 01-Feb-2018
353,Revenue,CAHD,Community Support - South,Preventative Assistance,Accessible Transport 4 U,780.00, 01-Feb-2018
354,Revenue,CAHD,Supporting People Programme,Grants to Voluntary Bodies,Anchor Housing,812.50, 01-Feb-2018
355,Revenue,CAHD,Supporting People Programme,Grants to Voluntary Bodies,Aspects and Milestones Trust,3298.58, 01-Feb-2018
356,Revenue,CAHD,Supporting People Programme,Grants to Voluntary Bodies,Aspects and Milestones Trust,1653.75, 01-Feb-2018
357,Revenue,CAHD,Supporting People Programme,Grants to Voluntary Bodies,Aspects and Milestones Trust,2014.33, 01-Feb-2018
358,Revenue,CAHD,Supporting People Programme,Grants to Voluntary Bodies,Aspects and Milestones Trust,650.00, 01-Feb-2018
359,Revenue,CAHD,Supporting People Programme,Grants to Voluntary Bodies,Aspects and Milestones Trust,650.00, 01-Feb-2018
360,Revenue,CAHD,South Glos Users in South Glos Homes,Permanent Nursing,Blossom Fields,620.20, 01-Feb-2018
361,Revenue,CAHD,South Glos Users in South Glos Homes,Permanent Nursing,Blossom Fields,620.20, 01-Feb-2018
362,Revenue,CAHD,Bed Purchasing - North,Permanent Nursing,Blossom Fields,1880.20, 01-Feb-2018
363,Revenue,CAHD,Bed Purchasing - North,Permanent Nursing,Blossom Fields,2688.00, 01-Feb-2018
364,Revenue,CAHD,Training - Adult Services,Training Expenses,Bristol MIND,1400.00, 01-Feb-2018
365,Revenue,CAHD,Supporting People Programme,Grants to Voluntary Bodies,Bromford Housing Group,14395.08, 01-Feb-2018
366,Revenue,CAHD,Home Care - Elderly - North,Day Care / Social Activities,Camphill Communities Thornbury Limited,511.75, 01-Feb-2018
367,Revenue,CAHD,Home Care - Elderly - North,Other Small Contracts,Camphill Communities Thornbury Limited,160.20, 01-Feb-2018
368,Revenue,CAHD,Home Care - Elderly - North,Supported Living,Camphill Communities Thornbury Limited,213.60, 01-Feb-2018
369,Revenue,CAHD,Social Lettings Agency,Fees - General,Cath Clemence,10.53, 01-Feb-2018
370,Revenue,CAHD,Social Lettings Agency,Fees & Charges Income - General,Cath Clemence,595.11, 01-Feb-2018
371,Revenue,CAHD,Supporting People Programme,Grants to Voluntary Bodies,Elim Housing Association Limited,5139.16, 01-Feb-2018
372,Revenue,CAHD,Tenancy Start Up Scheme,Other Supplies & Services,Farringtons Sales & Lettings,685.00, 01-Feb-2018
373,Revenue,CAHD,Supporting People Programme,Grants to Voluntary Bodies,Freeways Trust Limited,5575.74, 01-Feb-2018
374,Revenue,CAHD,Supporting People Programme,Grants to Voluntary Bodies,Habinteg Housing Association,666.00, 01-Feb-2018
375,Revenue,CAHD,Supporting People Programme,Grants to Voluntary Bodies,Hanover Housing Association,996.16, 01-Feb-2018
376,Revenue,CAHD,Supporting People Programme,Grants to Voluntary Bodies,Housing 21,957.66, 01-Feb-2018
377,Revenue,CAHD,Supporting People Programme,Grants to Voluntary Bodies,Housing 21,631.50, 01-Feb-2018
378,Revenue,CAHD,Social Lettings Agency,Fees - General,Individual,7.90, 01-Feb-2018
379,Revenue,CAHD,Social Lettings Agency,Other Supplies & Services,Individual,610.90, 01-Feb-2018
380,Revenue,CAHD,Supporting People Programme,Grants to Voluntary Bodies,Keyring Living Support Networks,2988.58, 01-Feb-2018
381,Revenue,CAHD,Supporting People Programme,Grants to Voluntary Bodies,Kingswood Young Homeless Project,8151.18, 01-Feb-2018
382,Revenue,CAHD,Supporting People Programme,Grants to Voluntary Bodies,Knightstone Housing Association Limited,2544.33, 01-Feb-2018
383,Revenue,CAHD,Supporting People Programme,Grants to Voluntary Bodies,Knightstone Housing Association Limited,820.58, 01-Feb-2018
384,Revenue,CAHD,Supporting People Programme,Grants to Voluntary Bodies,Knightstone Housing Association Limited,1833.66, 01-Feb-2018
385,Revenue,CAHD,Supporting People Programme,Grants to Voluntary Bodies,Knightstone Housing Association Limited,2543.75, 01-Feb-2018
386,Revenue,CAHD,Supporting People Programme,Grants to Voluntary Bodies,Knightstone Housing Association Limited,865.25, 01-Feb-2018
387,Revenue,CAHD,18-25 Year Olds,Day Care / Social Activities,Make it Mentoring CIC Limited,1375.92, 01-Feb-2018
388,Revenue,CAHD,18-25 Year Olds,Day Care / Social Activities,Make it Mentoring CIC Limited,436.80, 01-Feb-2018
389,Revenue,CAHD,Supporting People Programme,Grants to Voluntary Bodies,Merlin Housing Society (Rents),14987.58, 01-Feb-2018
390,Revenue,CAHD,Supporting People Programme,Grants to Voluntary Bodies,Merlin Housing Society (Rents),2594.91, 01-Feb-2018
391,Revenue,CAHD,Supporting People Programme,Grants to Voluntary Bodies,Merlin Housing Society (Rents),20956.35, 01-Feb-2018
392,Revenue,CAHD,Supporting People Programme,Grants to Voluntary Bodies,Merlin Housing Society (Rents),1067.33, 01-Feb-2018
393,Revenue,CAHD,Supporting People Programme,Grants to Voluntary Bodies,Mr & Mrs Watts,1023.33, 01-Feb-2018
394,Revenue,CAHD,Social Lettings Agency,Fees - General,Individual,16.46, 01-Feb-2018
395,Revenue,CAHD,Social Lettings Agency,Other Supplies & Services,Individual,559.55, 01-Feb-2018
396,Revenue,CAHD,Social Lettings Agency,Fees - General,Individual,10.53, 01-Feb-2018
397,Revenue,CAHD,Social Lettings Agency,Other Supplies & Services,Individual,595.11, 01-Feb-2018
398,Revenue,CAHD,Social Lettings Agency,Fees - General,Individual,10.53, 01-Feb-2018
399,Revenue,CAHD,Social Lettings Agency,Other Supplies & Services,Individual,595.11, 01-Feb-2018
400,Revenue,CAHD,Social Lettings Agency,Fees - General,Individual,10.53, 01-Feb-2018
401,Revenue,CAHD,Social Lettings Agency,Other Supplies & Services,Individual,595.11, 01-Feb-2018
402,Revenue,CAHD,Social Lettings Agency,Fees - General,Individual,10.50, 01-Feb-2018
403,Revenue,CAHD,Social Lettings Agency,Other Supplies & Services,Individual,593.48, 01-Feb-2018
404,Revenue,CAHD,18-25 Year Olds,Day Care / Social Activities,Next Step Care Management Limited,428.57, 01-Feb-2018
405,Revenue,CAHD,18-25 Year Olds,Day Care / Social Activities,Next Step Care Management Limited,442.86, 01-Feb-2018
406,Revenue,CAHD,Supporting People Programme,Grants to Voluntary Bodies,Places for People,729.00, 01-Feb-2018
407,Revenue,CAHD,Learning Difficulties PSL,Rent,Individual,1650.00, 01-Feb-2018
408,Revenue,CAHD,Alexandra Way,"Provisions (Food, etc)",School Milk Services Limited,1381.65, 01-Feb-2018
409,Revenue,CAHD,Home Care - Elderly - South,Day Care / Social Activities,Selborne Care Limited,625.78, 01-Feb-2018
410,Revenue,CAHD,Home Care - Elderly - South,Other Small Contracts,Selborne Care Limited,359.59, 01-Feb-2018
411,Revenue,CAHD,Home Care - Elderly - South,Supported Living,Selborne Care Limited,1027.40, 01-Feb-2018
412,Revenue,CAHD,Home Care - Elderly - North,Day Care / Social Activities,Selborne Care Limited,261.52,[] 01-Feb-2018
413,Revenue,CAHD,Home Care - Elderly - North,Other Small Contracts,Selborne Care Limited,703.12,[] 01-Feb-2018
414,Revenue,CAHD,Home Care - Elderly - North,Supported Living,Selborne Care Limited,56.04, 01-Feb-2018
415,Revenue,CAHD,Supporting People Programme,Grants to Voluntary Bodies,Supported Independence Limited,3105.58,[] 01-Feb-2018
416,Revenue,CAHD,Community Support - South,Preventative Assistance,Supported Independent Living Schemes,778.92, 01-Feb-2018
417,Revenue,CAHD,Community Support - South,Preventative Assistance,Supported Independent Living Schemes,778.92, 01-Feb-2018
418,Revenue,CAHD,Supporting People Programme,Grants to Voluntary Bodies,Supported Independent Living Schemes,4822.25, 01-Feb-2018
419,Revenue,CAHD,Supporting People Programme,Grants to Voluntary Bodies,Supported Independent Living Schemes,6247.41, 01-Feb-2018
420,Revenue,CAHD,Supporting People Programme,Grants to Voluntary Bodies,The Hatch Camphill Community,1062.00, 01-Feb-2018
421,Revenue,CAHD,Supporting People Programme,Grants to Voluntary Bodies,The Riverside Group Limited,783.00, 01-Feb-2018
422,Revenue,CAHD,Telecare,Other Supplies & Services,Tunstall Healthcare (UK) Limited,868.00, 01-Feb-2018
423,Revenue,CAHD,Woodleaze,Gas,West Mercia Energy,919.51, 01-Feb-2018
424,Revenue,CAHD,Alexandra Way,Gas,West Mercia Energy,1008.70, 01-Feb-2018
425,Revenue,CAHD,Alexandra Way,Gas,West Mercia Energy,1300.94, 01-Feb-2018
426,Revenue,CAHD,Woodleaze,Gas,West Mercia Energy,1216.36, 01-Feb-2018
427,Revenue,CAHD,Supporting People Programme,Grants to Voluntary Bodies,Willowbank Care Limited,1541.25, 01-Feb-2018
428,Revenue,CAHD,Home Care - Elderly - North,Supported Living,Willowbank Care Limited,5230.40, 01-Feb-2018
429,Revenue,CAHD,Home Care - Elderly - North,Other Small Contracts,Willowbank Care Limited,3063.52, 01-Feb-2018
430,Revenue,CAHD,Home Care - Elderly - North,Other Small Contracts,Willowbank Care Limited,1569.12, 01-Feb-2018
431,Revenue,CAHD,Pathway 3 - (Complex Beds),Permanent Nursing,Windmill Care Limited,6807.00, 01-Feb-2018
432,Revenue,CAHD,Extra Care Housing,Private & Voluntary Home Care,Agincare UK Limited,25811.00, 02-Feb-2018
433,Revenue,CAHD,Social Lettings Agency,Fees - General,Individual,11.41, 02-Feb-2018
434,Revenue,CAHD,Social Lettings Agency,Other Supplies & Services,Individual,746.54, 02-Feb-2018
435,Revenue,CAHD,Bed and Breakfast,Storage & Removal,Bristol Removals LTD,700.00, 02-Feb-2018
436,Revenue,CAHD,Pathway 2 - (Interim Beds),Permanent Nursing,Brunelcare,16627.00, 02-Feb-2018
437,Revenue,CAHD,Information Systems - Software,Software Support & Maintenance,Capita Business Services Ltd,1000.00, 02-Feb-2018
438,Revenue,CAHD,Home Care - Elderly - South,Other Small Contracts,Caring Comes 1st Ltd,932.40, 02-Feb-2018
439,Revenue,CAHD,Home Care - Elderly - South,Other Small Contracts,Cherish Able Care Limited,6813.49, 02-Feb-2018
440,Revenue,CAHD,Home Care - Elderly - North,Other Small Contracts,Cherish Able Care Limited,3561.48, 02-Feb-2018
441,Revenue,CAHD,Home Care - Elderly - North,Other Small Contracts,Complimenting Care and Training Services (CCTS) Lt,6146.71, 02-Feb-2018
442,Revenue,CAHD,Bed and Breakfast,Bed & Breakfast,Knightstone Housing Association Limited,931.42, 02-Feb-2018
443,Revenue,CAHD,Bed and Breakfast,Bed & Breakfast,Knightstone Housing Association Limited,1432.06, 02-Feb-2018
444,Revenue,CAHD,Home Care - Elderly - South,Day Care / Social Activities,Mears Care,142.40, 02-Feb-2018
445,Revenue,CAHD,Home Care - Elderly - South,Other Small Contracts,Mears Care,3080.93, 02-Feb-2018
446,Revenue,CAHD,Home Care - Elderly - North,Other Small Contracts,Mears Care,2131.50, 02-Feb-2018
447,Revenue,CAHD,18-25 Year Olds,Other Small Contracts,Milestones Supported Living Services,1615.68, 02-Feb-2018
448,Revenue,CAHD,Home Care - Elderly - South,Day Care / Social Activities,Milestones Supported Living Services,3502.96, 02-Feb-2018
449,Revenue,CAHD,Home Care - Elderly - South,Other Small Contracts,Milestones Supported Living Services,13820.44, 02-Feb-2018
450,Revenue,CAHD,Home Care - Elderly - North,Day Care / Social Activities,Milestones Supported Living Services,339.66, 02-Feb-2018
451,Revenue,CAHD,Home Care - Elderly - North,Other Small Contracts,Milestones Supported Living Services,8127.35, 02-Feb-2018
452,Revenue,CAHD,Home Care - Elderly - North,Supported Living,Milestones Supported Living Services,188.19, 02-Feb-2018
453,Revenue,CAHD,Day Care - North,Day Care / Social Activities,Milestones Supported Living Services,110.16, 02-Feb-2018
454,Revenue,CAHD,Younger MH non-res purchasing,Day Care / Social Activities,Milestones Supported Living Services,36.72, 02-Feb-2018
455,Revenue,CAHD,Younger MH non-res purchasing,Other Small Contracts,Milestones Supported Living Services,146.88, 02-Feb-2018
456,Revenue,CAHD,18-25 Year Olds,Other Small Contracts,Milestones Supported Living Services,1165.86, 02-Feb-2018
457,Revenue,CAHD,Home Care - Elderly - South,Day Care / Social Activities,Milestones Supported Living Services,3588.94, 02-Feb-2018
458,Revenue,CAHD,Home Care - Elderly - South,Other Small Contracts,Milestones Supported Living Services,13691.35, 02-Feb-2018
459,Revenue,CAHD,Home Care - Elderly - North,Day Care / Social Activities,Milestones Supported Living Services,335.07, 02-Feb-2018
460,Revenue,CAHD,Home Care - Elderly - North,Other Small Contracts,Milestones Supported Living Services,8192.69, 02-Feb-2018
461,Revenue,CAHD,Home Care - Elderly - North,Supported Living,Milestones Supported Living Services,188.19, 02-Feb-2018
462,Revenue,CAHD,Day Care - North,Day Care / Social Activities,Milestones Supported Living Services,146.88, 02-Feb-2018
463,Revenue,CAHD,Younger MH non-res purchasing,Day Care / Social Activities,Milestones Supported Living Services,36.71, 02-Feb-2018
464,Revenue,CAHD,Younger MH non-res purchasing,Other Small Contracts,Milestones Supported Living Services,133.11, 02-Feb-2018
465,Revenue,CAHD,Home Care - Elderly - South,Day Care / Social Activities,Milestones Supported Living Services,2565.18, 02-Feb-2018
466,Revenue,CAHD,Home Care - Elderly - South,Other Small Contracts,Milestones Supported Living Services,9227.59, 02-Feb-2018
467,Revenue,CAHD,Home Care - Elderly - North,Day Care / Social Activities,Milestones Supported Living Services,270.81, 02-Feb-2018
468,Revenue,CAHD,Home Care - Elderly - North,Other Small Contracts,Milestones Supported Living Services,7444.78, 02-Feb-2018
469,Revenue,CAHD,Day Care - North,Day Care / Social Activities,Milestones Supported Living Services,151.47, 02-Feb-2018
470,Revenue,CAHD,Younger MH non-res purchasing,Other Small Contracts,Milestones Supported Living Services,128.52, 02-Feb-2018
471,Revenue,CAHD,Social Lettings Agency,Fees - General,Individual,12.22, 02-Feb-2018
472,Revenue,CAHD,Social Lettings Agency,Other Supplies & Services,Individual,690.32, 02-Feb-2018
473,Revenue,CAHD,Home Care - Elderly - South,Day Care / Social Activities,Mrs B Kimber -  CM2000,2272.72, 02-Feb-2018
474,Revenue,CAHD,Home Care - Elderly - South,Other Small Contracts,Mrs B Kimber -  CM2000,7739.46, 02-Feb-2018
475,Revenue,CAHD,Home Care - Elderly - South,Supported Living,Mrs B Kimber -  CM2000,35.84, 02-Feb-2018
476,Revenue,CAHD,Home Care - Elderly - North,Day Care / Social Activities,Mrs B Kimber -  CM2000,179.20, 02-Feb-2018
477,Revenue,CAHD,Home Care - Elderly - North,Other Small Contracts,Mrs B Kimber -  CM2000,1738.96, 02-Feb-2018
478,Revenue,CAHD,Home Care - Elderly - South,Day Care / Social Activities,Mrs B Kimber -  CM2000,2002.04, 02-Feb-2018
479,Revenue,CAHD,Home Care - Elderly - South,Other Small Contracts,Mrs B Kimber -  CM2000,7126.15, 02-Feb-2018
480,Revenue,CAHD,Home Care - Elderly - South,Supported Living,Mrs B Kimber -  CM2000,31.36, 02-Feb-2018
481,Revenue,CAHD,Home Care - Elderly - North,Day Care / Social Activities,Mrs B Kimber -  CM2000,134.40, 02-Feb-2018
482,Revenue,CAHD,Home Care - Elderly - North,Other Small Contracts,Mrs B Kimber -  CM2000,1146.88, 02-Feb-2018
483,Revenue,CAHD,Home Care - Elderly - South,Day Care / Social Activities,Mrs B Kimber -  CM2000,2123.52, 02-Feb-2018
484,Revenue,CAHD,Home Care - Elderly - South,Other Small Contracts,Mrs B Kimber -  CM2000,7872.96, 02-Feb-2018
485,Revenue,CAHD,Home Care - Elderly - South,Supported Living,Mrs B Kimber -  CM2000,35.84, 02-Feb-2018
486,Revenue,CAHD,Home Care - Elderly - North,Day Care / Social Activities,Mrs B Kimber -  CM2000,268.80, 02-Feb-2018
487,Revenue,CAHD,Home Care - Elderly - North,Other Small Contracts,Mrs B Kimber -  CM2000,1925.04, 02-Feb-2018
488,Revenue,CAHD,Home Care - Elderly - South,Day Care / Social Activities,NAS Services Limited,322.24, 02-Feb-2018
489,Revenue,CAHD,Home Care - Elderly - South,Other Small Contracts,NAS Services Limited,97.28, 02-Feb-2018
490,Revenue,CAHD,Home Care - Elderly - South,Supported Living,NAS Services Limited,24.32, 02-Feb-2018
491,Revenue,CAHD,Home Care - Elderly - North,Day Care / Social Activities,NAS Services Limited,571.52, 02-Feb-2018
492,Revenue,CAHD,Home Care - Elderly - North,Other Small Contracts,NAS Services Limited,103.36, 02-Feb-2018
493,Revenue,CAHD,Home Care - Elderly - North,Supported Living,NAS Services Limited,370.88, 02-Feb-2018
494,Revenue,CAHD,Younger MH non-res purchasing,Day Care / Social Activities,NAS Services Limited,291.84, 02-Feb-2018
495,Revenue,CAHD,Home Care - Elderly - South,Other Small Contracts,Nestor T/A Allied Healthcare,2612.34, 02-Feb-2018
496,Revenue,CAHD,Home Care - Elderly - North,Other Small Contracts,Nestor T/A Allied Healthcare,6271.30, 02-Feb-2018
497,Revenue,CAHD,Home Care - Elderly - South,Other Small Contracts,Network Health & Social Care T/A Network Ventures,2273.07, 02-Feb-2018
498,Revenue,CAHD,Home Care - Elderly - North,Other Small Contracts,Network Health & Social Care T/A Network Ventures,4518.27, 02-Feb-2018
499,Revenue,CAHD,Social Lettings Agency,Fees - General,Individual,10.00, 02-Feb-2018
500,Revenue,CAHD,Social Lettings Agency,Other Supplies & Services,Individual,565.00, 02-Feb-2018
501,Revenue,CAHD,Home Care - Elderly - North,Other Small Contracts,Seraphim Home Care,958.72, 02-Feb-2018
502,Revenue,CAHD,Home Care - Elderly - North,Other Small Contracts,Steadfast Care Ltd t/as Home Instead,813.22, 02-Feb-2018
503,Revenue,CAHD,18-25 Year Olds,Other Small Contracts,Supported Independence Limited,1747.20, 02-Feb-2018
504,Revenue,CAHD,18-25 Year Olds,Supported Living,Supported Independence Limited,416.00, 02-Feb-2018
505,Revenue,CAHD,Home Care - Elderly - South,Other Small Contracts,Supported Independence Limited,1549.60, 02-Feb-2018
506,Revenue,CAHD,Home Care - Elderly - North,Day Care / Social Activities,Supported Independence Limited,379.60,[] 02-Feb-2018
507,Revenue,CAHD,Home Care - Elderly - North,Other Small Contracts,Supported Independence Limited,280.80, 02-Feb-2018
508,Revenue,CAHD,Home Care - Elderly - North,Supported Living,Supported Independence Limited,83.20, 02-Feb-2018
509,Revenue,CAHD,Younger MH non-res purchasing,Day Care / Social Activities,Supported Independence Limited,332.80, 02-Feb-2018
510,Revenue,CAHD,Younger MH non-res purchasing,Other Small Contracts,Supported Independence Limited,2095.60, 02-Feb-2018
511,Revenue,CAHD,Younger MH non-res purchasing,Supported Living,Supported Independence Limited,208.00,[] 02-Feb-2018
512,Revenue,CAHD,Home Care - Elderly - North,Other Small Contracts,Thornbury Nursing Services,848.58, 02-Feb-2018
513,Revenue,CAHD,Home Care - Elderly - North,Other Small Contracts,Thornbury Nursing Services,2365.56, 02-Feb-2018
514,Revenue,CAHD,Home Care - Elderly - North,Other Small Contracts,Thornbury Nursing Services,2445.24, 02-Feb-2018
515,Revenue,CAHD,Home Care - Elderly - South,Other Small Contracts,United Response,6529.18,[] 02-Feb-2018
516,Revenue,CAHD,Home Care - Elderly - North,Other Small Contracts,United Response,4193.66, 02-Feb-2018
517,Revenue,CAHD,Home Care - Elderly - North,Supported Living,United Response,3184.94, 02-Feb-2018
518,Revenue,CAHD,Alexandra Way,Laundry Services,Wash Technix,500.95, 02-Feb-2018
519,Revenue,CAHD,Extra Care Housing,Private & Voluntary Home Care,Agincare UK Limited,21920.39, 05-Feb-2018
520,Revenue,CAHD,Extra Care Housing,Private & Voluntary Home Care,Agincare UK Limited,10674.56, 05-Feb-2018
521,Revenue,CAHD,Purchase of RAC places,Other L.A.'s - General,Bath & North East Somerset Council,966.08, 05-Feb-2018
522,Revenue,CAHD,Pathway 1 - Re-Ablement Home Care,Private & Voluntary Home Care,Brunelcare,24132.35, 05-Feb-2018
523,Revenue,CAHD,Home Care - Elderly - North,Other Small Contracts,Freeways Trust Limited,700.72, 05-Feb-2018
524,Revenue,CAHD,Home Care - Elderly - South,Other Small Contracts,H F T,860.76, 05-Feb-2018
525,Revenue,CAHD,Home Care - Elderly - South,Other Small Contracts,H F T,892.64, 05-Feb-2018
526,Revenue,CAHD,Home Care - Elderly - South,Day Care / Social Activities,Headway Bristol,496.80, 05-Feb-2018
527,Revenue,CAHD,Home Care - Elderly - South,Other Small Contracts,Headway Bristol,43.20, 05-Feb-2018
528,Revenue,CAHD,Home Care - Elderly - North,Day Care / Social Activities,Headway Bristol,999.00, 05-Feb-2018
529,Revenue,CAHD,Home Care - Elderly - North,Other Small Contracts,Headway Bristol,194.40, 05-Feb-2018
530,Revenue,CAHD,Younger MH non-res purchasing,Day Care / Social Activities,Headway Bristol,43.20, 05-Feb-2018
531,Revenue,CAHD,Home Care - Elderly - North,Day Care / Social Activities,Milestones Trust,646.51, 05-Feb-2018
532,Revenue,CAHD,Home Care - Elderly - North,Day Care / Social Activities,Milestones Trust,593.19, 05-Feb-2018
533,Revenue,CAHD,Home Care - Elderly - North,Day Care / Social Activities,Milestones Trust,852.05, 05-Feb-2018
534,Revenue,CAHD,Home Care - Elderly - North,Day Care / Social Activities,Milestones Trust,752.97, 05-Feb-2018
535,Revenue,CAHD,Homeless - Private Sector Leasing,Prop.Serv. General Repairs,Safelincs Limited,1311.00, 05-Feb-2018
536,Revenue,CAHD,Home Care - Elderly - South,Day Care / Social Activities,3 Trees Community Support Ltd,98.07, 06-Feb-2018
537,Revenue,CAHD,Home Care - Elderly - North,Day Care / Social Activities,3 Trees Community Support Ltd,1368.31, 06-Feb-2018
538,Revenue,CAHD,Home Care - Elderly - North,Other Small Contracts,3 Trees Community Support Ltd,709.84, 06-Feb-2018
539,Revenue,CAHD,Home Care - Elderly - North,Supported Living,3 Trees Community Support Ltd,7433.72, 06-Feb-2018
540,Revenue,CAHD,Home Care - Elderly - South,Day Care / Social Activities,3 Trees Community Support Ltd,93.40, 06-Feb-2018
541,Revenue,CAHD,Home Care - Elderly - North,Day Care / Social Activities,3 Trees Community Support Ltd,1372.98, 06-Feb-2018
542,Revenue,CAHD,Home Care - Elderly - North,Other Small Contracts,3 Trees Community Support Ltd,709.84, 06-Feb-2018
543,Revenue,CAHD,Home Care - Elderly - North,Supported Living,3 Trees Community Support Ltd,7405.53, 06-Feb-2018
544,Revenue,CAHD,Home Care - Elderly - South,Other Small Contracts,Agincare UK Limited,1347.24, 06-Feb-2018
545,Revenue,CAHD,Home Care - Elderly - North,Other Small Contracts,Agincare UK Limited,1033.32, 06-Feb-2018
546,Revenue,CAHD,Home Care - Elderly - South,Other Small Contracts,Care Horizons Limited,868.56, 06-Feb-2018
547,Revenue,CAHD,Home Care - Elderly - North,Day Care / Social Activities,Care Horizons Limited,383.46, 06-Feb-2018
548,Revenue,CAHD,Home Care - Elderly - North,Other Small Contracts,Care Horizons Limited,341.88, 06-Feb-2018
549,Revenue,CAHD,Younger MH non-res purchasing,Other Small Contracts,Care Horizons Limited,184.80, 06-Feb-2018
550,Revenue,CAHD,Home Care - Elderly - South,Other Small Contracts,Care Horizons Limited,836.22, 06-Feb-2018
551,Revenue,CAHD,Home Care - Elderly - North,Day Care / Social Activities,Care Horizons Limited,254.10, 06-Feb-2018
552,Revenue,CAHD,Home Care - Elderly - North,Other Small Contracts,Care Horizons Limited,309.54, 06-Feb-2018
553,Revenue,CAHD,Younger MH non-res purchasing,Other Small Contracts,Care Horizons Limited,110.88, 06-Feb-2018
554,Revenue,CAHD,Home Care - Elderly - South,Other Small Contracts,Dhek Bhal,569.52, 06-Feb-2018
555,Revenue,CAHD,Home Care - Elderly - North,Other Small Contracts,Dhek Bhal,120.96, 06-Feb-2018
556,Revenue,CAHD,Home Care - Elderly - South,Other Small Contracts,Dhek Bhal,589.68, 06-Feb-2018
557,Revenue,CAHD,Home Care - Elderly - North,Other Small Contracts,Dhek Bhal,120.96, 06-Feb-2018
558,Revenue,CAHD,Home Care - Elderly - South,Other Small Contracts,Elite Home Care Ltd,9669.50, 06-Feb-2018
559,Revenue,CAHD,Home Care - Elderly - South,Supported Living,Elite Home Care Ltd,54.48, 06-Feb-2018
560,Revenue,CAHD,Home Care - Elderly - North,Day Care / Social Activities,Elite Home Care Ltd,36.32, 06-Feb-2018
561,Revenue,CAHD,Home Care - Elderly - North,Other Small Contracts,Elite Home Care Ltd,662.84, 06-Feb-2018
562,Revenue,CAHD,Home Care - Elderly - South,Other Small Contracts,Firstpoint Homecare Ltd,642.40, 06-Feb-2018
563,Revenue,CAHD,Home Care - Elderly - North,Day Care / Social Activities,Firstpoint Homecare Ltd,132.00, 06-Feb-2018
564,Revenue,CAHD,Home Care - Elderly - South,Day Care / Social Activities,Fourways Care Limited,39.12, 06-Feb-2018
565,Revenue,CAHD,Home Care - Elderly - South,Other Small Contracts,Fourways Care Limited,6360.43, 06-Feb-2018
566,Revenue,CAHD,Home Care - Elderly - North,Other Small Contracts,Fourways Care Limited,4410.78, 06-Feb-2018
567,Revenue,CAHD,Younger MH non-res purchasing,Other Small Contracts,Fourways Care Limited,308.07, 06-Feb-2018
568,Revenue,CAHD,Home Care - Elderly - South,Day Care / Social Activities,Fourways Care Limited,39.12, 06-Feb-2018
569,Revenue,CAHD,Home Care - Elderly - South,Other Small Contracts,Fourways Care Limited,6583.33, 06-Feb-2018
570,Revenue,CAHD,Home Care - Elderly - North,Other Small Contracts,Fourways Care Limited,3814.20, 06-Feb-2018
571,Revenue,CAHD,Younger MH non-res purchasing,Other Small Contracts,Fourways Care Limited,234.72, 06-Feb-2018
572,Revenue,CAHD,Home Care - Elderly - South,Other Small Contracts,Helping Hands Homecare,300.16, 06-Feb-2018
573,Revenue,CAHD,Home Care - Elderly - North,Day Care / Social Activities,Helping Hands Homecare,215.04, 06-Feb-2018
574,Revenue,CAHD,Home Care - Elderly - North,Other Small Contracts,Helping Hands Homecare,4420.85, 06-Feb-2018
575,Revenue,CAHD,Home Care - Elderly - South,Other Small Contracts,Helping Hands Homecare,864.64, 06-Feb-2018
576,Revenue,CAHD,Home Care - Elderly - North,Day Care / Social Activities,Helping Hands Homecare,206.08, 06-Feb-2018
577,Revenue,CAHD,Home Care - Elderly - North,Other Small Contracts,Helping Hands Homecare,4963.50, 06-Feb-2018
578,Revenue,CAHD,Younger MH non-res purchasing,Other Small Contracts,Helping Hands Homecare,66.84, 06-Feb-2018
579,Revenue,CAHD,Home Care - Elderly - South,Other Small Contracts,Helping Hands Homecare,658.56, 06-Feb-2018
580,Revenue,CAHD,Home Care - Elderly - North,Day Care / Social Activities,Helping Hands Homecare,120.96, 06-Feb-2018
581,Revenue,CAHD,Home Care - Elderly - North,Other Small Contracts,Helping Hands Homecare,3582.54, 06-Feb-2018
582,Revenue,CAHD,Younger MH non-res purchasing,Other Small Contracts,Helping Hands Homecare,66.84, 06-Feb-2018
583,Revenue,CAHD,Extra Care Housing,Private & Voluntary Home Care,Housing 21,34872.50, 06-Feb-2018
584,Revenue,CAHD,Home Care - Elderly - South,Other Small Contracts,Kensington Community Care,2074.24, 06-Feb-2018
585,Revenue,CAHD,Home Care - Elderly - North,Other Small Contracts,Kensington Community Care,4502.40, 06-Feb-2018
586,Revenue,CAHD,Home Care - Elderly - South,Other Small Contracts,Kensington Community Care,2132.48, 06-Feb-2018
587,Revenue,CAHD,Home Care - Elderly - North,Other Small Contracts,Kensington Community Care,5322.24, 06-Feb-2018
588,Revenue,CAHD,CAH Director,Consultants Fees,Korn Ferry,900.00, 06-Feb-2018
589,Revenue,CAHD,Home Care - Elderly - South,Other Small Contracts,Kumari Care Limited,406.64, 06-Feb-2018
590,Revenue,CAHD,Home Care - Elderly - North,Other Small Contracts,Kumari Care Limited,1001.98, 06-Feb-2018
591,Revenue,CAHD,Home Care - Elderly - South,Other Small Contracts,Kumari Care Limited,411.06, 06-Feb-2018
592,Revenue,CAHD,Home Care - Elderly - North,Other Small Contracts,Kumari Care Limited,1001.98, 06-Feb-2018
593,Revenue,CAHD,Homeless - Private Sector Leasing,Other Supplies & Services,Individual,570.00, 06-Feb-2018
594,Revenue,CAHD,Home Care - Elderly - South,Other Small Contracts,Nestor T/A Allied Healthcare,2529.88, 06-Feb-2018
595,Revenue,CAHD,Home Care - Elderly - North,Other Small Contracts,Nestor T/A Allied Healthcare,6440.56, 06-Feb-2018
596,Revenue,CAHD,Home Care - Elderly - North,Other Small Contracts,Seraphim Home Care,582.40, 06-Feb-2018
597,Revenue,CAHD,Home Care - Elderly - South,Day Care / Social Activities,Smile Independent Living Support Limited,96.00,[] 06-Feb-2018
598,Revenue,CAHD,Home Care - Elderly - South,Other Small Contracts,Smile Independent Living Support Limited,249.60, 06-Feb-2018
599,Revenue,CAHD,Home Care - Elderly - North,Day Care / Social Activities,Smile Independent Living Support Limited,384.00, 06-Feb-2018
600,Revenue,CAHD,Home Care - Elderly - North,Other Small Contracts,Smile Independent Living Support Limited,2855.36, 06-Feb-2018
601,Revenue,CAHD,Home Care - Elderly - North,Supported Living,Smile Independent Living Support Limited,163.20, 06-Feb-2018
602,Revenue,CAHD,Home Care - Elderly - North,Other Small Contracts,Thornbury Nursing Services,1309.31,[] 06-Feb-2018
603,Revenue,CAHD,Home Care - Elderly - North,Other Small Contracts,Thornbury Nursing Services,1010.40, 06-Feb-2018
604,Revenue,CAHD,Home Care - Elderly - North,Other Small Contracts,Thornbury Nursing Services,2249.36, 06-Feb-2018
605,Revenue,CAHD,Home Care - Elderly - North,Supported Living,Willowbank Care Limited,11513.36, 06-Feb-2018
606,Revenue,CAHD,Home Care - Elderly - South,Other Small Contracts,AliMo Care Ltd,1070.72, 07-Feb-2018
607,Revenue,CAHD,Home Care - Elderly - South,Other Small Contracts,AliMo Care Ltd,1079.68, 07-Feb-2018
608,Revenue,CAHD,Tenancy Start Up Scheme,Other Supplies & Services,Andrews letting & Management Ltd,1933.23, 07-Feb-2018
609,Revenue,CAHD,Woodleaze,Refuse Collection Charges,Cannon Hygiene Limited,460.00, 07-Feb-2018
610,Revenue,CAHD,Home Care - Elderly - South,Other Small Contracts,Caring Comes 1st Ltd,2131.20, 07-Feb-2018
611,Revenue,CAHD,Bed and Breakfast,Bed & Breakfast,Individual,441.00, 07-Feb-2018
612,Revenue,CAHD,18-25 Year Olds,Respite Planned - Residential,Ruskinmill Trust Ltd,19912.00, 07-Feb-2018
613,Revenue,CAHD,Training - Adult Services,Training Expenses,Individual,500.00, 07-Feb-2018
614,Revenue,CAHD,Training - Adult Services,Training Expenses,Individual,500.00, 07-Feb-2018
615,Revenue,CAHD,NTS Grant - Trainee Social Wor,Training Expenses,Swann Training And Consultancy Limited,3165.00, 07-Feb-2018
616,Revenue,CAHD,Telecare,Other Supplies & Services,Tunstall Healthcare (UK) Limited,627.00, 07-Feb-2018
617,Revenue,CAHD,Home Care - Elderly - South,Other Small Contracts,Caring Comes 1st Ltd,577.20, 08-Feb-2018
618,Revenue,CAHD,Home Care - Elderly - South,Other Small Contracts,Cherish Able Care Limited,8060.21, 08-Feb-2018
619,Revenue,CAHD,Home Care - Elderly - North,Other Small Contracts,Cherish Able Care Limited,3801.40, 08-Feb-2018
620,Revenue,CAHD,Home Care - Elderly - North,Other Small Contracts,Clover Health and Home Care Ltd,2270.00, 08-Feb-2018
621,Revenue,CAHD,Bed and Breakfast,Bed & Breakfast,Individual,532.00, 08-Feb-2018
622,Revenue,CAHD,Home Care - Elderly - North,Other Supplies & Services,Hanover Housing Association,563.46, 08-Feb-2018
623,Revenue,CAHD,Bed and Breakfast,Bed & Breakfast,Knightstone Housing Association Limited,1384.38, 08-Feb-2018
624,Revenue,CAHD,Bed and Breakfast,Bed & Breakfast,Knightstone Housing Association Limited,922.92, 08-Feb-2018
625,Revenue,CAHD,Intermediate Care Accommodation,Other Supplies & Services,Merlin Housing Society (Service Charges),530.29, 08-Feb-2018
626,Revenue,CAHD,Home Care - Elderly - South,Supported Living,Moving On,1118.40, 08-Feb-2018
627,Revenue,CAHD,Home Care - Elderly - South,Day Care / Social Activities,Moving On,1379.36, 08-Feb-2018
628,Revenue,CAHD,Carer's Grant - MH Eld,Supported Living,Moving On,1565.76, 08-Feb-2018
629,Revenue,CAHD,Home Care - Elderly - South,Other Small Contracts,Moving On,2162.24, 08-Feb-2018
630,Revenue,CAHD,Social Lettings Agency,Fees - General,Individual,10.53, 08-Feb-2018
631,Revenue,CAHD,Social Lettings Agency,Other Supplies & Services,Individual,595.11, 08-Feb-2018
632,Revenue,CAHD,Community Support - MH < 65,Preventative Assistance,Individual,705.00, 08-Feb-2018
633,Revenue,CAHD,Community Support - South,Preventative Assistance,Individual,930.00, 08-Feb-2018
634,Revenue,CAHD,Social Lettings Agency,Fees - General,Individual,10.53, 08-Feb-2018
635,Revenue,CAHD,Social Lettings Agency,Other Supplies & Services,Individual,595.11, 08-Feb-2018
636,Revenue,CAHD,Home Care - Elderly - South,Day Care / Social Activities,The Camphill Village Trust,735.00, 08-Feb-2018
637,Revenue,CAHD,Home Care - Elderly - North,Other Small Contracts,Thornbury Nursing Services,871.74, 08-Feb-2018
638,Revenue,CAHD,Prison Assessments & Costs,Other Supplies & Services,Agincare UK Limited,10021.80, 09-Feb-2018
639,Revenue,CAHD,Community Promoting Independence Team,Other Supplies & Services,Bluebird Care (South Gloucestershire),600.00, 09-Feb-2018
640,Revenue,CAHD,Home Care - Elderly - South,Other Small Contracts,Brunelcare,1845.76, 09-Feb-2018
641,Revenue,CAHD,Home Care - Elderly - North,Other Small Contracts,Brunelcare,1088.64, 09-Feb-2018
642,Revenue,CAHD,Cambrian Green Day Service,Catering - Client Meals/Pupil Sch. Meals,Cambrian Court Dining,643.50, 09-Feb-2018
643,Revenue,CAHD,Home Care - Elderly - North,Day Care / Social Activities,Camphill Communities Thornbury Limited,618.55, 09-Feb-2018
644,Revenue,CAHD,Home Care - Elderly - North,Other Small Contracts,Camphill Communities Thornbury Limited,53.40, 09-Feb-2018
645,Revenue,CAHD,Home Care - Elderly - North,Supported Living,Camphill Communities Thornbury Limited,685.30, 09-Feb-2018
646,Revenue,CAHD,Home Care - Elderly - South,Other Small Contracts,Cintre,382.94, 09-Feb-2018
647,Revenue,CAHD,Home Care - Elderly - North,Day Care / Social Activities,Cintre,121.42, 09-Feb-2018
648,Revenue,CAHD,Home Care - Elderly - North,Other Small Contracts,Cintre,527.71, 09-Feb-2018
649,Revenue,CAHD,Home Care - Elderly - South,Other Small Contracts,Cintre,368.93, 09-Feb-2018
650,Revenue,CAHD,Home Care - Elderly - North,Day Care / Social Activities,Cintre,130.76, 09-Feb-2018
651,Revenue,CAHD,Home Care - Elderly - North,Other Small Contracts,Cintre,649.13, 09-Feb-2018
652,Revenue,CAHD,Home Care - Elderly - North,Other Small Contracts,Complimenting Care and Training Services (CCTS) Lt,7156.12, 09-Feb-2018
653,Revenue,CAHD,Bed and Breakfast,Bed & Breakfast,Individual,441.00, 09-Feb-2018
654,Revenue,CAHD,Social Lettings Agency,Fees - General,Individual,12.22, 09-Feb-2018
655,Revenue,CAHD,Social Lettings Agency,Other Supplies & Services,Individual,690.32, 09-Feb-2018
656,Revenue,CAHD,18-25 Year Olds,Supported Living,Lloyds TSB Commercial Finance Limited,2916.48, 09-Feb-2018
657,Revenue,CAHD,Home Care - Elderly - South,Day Care / Social Activities,Lloyds TSB Commercial Finance Limited,5492.48, 09-Feb-2018
658,Revenue,CAHD,Home Care - Elderly - South,Other Small Contracts,Lloyds TSB Commercial Finance Limited,8588.86, 09-Feb-2018
659,Revenue,CAHD,Home Care - Elderly - South,Supported Living,Lloyds TSB Commercial Finance Limited,6879.70, 09-Feb-2018
660,Revenue,CAHD,Home Care - Elderly - North,Day Care / Social Activities,Lloyds TSB Commercial Finance Limited,215.04, 09-Feb-2018
661,Revenue,CAHD,Home Care - Elderly - North,Supported Living,Lloyds TSB Commercial Finance Limited,1590.40, 09-Feb-2018
662,Revenue,CAHD,Younger MH non-res purchasing,Other Small Contracts,Lloyds TSB Commercial Finance Limited,10950.88, 09-Feb-2018
663,Revenue,CAHD,18-25 Year Olds,Other Small Contracts,Milestones Supported Living Services,807.84, 09-Feb-2018
664,Revenue,CAHD,Home Care - Elderly - South,Day Care / Social Activities,Milestones Supported Living Services,3524.49, 09-Feb-2018
665,Revenue,CAHD,Home Care - Elderly - South,Other Small Contracts,Milestones Supported Living Services,13265.99, 09-Feb-2018
666,Revenue,CAHD,Home Care - Elderly - North,Day Care / Social Activities,Milestones Supported Living Services,321.30, 09-Feb-2018
667,Revenue,CAHD,Home Care - Elderly - North,Other Small Contracts,Milestones Supported Living Services,7979.62, 09-Feb-2018
668,Revenue,CAHD,Home Care - Elderly - North,Supported Living,Milestones Supported Living Services,146.88, 09-Feb-2018
669,Revenue,CAHD,Day Care - North,Day Care / Social Activities,Milestones Supported Living Services,146.88, 09-Feb-2018
670,Revenue,CAHD,Younger MH non-res purchasing,Day Care / Social Activities,Milestones Supported Living Services,36.72, 09-Feb-2018
671,Revenue,CAHD,Younger MH non-res purchasing,Other Small Contracts,Milestones Supported Living Services,128.51, 09-Feb-2018
672,Revenue,CAHD,Services,Services,Individual,789.95, 09-Feb-2018
673,Revenue,CAHD,Home Care - Elderly - South,Supported Living,Moving On,1118.40, 09-Feb-2018
674,Revenue,CAHD,Services,Services,Individual,2679.90, 09-Feb-2018
675,Revenue,CAHD,Social Lettings Agency,Fees - General,Individual,13.20, 09-Feb-2018
676,Revenue,CAHD,Social Lettings Agency,Other Supplies & Services,Individual,1020.80, 09-Feb-2018
677,Revenue,CAHD,Services,Services,Individual,2087.18, 09-Feb-2018
678,Revenue,CAHD,Social Lettings Agency,Fees - General,Individual,16.85, 09-Feb-2018
679,Revenue,CAHD,Social Lettings Agency,Other Supplies & Services,Individual,1000.00, 09-Feb-2018
680,Revenue,CAHD,Services,Services,Individual,2393.38, 09-Feb-2018
681,Revenue,CAHD,Home Care - Elderly - South,Other Small Contracts,Network Health & Social Care T/A Network Ventures,2664.07, 09-Feb-2018
682,Revenue,CAHD,Home Care - Elderly - North,Other Small Contracts,Network Health & Social Care T/A Network Ventures,5351.61, 09-Feb-2018
683,Revenue,CAHD,Alexandra Way,Agency Staff (Operational)/PCT Pay,Prestige Nursing,2185.84, 09-Feb-2018
684,Revenue,CAHD,Home Care - Elderly - South,Other Small Contracts,Right At Home (Bristol),694.82, 09-Feb-2018
685,Revenue,CAHD,Social Lettings Agency,Fees - General,Individual,19.09, 09-Feb-2018
686,Revenue,CAHD,Social Lettings Agency,Other Supplies & Services,Individual,649.09, 09-Feb-2018
687,Revenue,CAHD,18-25 Year Olds,Other Small Contracts,Supported Independence Limited,873.60, 09-Feb-2018
688,Revenue,CAHD,18-25 Year Olds,Supported Living,Supported Independence Limited,3348.80, 09-Feb-2018
689,Revenue,CAHD,Home Care - Elderly - South,Other Small Contracts,Supported Independence Limited,1154.40, 09-Feb-2018
690,Revenue,CAHD,Home Care - Elderly - North,Day Care / Social Activities,Supported Independence Limited,249.60, 09-Feb-2018
691,Revenue,CAHD,Home Care - Elderly - North,Other Small Contracts,Supported Independence Limited,228.80, 09-Feb-2018
692,Revenue,CAHD,Younger MH non-res purchasing,Day Care / Social Activities,Supported Independence Limited,254.80, 09-Feb-2018
693,Revenue,CAHD,Younger MH non-res purchasing,Other Small Contracts,Supported Independence Limited,2110.23, 09-Feb-2018
694,Revenue,CAHD,Younger MH non-res purchasing,Supported Living,Supported Independence Limited,187.19,[] 09-Feb-2018
695,Revenue,CAHD,Home Care - Elderly - North,Day Care / Social Activities,Supported Independence Limited,984.96, 09-Feb-2018
696,Revenue,CAHD,Minor Adaptations Service,Operational Equipment,Tewkesbury Saw Co Limited,451.22, 09-Feb-2018
697,Revenue,CAHD,Home Care - Elderly - North,Other Small Contracts,Thornbury Nursing Services,736.60,[] 09-Feb-2018
698,Revenue,CAHD,Home Care - Elderly - North,Other Small Contracts,Thornbury Nursing Services,1783.45, 09-Feb-2018
699,Revenue,CAHD,Home Care - Elderly - North,Other Small Contracts,Thornbury Nursing Services,605.53,[] 09-Feb-2018
700,Revenue,CAHD,Home Care - Elderly - South,Other Small Contracts,United Response,6765.12, 09-Feb-2018
701,Revenue,CAHD,Home Care - Elderly - North,Other Small Contracts,United Response,4226.35, 09-Feb-2018
702,Revenue,CAHD,Home Care - Elderly - North,Supported Living,United Response,3170.93, 09-Feb-2018
703,Revenue,CAHD,Home Care - Elderly - North,Other Small Contracts,Willowbank Care Limited,1569.12, 09-Feb-2018
704,Revenue,CAHD,Home Care - Elderly - South,Day Care / Social Activities,3 Trees Community Support Ltd,93.40, 12-Feb-2018
705,Revenue,CAHD,Home Care - Elderly - North,Day Care / Social Activities,3 Trees Community Support Ltd,1372.98, 12-Feb-2018
706,Revenue,CAHD,Home Care - Elderly - North,Other Small Contracts,3 Trees Community Support Ltd,709.84, 12-Feb-2018
707,Revenue,CAHD,Home Care - Elderly - North,Supported Living,3 Trees Community Support Ltd,7419.16, 12-Feb-2018
708,Revenue,CAHD,Home Care - Elderly - South,Other Small Contracts,Bluebird Care (South Gloucestershire),221.88, 12-Feb-2018
709,Revenue,CAHD,Home Care - Elderly - North,Other Small Contracts,Bluebird Care (South Gloucestershire),1553.07, 12-Feb-2018
710,Revenue,CAHD,Pathway 1 - Re-Ablement Home Care,Private & Voluntary Home Care,Brunelcare,24132.35, 12-Feb-2018
711,Revenue,CAHD,Home Care - Elderly - South,Other Small Contracts,Care 1st Homecare,2798.40, 12-Feb-2018
712,Revenue,CAHD,Home Care - Elderly - North,Other Small Contracts,Care 1st Homecare,3270.80, 12-Feb-2018
713,Revenue,CAHD,Younger MH non-res purchasing,Other Small Contracts,Care 1st Homecare,107.52, 12-Feb-2018
714,Revenue,CAHD,Home Care - Elderly - South,Other Small Contracts,Care 1st Homecare,2838.32, 12-Feb-2018
715,Revenue,CAHD,Home Care - Elderly - North,Other Small Contracts,Care 1st Homecare,3294.72, 12-Feb-2018
716,Revenue,CAHD,Younger MH non-res purchasing,Other Small Contracts,Care 1st Homecare,120.96, 12-Feb-2018
717,Revenue,CAHD,Home Care - Elderly - South,Other Small Contracts,Care Horizons Limited,776.16, 12-Feb-2018
718,Revenue,CAHD,Home Care - Elderly - North,Day Care / Social Activities,Care Horizons Limited,388.08, 12-Feb-2018
719,Revenue,CAHD,Home Care - Elderly - North,Other Small Contracts,Care Horizons Limited,341.88, 12-Feb-2018
720,Revenue,CAHD,Younger MH non-res purchasing,Other Small Contracts,Care Horizons Limited,184.80, 12-Feb-2018
721,Revenue,CAHD,Bed and Breakfast,Bed & Breakfast,Connolly & Callaghan Limited,539.00, 12-Feb-2018
722,Revenue,CAHD,Bed and Breakfast,Bed & Breakfast,Connolly & Callaghan Limited,420.00, 12-Feb-2018
723,Revenue,CAHD,Bed and Breakfast,Bed & Breakfast,Connolly & Callaghan Limited,448.00, 12-Feb-2018
724,Revenue,CAHD,Bed and Breakfast,Bed & Breakfast,Connolly & Callaghan Limited,581.00, 12-Feb-2018
725,Revenue,CAHD,Bed and Breakfast,Bed & Breakfast,Connolly & Callaghan Limited,490.00, 12-Feb-2018
726,Revenue,CAHD,Tenancy Start Up Scheme,Other Supplies & Services,Connolly & Callaghan Limited,616.00, 12-Feb-2018
727,Revenue,CAHD,Bed and Breakfast,Bed & Breakfast,Connolly & Callaghan Limited,742.00, 12-Feb-2018
728,Revenue,CAHD,Home Care - Elderly - South,Day Care / Social Activities,DoCare Limited,72.38, 12-Feb-2018
729,Revenue,CAHD,Home Care - Elderly - South,Other Small Contracts,DoCare Limited,1289.81, 12-Feb-2018
730,Revenue,CAHD,Home Care - Elderly - North,Other Small Contracts,DoCare Limited,6197.69, 12-Feb-2018
731,Revenue,CAHD,Home Care - Elderly - South,Other Small Contracts,Elite Home Care Ltd,9084.34, 12-Feb-2018
732,Revenue,CAHD,Home Care - Elderly - South,Supported Living,Elite Home Care Ltd,54.48, 12-Feb-2018
733,Revenue,CAHD,Home Care - Elderly - North,Other Small Contracts,Elite Home Care Ltd,699.16, 12-Feb-2018
734,Revenue,CAHD,Home Care - Elderly - South,Other Small Contracts,Firstpoint Homecare Ltd,629.20, 12-Feb-2018
735,Revenue,CAHD,Home Care - Elderly - North,Day Care / Social Activities,Firstpoint Homecare Ltd,132.00, 12-Feb-2018
736,Revenue,CAHD,Home Care - Elderly - South,Day Care / Social Activities,Fourways Care Limited,78.24, 12-Feb-2018
737,Revenue,CAHD,Home Care - Elderly - South,Other Small Contracts,Fourways Care Limited,6786.54, 12-Feb-2018
738,Revenue,CAHD,Home Care - Elderly - North,Other Small Contracts,Fourways Care Limited,4156.50, 12-Feb-2018
739,Revenue,CAHD,Younger MH non-res purchasing,Other Small Contracts,Fourways Care Limited,293.40, 12-Feb-2018
740,Revenue,CAHD,Home Care - Elderly - South,Day Care / Social Activities,Headway Bristol,545.40, 12-Feb-2018
741,Revenue,CAHD,Home Care - Elderly - South,Other Small Contracts,Headway Bristol,64.80, 12-Feb-2018
742,Revenue,CAHD,Home Care - Elderly - North,Day Care / Social Activities,Headway Bristol,1144.80, 12-Feb-2018
743,Revenue,CAHD,Home Care - Elderly - North,Other Small Contracts,Headway Bristol,259.20, 12-Feb-2018
744,Revenue,CAHD,Younger MH non-res purchasing,Day Care / Social Activities,Headway Bristol,86.40, 12-Feb-2018
745,Revenue,CAHD,18-25 Year Olds,Supported Living,Lloyds TSB Commercial Finance Limited,2916.48, 12-Feb-2018
746,Revenue,CAHD,Home Care - Elderly - South,Day Care / Social Activities,Lloyds TSB Commercial Finance Limited,5752.32, 12-Feb-2018
747,Revenue,CAHD,Home Care - Elderly - South,Other Small Contracts,Lloyds TSB Commercial Finance Limited,9612.57, 12-Feb-2018
748,Revenue,CAHD,Home Care - Elderly - South,Supported Living,Lloyds TSB Commercial Finance Limited,6773.72, 12-Feb-2018
749,Revenue,CAHD,Home Care - Elderly - North,Day Care / Social Activities,Lloyds TSB Commercial Finance Limited,215.04, 12-Feb-2018
750,Revenue,CAHD,Home Care - Elderly - North,Supported Living,Lloyds TSB Commercial Finance Limited,2016.00, 12-Feb-2018
751,Revenue,CAHD,Younger MH non-res purchasing,Other Small Contracts,Lloyds TSB Commercial Finance Limited,10928.88, 12-Feb-2018
752,Revenue,CAHD,Social Lettings Agency,Fees - General,Individual,10.50, 12-Feb-2018
753,Revenue,CAHD,Social Lettings Agency,Other Supplies & Services,Individual,643.48, 12-Feb-2018
754,Revenue,CAHD,Home Care - Elderly - South,Day Care / Social Activities,Mrs B Kimber -  CM2000,1023.94, 12-Feb-2018
755,Revenue,CAHD,Home Care - Elderly - South,Other Small Contracts,Mrs B Kimber -  CM2000,7283.87, 12-Feb-2018
756,Revenue,CAHD,Home Care - Elderly - South,Supported Living,Mrs B Kimber -  CM2000,31.36, 12-Feb-2018
757,Revenue,CAHD,Home Care - Elderly - North,Day Care / Social Activities,Mrs B Kimber -  CM2000,268.80, 12-Feb-2018
758,Revenue,CAHD,Home Care - Elderly - North,Other Small Contracts,Mrs B Kimber -  CM2000,3950.00, 12-Feb-2018
759,Revenue,CAHD,Social Lettings Agency,Fees - General,Individual,10.53, 12-Feb-2018
760,Revenue,CAHD,Social Lettings Agency,Other Supplies & Services,Individual,595.11, 12-Feb-2018
761,Revenue,CAHD,Home Care - Elderly - South,Other Small Contracts,Nestor T/A Allied Healthcare,2742.54, 12-Feb-2018
762,Revenue,CAHD,Home Care - Elderly - North,Other Small Contracts,Nestor T/A Allied Healthcare,6457.92, 12-Feb-2018
763,Revenue,CAHD,Home Care - Elderly - North,Other Small Contracts,Seraphim Home Care,645.12, 12-Feb-2018
764,Revenue,CAHD,Home Care - Elderly - South,Day Care / Social Activities,Smile Independent Living Support Limited,96.00,[] 12-Feb-2018
765,Revenue,CAHD,Home Care - Elderly - South,Other Small Contracts,Smile Independent Living Support Limited,177.60, 12-Feb-2018
766,Revenue,CAHD,Home Care - Elderly - North,Day Care / Social Activities,Smile Independent Living Support Limited,384.00, 12-Feb-2018
767,Revenue,CAHD,Home Care - Elderly - North,Other Small Contracts,Smile Independent Living Support Limited,2855.36, 12-Feb-2018
768,Revenue,CAHD,Home Care - Elderly - North,Supported Living,Smile Independent Living Support Limited,163.20, 12-Feb-2018
769,Revenue,CAHD,18-25 Year Olds,Other Small Contracts,Supported Independence Limited,1747.20, 12-Feb-2018
770,Revenue,CAHD,Home Care - Elderly - South,Other Small Contracts,Supported Independence Limited,1658.80, 12-Feb-2018
771,Revenue,CAHD,Home Care - Elderly - North,Day Care / Social Activities,Supported Independence Limited,358.80, 12-Feb-2018
772,Revenue,CAHD,Home Care - Elderly - North,Other Small Contracts,Supported Independence Limited,312.00,[] 12-Feb-2018
773,Revenue,CAHD,Home Care - Elderly - North,Supported Living,Supported Independence Limited,83.20, 12-Feb-2018
774,Revenue,CAHD,Younger MH non-res purchasing,Day Care / Social Activities,Supported Independence Limited,332.80,[] 12-Feb-2018
775,Revenue,CAHD,Younger MH non-res purchasing,Other Small Contracts,Supported Independence Limited,2080.00, 12-Feb-2018
776,Revenue,CAHD,Younger MH non-res purchasing,Supported Living,Supported Independence Limited,213.20, 12-Feb-2018
777,Revenue,CAHD,18-25 Year Olds,Day Care / Social Activities,The Brandon Trust,112.08,[] 12-Feb-2018
778,Revenue,CAHD,18-25 Year Olds,Other Small Contracts,The Brandon Trust,88.73, 12-Feb-2018
779,Revenue,CAHD,Home Care - Elderly - South,Day Care / Social Activities,The Brandon Trust,1327.70, 12-Feb-2018
780,Revenue,CAHD,Home Care - Elderly - South,Other Small Contracts,The Brandon Trust,354.92,[] 12-Feb-2018
781,Revenue,CAHD,Home Care - Elderly - North,Day Care / Social Activities,The Brandon Trust,130.76, 12-Feb-2018
782,Revenue,CAHD,Home Care - Elderly - North,Other Small Contracts,The Brandon Trust,56.04, 12-Feb-2018
783,Revenue,CAHD,Home Care - Elderly - North,Supported Living,The Brandon Trust,2254.56, 12-Feb-2018
784,Revenue,CAHD,18-25 Year Olds,Day Care / Social Activities,The Brandon Trust,555.73, 12-Feb-2018
785,Revenue,CAHD,18-25 Year Olds,Other Small Contracts,The Brandon Trust,102.74,[] 12-Feb-2018
786,Revenue,CAHD,Home Care - Elderly - South,Day Care / Social Activities,The Brandon Trust,2279.43, 12-Feb-2018
787,Revenue,CAHD,Home Care - Elderly - South,Other Small Contracts,The Brandon Trust,891.97, 12-Feb-2018
788,Revenue,CAHD,Home Care - Elderly - North,Day Care / Social Activities,The Brandon Trust,588.42, 12-Feb-2018
789,Revenue,CAHD,Home Care - Elderly - North,Other Small Contracts,The Brandon Trust,56.04, 12-Feb-2018
790,Revenue,CAHD,Home Care - Elderly - North,Supported Living,The Brandon Trust,2251.74, 12-Feb-2018
791,Revenue,CAHD,18-25 Year Olds,Day Care / Social Activities,The Brandon Trust,611.77, 12-Feb-2018
792,Revenue,CAHD,18-25 Year Olds,Other Small Contracts,The Brandon Trust,270.86, 12-Feb-2018
793,Revenue,CAHD,Home Care - Elderly - South,Day Care / Social Activities,The Brandon Trust,2998.06, 12-Feb-2018
794,Revenue,CAHD,Home Care - Elderly - South,Other Small Contracts,The Brandon Trust,929.33, 12-Feb-2018
795,Revenue,CAHD,Home Care - Elderly - North,Day Care / Social Activities,The Brandon Trust,723.85, 12-Feb-2018
796,Revenue,CAHD,Home Care - Elderly - North,Other Small Contracts,The Brandon Trust,56.04,[] 12-Feb-2018
797,Revenue,CAHD,Home Care - Elderly - North,Supported Living,The Brandon Trust,2254.56, 12-Feb-2018
798,Revenue,CAHD,Bed Purchasing - North,Permanent Nursing,.,4800.00, 13-Feb-2018
799,Revenue,CAHD,Bed Purchasing - Southmead Hospital,Permanent Nursing,.,4862.40, 13-Feb-2018
800,Revenue,CAHD,Bed Purchasing - South,Permanent Nursing,.,2516.48, 13-Feb-2018
801,Revenue,CAHD,Bed Purchasing - Elderly S117- North,Permanent Nursing,.,3901.76, 13-Feb-2018
802,Revenue,CAHD,Bed Purchasing - South,Permanent Residential,.,4200.00, 13-Feb-2018
803,Revenue,CAHD,Bed Purchasing - Elderly S117- North,Permanent Nursing,.,4229.28, 13-Feb-2018
804,Revenue,CAHD,Bed Purchasing - North,Permanent Nursing,.,4862.40, 13-Feb-2018
805,Revenue,CAHD,Bed Purchasing - South,Permanent Nursing,.,3428.57, 13-Feb-2018
806,Revenue,CAHD,Bed Purchasing - Elderly S117- North,Permanent Nursing,.,5420.20, 13-Feb-2018
807,Revenue,CAHD,Bed Purchasing - South,Permanent Nursing,.,4800.00, 13-Feb-2018
808,Revenue,CAHD,Bed Purchasing - North,Permanent Nursing,.,3294.28, 13-Feb-2018
809,Revenue,CAHD,South Glos Users in South Glos Homes,Permanent Nursing,.,620.20, 13-Feb-2018
810,Revenue,CAHD,Bed Purchasing - South,Permanent Nursing,.,3349.56, 13-Feb-2018
811,Revenue,CAHD,South Glos Users in South Glos Homes,Permanent Nursing,.,620.20, 13-Feb-2018
812,Revenue,CAHD,Bed Purchasing - North,Permanent Nursing,.,4400.00, 13-Feb-2018
813,Revenue,CAHD,South Glos Users in South Glos Homes,Permanent Nursing,.,620.20, 13-Feb-2018
814,Revenue,CAHD,Bed Purchasing - North,Permanent Nursing,.,4400.00, 13-Feb-2018
815,Revenue,CAHD,Bed Purchasing - North,Permanent Nursing,.,1571.43, 13-Feb-2018
816,Revenue,CAHD,Bed Purchasing - South,Permanent Nursing,.,3294.28, 13-Feb-2018
817,Revenue,CAHD,South Glos Users in South Glos Homes,Permanent Nursing,.,620.20, 13-Feb-2018
818,Revenue,CAHD,Bed Purchasing - Southmead Hospital,Permanent Nursing,.,4800.00, 13-Feb-2018
819,Revenue,CAHD,South Glos Users in South Glos Homes,Permanent Nursing,.,620.20, 13-Feb-2018
820,Revenue,CAHD,South Glos Users in South Glos Homes,Permanent Nursing,.,620.20, 13-Feb-2018
821,Revenue,CAHD,Bed Purchasing - North,Permanent Residential,.,4254.60, 13-Feb-2018
822,Revenue,CAHD,South Glos Users in South Glos Homes,Permanent Nursing,.,620.20, 13-Feb-2018
823,Revenue,CAHD,Bed Purchasing - South,Permanent Nursing,.,3621.48, 13-Feb-2018
824,Revenue,CAHD,South Glos Users in South Glos Homes,Permanent Nursing,.,620.20, 13-Feb-2018
825,Revenue,CAHD,Bed Purchasing - North,Permanent Nursing,.,4400.00, 13-Feb-2018
826,Revenue,CAHD,Bed Purchasing - North,Permanent Nursing,.,1100.00, 13-Feb-2018
827,Revenue,CAHD,Bed Purchasing - Southmead Hospital,Permanent Nursing,.,3824.08, 13-Feb-2018
828,Revenue,CAHD,South Glos Users in South Glos Homes,Permanent Nursing,.,620.20, 13-Feb-2018
829,Revenue,CAHD,South Glos Users in South Glos Homes,Permanent Nursing,.,620.20, 13-Feb-2018
830,Revenue,CAHD,South Glos Users in South Glos Homes,Permanent Nursing,.,620.20, 13-Feb-2018
831,Revenue,CAHD,Bed Purchasing - North,Permanent Nursing,.,3476.80, 13-Feb-2018
832,Revenue,CAHD,South Glos Users in South Glos Homes,Permanent Nursing,.,620.20, 13-Feb-2018
833,Revenue,CAHD,Bed Purchasing - North,Permanent Nursing,.,620.86, 13-Feb-2018
834,Revenue,CAHD,South Glos Users in South Glos Homes,Permanent Nursing,.,620.20, 13-Feb-2018
835,Revenue,CAHD,South Glos Users in South Glos Homes,Permanent Nursing,.,620.20, 13-Feb-2018
836,Revenue,CAHD,Bed Purchasing - North,Fees & Charges Income - General,.,633.84, 13-Feb-2018
837,Revenue,CAHD,Bed Purchasing - North,Permanent Nursing,.,4228.56, 13-Feb-2018
838,Revenue,CAHD,South Glos Users in South Glos Homes,Permanent Nursing,.,620.20, 13-Feb-2018
839,Revenue,CAHD,South Glos Users in South Glos Homes,Permanent Nursing,.,620.20, 13-Feb-2018
840,Revenue,CAHD,South Glos Users in South Glos Homes,Permanent Nursing,.,620.20, 13-Feb-2018
841,Revenue,CAHD,South Glos Users in South Glos Homes,Permanent Nursing,.,620.20, 13-Feb-2018
842,Revenue,CAHD,South Glos Users in South Glos Homes,Permanent Nursing,.,620.20, 13-Feb-2018
843,Revenue,CAHD,South Glos Users in South Glos Homes,Permanent Nursing,.,620.20, 13-Feb-2018
844,Revenue,CAHD,South Glos Users in South Glos Homes,Permanent Nursing,.,620.20, 13-Feb-2018
845,Revenue,CAHD,South Glos Users in South Glos Homes,Permanent Nursing,.,620.20, 13-Feb-2018
846,Revenue,CAHD,Bed Purchasing - North,Permanent Nursing,.,4400.00, 13-Feb-2018
847,Revenue,CAHD,South Glos Users in South Glos Homes,Permanent Nursing,.,620.20, 13-Feb-2018
848,Revenue,CAHD,South Glos Users in South Glos Homes,Permanent Nursing,.,620.20, 13-Feb-2018
849,Revenue,CAHD,South Glos Users in South Glos Homes,Permanent Nursing,.,620.20, 13-Feb-2018
850,Revenue,CAHD,Bed Purchasing - North,Permanent Nursing,.,4179.80, 13-Feb-2018
851,Revenue,CAHD,South Glos Users in South Glos Homes,Permanent Nursing,.,620.20, 13-Feb-2018
852,Revenue,CAHD,South Glos Users in South Glos Homes,Permanent Nursing,.,620.20, 13-Feb-2018
853,Revenue,CAHD,South Glos Users in South Glos Homes,Permanent Nursing,.,620.20, 13-Feb-2018
854,Revenue,CAHD,South Glos Users in South Glos Homes,Permanent Nursing,.,620.20, 13-Feb-2018
855,Revenue,CAHD,South Glos Users in South Glos Homes,Permanent Nursing,.,620.20, 13-Feb-2018
856,Revenue,CAHD,South Glos Users in South Glos Homes,Permanent Nursing,.,620.20, 13-Feb-2018
857,Revenue,CAHD,South Glos Users in South Glos Homes,Permanent Nursing,.,620.20, 13-Feb-2018
858,Revenue,CAHD,South Glos Users in South Glos Homes,Permanent Nursing,.,620.20, 13-Feb-2018
859,Revenue,CAHD,South Glos Users in South Glos Homes,Permanent Nursing,.,620.20, 13-Feb-2018
860,Revenue,CAHD,South Glos Users in South Glos Homes,Permanent Nursing,.,620.20, 13-Feb-2018
861,Revenue,CAHD,South Glos Users in South Glos Homes,Permanent Nursing,.,1018.90, 13-Feb-2018
862,Revenue,CAHD,South Glos Users in South Glos Homes,Permanent Nursing,.,620.20, 13-Feb-2018
863,Revenue,CAHD,South Glos Users in South Glos Homes,Permanent Nursing,.,620.20, 13-Feb-2018
864,Revenue,CAHD,South Glos Users in South Glos Homes,Permanent Nursing,.,620.20, 13-Feb-2018
865,Revenue,CAHD,South Glos Users in South Glos Homes,Permanent Nursing,.,620.20, 13-Feb-2018
866,Revenue,CAHD,Bed Purchasing - North,Permanent Nursing,.,3114.96, 13-Feb-2018
867,Revenue,CAHD,South Glos Users in South Glos Homes,Permanent Nursing,.,620.20, 13-Feb-2018
868,Revenue,CAHD,Bed Purchasing - South,Permanent Nursing,.,3779.80, 13-Feb-2018
869,Revenue,CAHD,South Glos Users in South Glos Homes,Permanent Nursing,.,620.20, 13-Feb-2018
870,Revenue,CAHD,South Glos Users in South Glos Homes,Permanent Nursing,.,620.20, 13-Feb-2018
871,Revenue,CAHD,South Glos Users in South Glos Homes,Permanent Nursing,.,1240.40, 13-Feb-2018
872,Revenue,CAHD,Bed Purchasing - North,Permanent Nursing,.,3294.28, 13-Feb-2018
873,Revenue,CAHD,South Glos Users in South Glos Homes,Permanent Nursing,.,620.20, 13-Feb-2018
874,Revenue,CAHD,South Glos Users in South Glos Homes,Permanent Nursing,.,620.20, 13-Feb-2018
875,Revenue,CAHD,South Glos Users in South Glos Homes,Permanent Nursing,.,620.20, 13-Feb-2018
876,Revenue,CAHD,Bed Purchasing - Southmead Hospital,Permanent Nursing,.,3824.08, 13-Feb-2018
877,Revenue,CAHD,South Glos Users in South Glos Homes,Permanent Nursing,.,620.20, 13-Feb-2018
878,Revenue,CAHD,South Glos Users in South Glos Homes,Permanent Nursing,.,620.20, 13-Feb-2018
879,Revenue,CAHD,South Glos Users in South Glos Homes,Permanent Nursing,.,620.20, 13-Feb-2018
880,Revenue,CAHD,South Glos Users in South Glos Homes,Permanent Nursing,.,620.20, 13-Feb-2018
881,Revenue,CAHD,Bed Purchasing - North,Permanent Residential,.,3545.52, 13-Feb-2018
882,Revenue,CAHD,Bed Purchasing - North,Permanent Nursing,.,12400.00, 13-Feb-2018
883,Revenue,CAHD,Bed Purchasing - South,Permanent Residential,.,3039.00, 13-Feb-2018
884,Revenue,CAHD,Bed Purchasing - South,Permanent Nursing,.,2880.00, 13-Feb-2018
885,Revenue,CAHD,Bed Purchasing - Southmead Hospital,Permanent Residential,.,3160.00, 13-Feb-2018
886,Revenue,CAHD,Bed Purchasing - North,Permanent Residential,.,4371.43, 13-Feb-2018
887,Revenue,CAHD,Bed Purchasing - North,Permanent Residential,.,4371.43, 13-Feb-2018
888,Revenue,CAHD,Bed Purchasing - North,Permanent Residential,.,4371.43, 13-Feb-2018
889,Revenue,CAHD,Bed Purchasing - North,Permanent Residential,.,4371.43, 13-Feb-2018
890,Revenue,CAHD,18-25 Year Olds,Permanent Residential,1 St Georges House,67085.55, 13-Feb-2018
891,Revenue,CAHD,18-25 Year Olds,Permanent Residential,1 St Georges House,12778.20, 13-Feb-2018
892,Revenue,CAHD,18-25 Year Olds,Permanent Residential,1 St Georges House,6581.43, 13-Feb-2018
893,Revenue,CAHD,18-25 Year Olds,Fees & Charges Income - General,1 St Georges House,866.23, 13-Feb-2018
894,Revenue,CAHD,18-25 Year Olds,Fees & Charges Income - General,1 St Georges House,1019.91, 13-Feb-2018
895,Revenue,CAHD,Bed Purchasing - Southmead Hospital,Permanent Residential,1St Floor Lingfield House,2600.00, 13-Feb-2018
896,Revenue,CAHD,Bed Purchasing - North,Permanent Residential,1St Floor Lingfield House,2600.00, 13-Feb-2018
897,Revenue,CAHD,18-25 Year Olds,Permanent Residential,5Th Floor Harlech Court,14619.64, 13-Feb-2018
898,Revenue,CAHD,18-25 Year Olds,Permanent Residential,5Th Floor Harlech Court,14760.00, 13-Feb-2018
899,Revenue,CAHD,18-25 Year Olds,Permanent Residential,5Th Floor Harlech Court,13130.76, 13-Feb-2018
900,Revenue,CAHD,Bed Purchasing - North,Permanent Residential,5Th Floor Harlech Court,15870.60, 13-Feb-2018
901,Revenue,CAHD,18-25 Year Olds,Permanent Residential,5Th Floor Harlech Court,17460.56, 13-Feb-2018
902,Revenue,CAHD,Bed Purchasing - North,Permanent Residential,5Th Floor Harlech Court,13240.48, 13-Feb-2018
903,Revenue,CAHD,18-25 Year Olds,Permanent Residential,5Th Floor Harlech Court,13253.64, 13-Feb-2018
904,Revenue,CAHD,Bed Purchasing - North,Permanent Residential,5Th Floor Harlech Court,14104.28, 13-Feb-2018
905,Revenue,CAHD,Jointly Funded H&SC Packages,Permanent Residential,5Th Floor Harlech Court,3490.16, 13-Feb-2018
906,Revenue,CAHD,18-25 Year Olds,Permanent Residential,5Th Floor Harlech Court,16704.04, 13-Feb-2018
907,Revenue,CAHD,Bed Purchasing - South,Permanent Residential,5Th Floor Harlech Court,15973.00, 13-Feb-2018
908,Revenue,CAHD,Bed Purchasing - South,Permanent Residential,5Th Floor Harlech Court,9985.60, 13-Feb-2018
909,Revenue,CAHD,Bed purchasing - S28A Under 65 - South,Permanent Residential,5Th Floor Harlech Court,10450.56, 13-Feb-2018
910,Revenue,CAHD,Bed Purchasing - South,Permanent Residential,5Th Floor Harlech Court,10960.12, 13-Feb-2018
911,Revenue,CAHD,Bed Purchasing - North,Permanent Nursing,ABI Development Limited,7591.84, 13-Feb-2018
912,Revenue,CAHD,Bed Purchasing - Southmead Hospital,Permanent Nursing,Allambie Court,2223.80, 13-Feb-2018
913,Revenue,CAHD,Bed Purchasing - South,Permanent Nursing,Ambleside Nusing Home,2126.16, 13-Feb-2018
914,Revenue,CAHD,Bed Purchasing - Southmead Hospital,Permanent Nursing,Amerind Grove Nursing Home,2593.60, 13-Feb-2018
915,Revenue,CAHD,Bed Purchasing - North,Permanent Residential,Ark Care Homes Ltd,11266.84, 13-Feb-2018
916,Revenue,CAHD,Bed Purchasing - South,Permanent Nursing,Ash Grove House,2836.40, 13-Feb-2018
917,Revenue,CAHD,Jointly Funded H&SC Packages,Permanent Residential,Ash View House,1065.12, 13-Feb-2018
918,Revenue,CAHD,Bed Purchasing - South,Permanent Residential,Ash View House,5195.24, 13-Feb-2018
919,Revenue,CAHD,S117 Placements PCT,Permanent Residential,Ash View House,7241.60, 13-Feb-2018
920,Revenue,CAHD,18-25 Year Olds,Permanent Residential,Ash View House,6803.84, 13-Feb-2018
921,Revenue,CAHD,Section 117 Placements MH Younger,Permanent Residential,Ash View House,4719.08, 13-Feb-2018
922,Revenue,CAHD,Jointly Funded H&SC Packages,Permanent Residential,Ash View House,2022.48, 13-Feb-2018
923,Revenue,CAHD,Bed purchasing - Elderly S117 - South,Permanent Residential,Ash View House,6414.04, 13-Feb-2018
924,Revenue,CAHD,18-25 Year Olds,Permanent Residential,Ash View House,6340.00, 13-Feb-2018
925,Revenue,CAHD,Bed Purchasing - North,Permanent Residential,Aspects 2 Limited,6930.72, 13-Feb-2018
926,Revenue,CAHD,Bed Purchasing - South,Permanent Residential,Ategi Limited,12464.92, 13-Feb-2018
927,Revenue,CAHD,Bed Purchasing - South,Permanent Residential,Autism Specialised Care Homes,6235.88, 13-Feb-2018
928,Revenue,CAHD,Bed Purchasing - Southmead Hospital,Permanent Residential,Avery Homes Downend Limited,3980.00, 13-Feb-2018
929,Revenue,CAHD,Bed Purchasing - Southmead Hospital,Permanent Residential,Avery Homes Downend Limited,2842.86, 13-Feb-2018
930,Revenue,CAHD,South Glos Users in South Glos Homes,Permanent Nursing,Beaufort Grange Care Home,620.20, 13-Feb-2018
931,Revenue,CAHD,South Glos Users in South Glos Homes,Permanent Nursing,Beaufort Grange Care Home,620.20, 13-Feb-2018
932,Revenue,CAHD,South Glos Users in South Glos Homes,Permanent Nursing,Beaufort Grange Care Home,620.20, 13-Feb-2018
933,Revenue,CAHD,South Glos Users in South Glos Homes,Permanent Nursing,Beaufort Grange Care Home,620.20, 13-Feb-2018
934,Revenue,CAHD,South Glos Users in South Glos Homes,Permanent Nursing,Beaufort Grange Care Home,620.20, 13-Feb-2018
935,Revenue,CAHD,South Glos Users in South Glos Homes,Permanent Nursing,Beaufort Grange Care Home,620.20, 13-Feb-2018
936,Revenue,CAHD,South Glos Users in South Glos Homes,Permanent Nursing,Beaufort Grange Care Home,620.20, 13-Feb-2018
937,Revenue,CAHD,South Glos Users in South Glos Homes,Permanent Nursing,Beaufort Grange Care Home,620.20, 13-Feb-2018
938,Revenue,CAHD,South Glos Users in South Glos Homes,Permanent Nursing,Beaufort Grange Care Home,620.20, 13-Feb-2018
939,Revenue,CAHD,Bed Purchasing - Elderly S117- North,Permanent Nursing,Beaufort Grange Care Home,4673.92, 13-Feb-2018
940,Revenue,CAHD,South Glos Users in South Glos Homes,Permanent Nursing,Beaufort Grange Care Home,620.20, 13-Feb-2018
941,Revenue,CAHD,South Glos Users in South Glos Homes,Permanent Nursing,Beaufort Grange Care Home,620.20, 13-Feb-2018
942,Revenue,CAHD,South Glos Users in South Glos Homes,Permanent Nursing,Beaufort Grange Care Home,620.20, 13-Feb-2018
943,Revenue,CAHD,South Glos Users in South Glos Homes,Permanent Nursing,Beaufort Grange Care Home,620.20, 13-Feb-2018
944,Revenue,CAHD,South Glos Users in South Glos Homes,Permanent Nursing,Beaufort Grange Care Home,620.20, 13-Feb-2018
945,Revenue,CAHD,Bed Purchasing - North,Permanent Residential,Beaufort House,2443.36, 13-Feb-2018
946,Revenue,CAHD,Bed Purchasing - Southmead Hospital,Permanent Residential,Beaufort House,2660.00, 13-Feb-2018
947,Revenue,CAHD,Bed Purchasing - North,Permanent Residential,Beaufort House,2464.28, 13-Feb-2018
948,Revenue,CAHD,Bed Purchasing - South,Permanent Residential,Beaufort House,2431.20, 13-Feb-2018
949,Revenue,CAHD,Bed Purchasing - South,Permanent Residential,Beaufort House,2339.40, 13-Feb-2018
950,Revenue,CAHD,Bed Purchasing - North,Permanent Residential,Beaufort House,2407.80, 13-Feb-2018
951,Revenue,CAHD,Bed Purchasing - Southmead Hospital,Fees & Charges Income - General,Beaufort House,3745.39, 13-Feb-2018
952,Revenue,CAHD,Bed Purchasing - Southmead Hospital,Respite Planned - Residential,Beaufort House,2660.00, 13-Feb-2018
953,Revenue,CAHD,Bed Purchasing - North,Permanent Residential,Beaufort House,2407.80, 13-Feb-2018
954,Revenue,CAHD,Bed Purchasing - Southmead Hospital,Permanent Residential,Beaufort House,2660.00, 13-Feb-2018
955,Revenue,CAHD,Bed Purchasing - Southmead Hospital,Permanent Residential,Beaufort House,2600.00, 13-Feb-2018
956,Revenue,CAHD,Bed Purchasing - North,Respite Planned - Residential,Beaufort House,1900.00, 13-Feb-2018
957,Revenue,CAHD,Bed Purchasing - North,Respite Planned - Residential,Beaufort House,950.00, 13-Feb-2018
958,Revenue,CAHD,Bed Purchasing - North,Permanent Residential,Beaufort House,2587.48, 13-Feb-2018
959,Revenue,CAHD,Bed Purchasing - South,Permanent Residential,Beaufort House,2600.00, 13-Feb-2018
960,Revenue,CAHD,Bed Purchasing - Southmead Hospital,Permanent Residential,Beaufort House,2464.28, 13-Feb-2018
961,Revenue,CAHD,Bed Purchasing - Southmead Hospital,Permanent Residential,Beaufort House,2633.80, 13-Feb-2018
962,Revenue,CAHD,South Glos Users in South Glos Homes,Permanent Nursing,Beech House,620.20, 13-Feb-2018
963,Revenue,CAHD,Bed Purchasing - South,Permanent Residential,Beech House,2836.40, 13-Feb-2018
964,Revenue,CAHD,South Glos Users in South Glos Homes,Permanent Nursing,Beech House,620.20, 13-Feb-2018
965,Revenue,CAHD,South Glos Users in South Glos Homes,Permanent Nursing,Beech House,620.20, 13-Feb-2018
966,Revenue,CAHD,South Glos Users in South Glos Homes,Permanent Nursing,Beech House,620.20, 13-Feb-2018
967,Revenue,CAHD,South Glos Users in South Glos Homes,Permanent Nursing,Beech House,620.20, 13-Feb-2018
968,Revenue,CAHD,Bed Purchasing - North,Permanent Nursing,Beech House,2709.76, 13-Feb-2018
969,Revenue,CAHD,South Glos Users in South Glos Homes,Permanent Nursing,Beech House,620.20, 13-Feb-2018
970,Revenue,CAHD,South Glos Users in South Glos Homes,Permanent Nursing,Beech House,620.20, 13-Feb-2018
971,Revenue,CAHD,South Glos Users in South Glos Homes,Permanent Nursing,Beech House,5388.41, 13-Feb-2018
972,Revenue,CAHD,South Glos Users in South Glos Homes,Permanent Nursing,Beech House,620.20, 13-Feb-2018
973,Revenue,CAHD,Bed Purchasing - North,Permanent Nursing,Beech House,3031.04, 13-Feb-2018
974,Revenue,CAHD,South Glos Users in South Glos Homes,Permanent Nursing,Beech House,620.20, 13-Feb-2018
975,Revenue,CAHD,South Glos Users in South Glos Homes,Permanent Nursing,Beech House,1847.90, 13-Feb-2018
976,Revenue,CAHD,Bed Purchasing - North,Permanent Nursing,Beech House,3400.00, 13-Feb-2018
977,Revenue,CAHD,South Glos Users in South Glos Homes,Permanent Nursing,Beech House,620.20, 13-Feb-2018
978,Revenue,CAHD,South Glos Users in South Glos Homes,Permanent Nursing,Beech House,620.20, 13-Feb-2018
979,Revenue,CAHD,Bed Purchasing - North,Permanent Residential,Beech House,2836.40, 13-Feb-2018
980,Revenue,CAHD,South Glos Users in South Glos Homes,Permanent Nursing,Beech House,620.20, 13-Feb-2018
981,Revenue,CAHD,South Glos Users in South Glos Homes,Permanent Nursing,Beech House,620.20, 13-Feb-2018
982,Revenue,CAHD,South Glos Users in South Glos Homes,Permanent Nursing,Beech House,620.20, 13-Feb-2018
983,Revenue,CAHD,South Glos Users in South Glos Homes,Permanent Nursing,Beech House,620.20, 13-Feb-2018
984,Revenue,CAHD,South Glos Users in South Glos Homes,Permanent Nursing,Beech House,620.20, 13-Feb-2018
985,Revenue,CAHD,South Glos Users in South Glos Homes,Permanent Nursing,Beech House,620.20, 13-Feb-2018
986,Revenue,CAHD,South Glos Users in South Glos Homes,Permanent Nursing,Beech House,620.20, 13-Feb-2018
987,Revenue,CAHD,South Glos Users in South Glos Homes,Permanent Nursing,Beech House,620.20, 13-Feb-2018
988,Revenue,CAHD,Bed Purchasing - Southmead Hospital,Permanent Residential,Beech House,3680.00, 13-Feb-2018
989,Revenue,CAHD,Bed Purchasing - Southmead Hospital,Fees & Charges Income - General,Beech House,2210.64, 13-Feb-2018
990,Revenue,CAHD,Bed Purchasing - Southmead Hospital,Fees & Charges Income - General,Beech House,2230.56, 13-Feb-2018
991,Revenue,CAHD,South Glos Users in South Glos Homes,Permanent Nursing,Beech House,620.20, 13-Feb-2018
992,Revenue,CAHD,South Glos Users in South Glos Homes,Permanent Nursing,Beech House,620.20, 13-Feb-2018
993,Revenue,CAHD,Bed Purchasing - North,Permanent Nursing,Beech House,3300.00, 13-Feb-2018
994,Revenue,CAHD,South Glos Users in South Glos Homes,Permanent Nursing,Beech House,620.20, 13-Feb-2018
995,Revenue,CAHD,Bed Purchasing - North,Permanent Nursing,Beech House,3169.68, 13-Feb-2018
996,Revenue,CAHD,South Glos Users in South Glos Homes,Permanent Nursing,Beech House,620.20, 13-Feb-2018
997,Revenue,CAHD,South Glos Users in South Glos Homes,Permanent Nursing,Beech House,620.20, 13-Feb-2018
998,Revenue,CAHD,South Glos Users in South Glos Homes,Permanent Nursing,Beech House,620.20, 13-Feb-2018
999,Revenue,CAHD,South Glos Users in South Glos Homes,Permanent Nursing,Beech House,620.20, 13-Feb-2018
1000,Revenue,CAHD,South Glos Users in South Glos Homes,Permanent Nursing,Beech House,620.20, 13-Feb-2018
1001,Revenue,CAHD,Bed purchasing - Elderly S117 - South,Permanent Nursing,Blossom Field,4179.80, 13-Feb-2018
1002,Revenue,CAHD,South Glos Users in South Glos Homes,Permanent Nursing,Blossom Field,620.20, 13-Feb-2018
1003,Revenue,CAHD,Bed Purchasing - North,Permanent Nursing,Blossom Field,3523.92, 13-Feb-2018
1004,Revenue,CAHD,South Glos Users in South Glos Homes,Permanent Nursing,Blossom Field,620.20, 13-Feb-2018
1005,Revenue,CAHD,Bed Purchasing - Elderly S117- North,Permanent Nursing,Blossom Field,3539.76, 13-Feb-2018
1006,Revenue,CAHD,South Glos Users in South Glos Homes,Permanent Nursing,Blossom Field,620.20, 13-Feb-2018
1007,Revenue,CAHD,South Glos Users in South Glos Homes,Permanent Nursing,Blossom Field,620.20, 13-Feb-2018
1008,Revenue,CAHD,South Glos Users in South Glos Homes,Permanent Nursing,Blossom Field,5667.93, 13-Feb-2018
1009,Revenue,CAHD,South Glos Users in South Glos Homes,Permanent Nursing,Blossom Field,1475.21, 13-Feb-2018
1010,Revenue,CAHD,South Glos Users in South Glos Homes,Permanent Nursing,Blossom Field,620.20, 13-Feb-2018
1011,Revenue,CAHD,South Glos Users in South Glos Homes,Permanent Nursing,Blossom Field,620.20, 13-Feb-2018
1012,Revenue,CAHD,South Glos Users in South Glos Homes,Permanent Nursing,Blossom Field,620.20, 13-Feb-2018
1013,Revenue,CAHD,South Glos Users in South Glos Homes,Permanent Nursing,Blossom Field,620.20, 13-Feb-2018
1014,Revenue,CAHD,South Glos Users in South Glos Homes,Permanent Nursing,Blossom Field,620.20, 13-Feb-2018
1015,Revenue,CAHD,Bed purchasing - Elderly S117 - South,Permanent Nursing,Blossom Field,4400.00, 13-Feb-2018
1016,Revenue,CAHD,South Glos Users in South Glos Homes,Permanent Nursing,Blossom Field,620.20, 13-Feb-2018
1017,Revenue,CAHD,South Glos Users in South Glos Homes,Permanent Nursing,Blossom Field,620.20, 13-Feb-2018
1018,Revenue,CAHD,South Glos Users in South Glos Homes,Permanent Nursing,Blossom Field,620.20, 13-Feb-2018
1019,Revenue,CAHD,Bed purchasing - Elderly S117 - South,Permanent Nursing,Blossom Field,4468.56, 13-Feb-2018
1020,Revenue,CAHD,South Glos Users in South Glos Homes,Permanent Nursing,Blossom Field,620.20, 13-Feb-2018
1021,Revenue,CAHD,Bed Purchasing - South,Permanent Nursing,Blossom Field,4229.28, 13-Feb-2018
1022,Revenue,CAHD,South Glos Users in South Glos Homes,Permanent Nursing,Blossom Field,620.20, 13-Feb-2018
1023,Revenue,CAHD,South Glos Users in South Glos Homes,Permanent Nursing,Blossom Field,620.20, 13-Feb-2018
1024,Revenue,CAHD,South Glos Users in South Glos Homes,Permanent Nursing,Blossom Field,620.20, 13-Feb-2018
1025,Revenue,CAHD,South Glos Users in South Glos Homes,Permanent Nursing,Blossom Field,620.20, 13-Feb-2018
1026,Revenue,CAHD,South Glos Users in South Glos Homes,Permanent Nursing,Blossom Field,620.20, 13-Feb-2018
1027,Revenue,CAHD,South Glos Users in South Glos Homes,Permanent Nursing,Blossom Field,620.20, 13-Feb-2018
1028,Revenue,CAHD,South Glos Users in South Glos Homes,Permanent Nursing,Blossom Field,620.20, 13-Feb-2018
1029,Revenue,CAHD,South Glos Users in South Glos Homes,Permanent Nursing,Blossom Field,620.20, 13-Feb-2018
1030,Revenue,CAHD,South Glos Users in South Glos Homes,Permanent Nursing,Blossom Field,620.20, 13-Feb-2018
1031,Revenue,CAHD,Bed Purchasing - North,Permanent Nursing,Blossom Field,4179.80, 13-Feb-2018
1032,Revenue,CAHD,South Glos Users in South Glos Homes,Permanent Nursing,Blossom Field,620.20, 13-Feb-2018
1033,Revenue,CAHD,Bed Purchasing - North,Permanent Nursing,Blossom Field,3824.08, 13-Feb-2018
1034,Revenue,CAHD,South Glos Users in South Glos Homes,Permanent Nursing,Blossom Field,620.20, 13-Feb-2018
1035,Revenue,CAHD,South Glos Users in South Glos Homes,Permanent Nursing,Blossom Field,2436.50, 13-Feb-2018
1036,Revenue,CAHD,South Glos Users in South Glos Homes,Permanent Nursing,Blossom Field,620.20, 13-Feb-2018
1037,Revenue,CAHD,Bed Purchasing - North,Permanent Nursing,Blossom Field,3483.56, 13-Feb-2018
1038,Revenue,CAHD,South Glos Users in South Glos Homes,Permanent Nursing,Blossom Field,620.20, 13-Feb-2018
1039,Revenue,CAHD,South Glos Users in South Glos Homes,Permanent Nursing,Blossom Field,620.20, 13-Feb-2018
1040,Revenue,CAHD,South Glos Users in South Glos Homes,Permanent Nursing,Blossom Field,3540.51, 13-Feb-2018
1041,Revenue,CAHD,Bed purchasing - S28A Under 65 - South,Permanent Residential,Bradbury House,4854.16, 13-Feb-2018
1042,Revenue,CAHD,Bed Purchasing - South,Permanent Residential,Bradbury House,8375.20, 13-Feb-2018
1043,Revenue,CAHD,18-25 Year Olds,Permanent Residential,Bradbury House,9504.08, 13-Feb-2018
1044,Revenue,CAHD,Bed purchasing - Elderly S117 - South,Permanent Residential,Bradbury House,15536.72, 13-Feb-2018
1045,Revenue,CAHD,Bed Purchasing - North,Permanent Residential,Bradbury House,5952.84, 13-Feb-2018
1046,Revenue,CAHD,Jointly Funded H&SC Packages,Permanent Residential,Bradbury House,8223.16, 13-Feb-2018
1047,Revenue,CAHD,Bed Purchasing - North,Permanent Residential,Bradbury House,2700.00, 13-Feb-2018
1048,Revenue,CAHD,Bed Purchasing - Southmead Hospital,Permanent Residential,Bridge House Care Home,2423.08, 13-Feb-2018
1049,Revenue,CAHD,Bed Purchasing - North,Permanent Residential,Bridge House Care Home,2382.12, 13-Feb-2018
1050,Revenue,CAHD,Home Care - Elderly - North,Day Care / Social Activities,Bridge House Care Home,526.72, 13-Feb-2018
1051,Revenue,CAHD,Bed Purchasing - Southmead Hospital,Permanent Residential,Bridge House Care Home,2464.00, 13-Feb-2018
1052,Revenue,CAHD,Bed Purchasing - North,Permanent Residential,Bridge House Care Home,2496.04, 13-Feb-2018
1053,Revenue,CAHD,Bed Purchasing - North,Permanent Residential,Bridge House Care Home,2191.80, 13-Feb-2018
1054,Revenue,CAHD,Bed Purchasing - North,Permanent Residential,Bridgwater Court,10324.96, 13-Feb-2018
1055,Revenue,CAHD,Home Care - Elderly - North,Day Care / Social Activities,Bristol Community Links North,996.32, 13-Feb-2018
1056,Revenue,CAHD,Bed Purchasing - North,Permanent Nursing,Bupa Care Services  Bridge House,1762.64, 13-Feb-2018
1057,Revenue,CAHD,Jointly Funded H&SC Packages,Permanent Nursing,Bupa Care Services  Bridge House,4400.48, 13-Feb-2018
1058,Revenue,CAHD,South Glos Users in all other LA Homes,Permanent Nursing,Bupa Care Services  Bridge House,853.28, 13-Feb-2018
1059,Revenue,CAHD,Bed Purchasing - Elderly S117- North,Permanent Residential,Canjayor,2422.40, 13-Feb-2018
1060,Revenue,CAHD,Woodleaze,Refuse Collection Charges,Cannon Hygiene Limited,927.75, 13-Feb-2018
1061,Revenue,CAHD,Home Care - Elderly - North,Day Care / Social Activities,Causeway House,1180.40, 13-Feb-2018
1062,Revenue,CAHD,Home Care - Elderly - South,Day Care / Social Activities,Causeway House,5034.88, 13-Feb-2018
1063,Revenue,CAHD,Home Care - Elderly - North,Day Care / Social Activities,Causeway House,4311.60, 13-Feb-2018
1064,Revenue,CAHD,Home Care - Elderly - North,Day Care / Social Activities,Causeway House,3729.92, 13-Feb-2018
1065,Revenue,CAHD,Home Care - Elderly - North,Day Care / Social Activities,Causeway House,1991.36, 13-Feb-2018
1066,Revenue,CAHD,Home Care - Elderly - North,Day Care / Social Activities,Causeway House,3092.16, 13-Feb-2018
1067,Revenue,CAHD,Home Care - Elderly - North,Day Care / Social Activities,Causeway House,4606.72, 13-Feb-2018
1068,Revenue,CAHD,Home Care - Elderly - North,Day Care / Social Activities,Causeway House,3500.40, 13-Feb-2018
1069,Revenue,CAHD,Home Care - Elderly - North,Day Care / Social Activities,Causeway House,1634.40, 13-Feb-2018
1070,Revenue,CAHD,Home Care - Elderly - North,Day Care / Social Activities,Causeway House,3018.24, 13-Feb-2018
1071,Revenue,CAHD,Bed Purchasing - Elderly S117- North,Permanent Nursing,Cedar Care Homes Limited,4352.00, 13-Feb-2018
1072,Revenue,CAHD,Bed Purchasing - North,Permanent Residential,Charlton House,1886.24, 13-Feb-2018
1073,Revenue,CAHD,Bed purchasing -S28A  Under 65 - North,Permanent Residential,Chescombe Lodge,9357.80, 13-Feb-2018
1074,Revenue,CAHD,18-25 Year Olds,Permanent Residential,Chosen Care Ltd  Citibase Watford,7689.72, 13-Feb-2018
1075,Revenue,CAHD,Bed Purchasing - Elderly S117- North,Permanent Residential,Chosen Care Ltd  Citibase Watford,5060.64, 13-Feb-2018
1076,Revenue,CAHD,Jointly Funded H&SC Packages,Permanent Residential,Chosen Care Ltd  Citibase Watford,5060.64, 13-Feb-2018
1077,Revenue,CAHD,18-25 Year Olds,Permanent Residential,Chosen Care Ltd  Citibase Watford,6073.44, 13-Feb-2018
1078,Revenue,CAHD,MH Purchasing - Younger,Permanent Residential,Claro Homes,2207.44, 13-Feb-2018
1079,Revenue,CAHD,Section 117 Placements MH Younger,Permanent Residential,Claro Homes,3406.56, 13-Feb-2018
1080,Revenue,CAHD,Bed Purchasing - Southmead Hospital,Respite Planned - Nursing,Claro Homes,3180.00, 13-Feb-2018
1081,Revenue,CAHD,Bed Purchasing - South,Permanent Residential,Cleeve Lodge,1232.16, 13-Feb-2018
1082,Revenue,CAHD,Bed Purchasing - Southmead Hospital,Permanent Residential,Cleeve Lodge,2800.00, 13-Feb-2018
1083,Revenue,CAHD,Bed Purchasing - South,Permanent Residential,Cleeve Lodge,2957.96, 13-Feb-2018
1084,Revenue,CAHD,Bed Purchasing - South,Permanent Residential,Cleeve Lodge,2735.12, 13-Feb-2018
1085,Revenue,CAHD,Bed Purchasing - South,Permanent Residential,Cleeve Lodge,2525.84, 13-Feb-2018
1086,Revenue,CAHD,Bed Purchasing - South,Permanent Residential,Cleeve Lodge,2486.76, 13-Feb-2018
1087,Revenue,CAHD,Bed Purchasing - South,Permanent Residential,Clerkenleap Barn,6079.80, 13-Feb-2018
1088,Revenue,CAHD,Bed Purchasing - South,Permanent Residential,Collingwood Residential Home,2147.96, 13-Feb-2018
1089,Revenue,CAHD,Bed Purchasing - Southmead Hospital,Permanent Residential,Collingwood Residential Home,2431.20, 13-Feb-2018
1090,Revenue,CAHD,Bed Purchasing - South,Permanent Residential,Collingwood Residential Home,2329.92, 13-Feb-2018
1091,Revenue,CAHD,Bed Purchasing - South,Permanent Residential,Collingwood Residential Home,2320.00, 13-Feb-2018
1092,Revenue,CAHD,Bed Purchasing - Southmead Hospital,Permanent Residential,Collingwood Residential Home,2350.16, 13-Feb-2018
1093,Revenue,CAHD,Bed Purchasing - South,Respite Planned - Residential,Collingwood Residential Home,1071.43, 13-Feb-2018
1094,Revenue,CAHD,Bed Purchasing - South,Respite Planned - Residential,Collingwood Residential Home,803.57, 13-Feb-2018
1095,Revenue,CAHD,Bed Purchasing - Southmead Hospital,Respite Planned - Residential,Collingwood Residential Home,2400.00, 13-Feb-2018
1096,Revenue,CAHD,Bed Purchasing - North,Permanent Residential,Cream Iii Ltd,8284.00, 13-Feb-2018
1097,Revenue,CAHD,18-25 Year Olds,Respite Planned - Residential,Cream Iii Ltd,9660.00, 13-Feb-2018
1098,Revenue,CAHD,Bed purchasing -S28A  Under 65 - North,Permanent Residential,Creedy Court,10156.60, 13-Feb-2018
1099,Revenue,CAHD,Bed Purchasing - S28A - Over 65- North,Permanent Residential,Creedy Court,8534.04, 13-Feb-2018
1100,Revenue,CAHD,Bed Purchasing - North,Permanent Residential,Creedy Court,13468.68, 13-Feb-2018
1101,Revenue,CAHD,Bed Purchasing - South,Permanent Residential,Daneswood,11757.84, 13-Feb-2018
1102,Revenue,CAHD,Home Care - Elderly - South,Day Care / Social Activities,Daneswood,1354.56, 13-Feb-2018
1103,Revenue,CAHD,Bed Purchasing - North,Permanent Residential,Daneswood,9836.56, 13-Feb-2018
1104,Revenue,CAHD,Bed Purchasing - Elderly S117- North,Permanent Nursing,Danshell Healthcare Group,10419.44, 13-Feb-2018
1105,Revenue,CAHD,Jointly Funded H&SC Packages,Permanent Nursing,Danshell Healthcare Group,1546.12, 13-Feb-2018
1106,Revenue,CAHD,Home Care - Elderly - South,Supported Living,Design House,2746.28, 13-Feb-2018
1107,Revenue,CAHD,Home Care - Elderly - South,Supported Living,Design House,2935.76, 13-Feb-2018
1108,Revenue,CAHD,Home Care - Elderly - South,Supported Living,Design House,3002.60, 13-Feb-2018
1109,Revenue,CAHD,Home Care - Elderly - South,Supported Living,Design House,2868.88, 13-Feb-2018
1110,Revenue,CAHD,Home Care - Elderly - North,Day Care / Social Activities,Design House,2339.44, 13-Feb-2018
1111,Revenue,CAHD,Home Care - Elderly - South,Day Care / Social Activities,Design House,1471.60, 13-Feb-2018
1112,Revenue,CAHD,Home Care - Elderly - South,Supported Living,Design House,2528.96, 13-Feb-2018
1113,Revenue,CAHD,Home Care - Elderly - South,Supported Living,Design House,2528.96, 13-Feb-2018
1114,Revenue,CAHD,Home Care - Elderly - South,Supported Living,Design House,2060.00, 13-Feb-2018
1115,Revenue,CAHD,Home Care - Elderly - South,Supported Living,Design House,1817.72, 13-Feb-2018
1116,Revenue,CAHD,Home Care - Elderly - South,Supported Living,Design House,2412.00, 13-Feb-2018
1117,Revenue,CAHD,Home Care - Elderly - South,Supported Living,Design House,4128.16, 13-Feb-2018
1118,Revenue,CAHD,Home Care - Elderly - South,Supported Living,Design House,2927.36, 13-Feb-2018
1119,Revenue,CAHD,Home Care - Elderly - South,Day Care / Social Activities,Design House,1431.60, 13-Feb-2018
1120,Revenue,CAHD,Home Care - Elderly - South,Supported Living,Design House,2779.72, 13-Feb-2018
1121,Revenue,CAHD,Home Care - Elderly - South,Supported Living,Design House,2829.88, 13-Feb-2018
1122,Revenue,CAHD,Home Care - Elderly - South,Supported Living,Design House,2163.68, 13-Feb-2018
1123,Revenue,CAHD,Home Care - Elderly - South,Supported Living,Design House,1817.72, 13-Feb-2018
1124,Revenue,CAHD,Home Care - Elderly - South,Supported Living,Design House,2163.68, 13-Feb-2018
1125,Revenue,CAHD,Bed Purchasing - South,Permanent Residential,Devon & Cornwall Autistic Community Trus,9526.04, 13-Feb-2018
1126,Revenue,CAHD,Home Care - Elderly - North,Supported Living,Dimensions  Suite 2,1823.24, 13-Feb-2018
1127,Revenue,CAHD,Home Care - Elderly - South,Supported Living,Dimensions  Suite 2,1823.24, 13-Feb-2018
1128,Revenue,CAHD,Home Care - Elderly - South,Supported Living,Dimensions  Suite 2,1823.24, 13-Feb-2018
1129,Revenue,CAHD,Home Care - Elderly - South,Supported Living,Dimensions  Suite 2,1823.24, 13-Feb-2018
1130,Revenue,CAHD,Home Care - Elderly - North,Supported Living,Dimensions  Suite 2,1823.24, 13-Feb-2018
1131,Revenue,CAHD,Bed Purchasing - South,Permanent Residential,Dimensions  Suite 2,5396.28, 13-Feb-2018
1132,Revenue,CAHD,Bed Purchasing - South,Permanent Residential,Dimensions  Suite 2,2689.28, 13-Feb-2018
1133,Revenue,CAHD,Bed Purchasing - Southmead Hospital,Fees & Charges Income - General,Drakes Court,665.27, 13-Feb-2018
1134,Revenue,CAHD,Bed Purchasing - North,Permanent Nursing,Drakes Court,2288.92, 13-Feb-2018
1135,Revenue,CAHD,South Glos Users in South Glos Homes,Permanent Nursing,Drakes Court,620.20, 13-Feb-2018
1136,Revenue,CAHD,Bed Purchasing - Southmead Hospital,Permanent Nursing,Drakes Court,2780.00, 13-Feb-2018
1137,Revenue,CAHD,Bed Purchasing - Southmead Hospital,Fees & Charges Income - General,Drakes Court,5988.21, 13-Feb-2018
1138,Revenue,CAHD,Bed Purchasing - North,Permanent Nursing,Drakes Court,2700.00, 13-Feb-2018
1139,Revenue,CAHD,Bed Purchasing - Southmead Hospital,Permanent Nursing,Drakes Court,1945.28, 13-Feb-2018
1140,Revenue,CAHD,South Glos Users in South Glos Homes,Permanent Nursing,Drakes Court,620.20, 13-Feb-2018
1141,Revenue,CAHD,Bed Purchasing - South,Permanent Nursing,Drakes Court,2780.00, 13-Feb-2018
1142,Revenue,CAHD,South Glos Users in South Glos Homes,Permanent Nursing,Drakes Court,620.20, 13-Feb-2018
1143,Revenue,CAHD,Bed Purchasing - North,Respite Planned - Nursing,Drakes Court,2735.12, 13-Feb-2018
1144,Revenue,CAHD,Bed Purchasing - Southmead Hospital,Permanent Nursing,Drakes Court,2780.00, 13-Feb-2018
1145,Revenue,CAHD,Bed Purchasing - Southmead Hospital,Fees & Charges Income - General,Drakes Court,1536.57, 13-Feb-2018
1146,Revenue,CAHD,South Glos Users in South Glos Homes,Permanent Nursing,Drakes Court,620.20, 13-Feb-2018
1147,Revenue,CAHD,Bed Purchasing - North,Permanent Nursing,Drakes Court,1945.28, 13-Feb-2018
1148,Revenue,CAHD,Bed Purchasing - Southmead Hospital,Permanent Nursing,Drakes Court,1945.28, 13-Feb-2018
1149,Revenue,CAHD,South Glos Users in South Glos Homes,Permanent Nursing,Drakes Court,620.20, 13-Feb-2018
1150,Revenue,CAHD,South Glos Users in South Glos Homes,Permanent Nursing,Drakes Court,620.20, 13-Feb-2018
1151,Revenue,CAHD,South Glos Users in South Glos Homes,Permanent Nursing,Drakes Court,620.20, 13-Feb-2018
1152,Revenue,CAHD,South Glos Users in South Glos Homes,Permanent Nursing,Drakes Court,620.20, 13-Feb-2018
1153,Revenue,CAHD,Bed Purchasing - North,Permanent Residential,Drakes Court,1886.24, 13-Feb-2018
1154,Revenue,CAHD,Bed Purchasing - North,Permanent Nursing,Drakes Court,2633.80, 13-Feb-2018
1155,Revenue,CAHD,South Glos Users in South Glos Homes,Permanent Nursing,Drakes Court,620.20, 13-Feb-2018
1156,Revenue,CAHD,South Glos Users in South Glos Homes,Permanent Nursing,Drakes Court,620.20, 13-Feb-2018
1157,Revenue,CAHD,South Glos Users in South Glos Homes,Permanent Nursing,Drakes Court,620.20, 13-Feb-2018
1158,Revenue,CAHD,South Glos Users in South Glos Homes,Permanent Nursing,Drakes Court,620.20, 13-Feb-2018
1159,Revenue,CAHD,South Glos Users in South Glos Homes,Permanent Nursing,Drakes Court,620.20, 13-Feb-2018
1160,Revenue,CAHD,MH Purchasing - Younger,Permanent Residential,Dunraven House,2272.96, 13-Feb-2018
1161,Revenue,CAHD,Bed Purchasing - North,Permanent Residential,East Court,2648.48, 13-Feb-2018
1162,Revenue,CAHD,Bed Purchasing - Southmead Hospital,Permanent Residential,Edgecumbe Lodge,2072.00, 13-Feb-2018
1163,Revenue,CAHD,Bed Purchasing - Southmead Hospital,Permanent Residential,Edgecumbe Lodge,2400.00, 13-Feb-2018
1164,Revenue,CAHD,Bed Purchasing - North,Respite Planned - Residential,Edgecumbe Lodge,3040.00, 13-Feb-2018
1165,Revenue,CAHD,Bed Purchasing - Southmead Hospital,Permanent Residential,Edgecumbe Lodge,2431.20, 13-Feb-2018
1166,Revenue,CAHD,Bed Purchasing - South,Permanent Residential,Edgecumbe Lodge,2156.24, 13-Feb-2018
1167,Revenue,CAHD,Bed Purchasing - North,Permanent Residential,Edgecumbe Lodge,2320.48, 13-Feb-2018
1168,Revenue,CAHD,Bed Purchasing - South,Permanent Residential,Edgecumbe Lodge,2400.00, 13-Feb-2018
1169,Revenue,CAHD,Bed Purchasing - South,Permanent Residential,Edgecumbe Lodge,2156.24, 13-Feb-2018
1170,Revenue,CAHD,Bed Purchasing - South,Permanent Residential,Edgecumbe Lodge,2431.20, 13-Feb-2018
1171,Revenue,CAHD,Bed Purchasing - South,Permanent Residential,Edgecumbe Lodge,2400.00, 13-Feb-2018
1172,Revenue,CAHD,Bed Purchasing - Southmead Hospital,Permanent Residential,Edgecumbe Lodge,2431.20, 13-Feb-2018
1173,Revenue,CAHD,Bed Purchasing - North,Permanent Residential,Edgecumbe Lodge,2156.24, 13-Feb-2018
1174,Revenue,CAHD,Bed purchasing - Elderly S117 - South,Permanent Residential,Edgecumbe Lodge,2400.00, 13-Feb-2018
1175,Revenue,CAHD,Bed Purchasing - Southmead Hospital,Permanent Residential,Edgemont House Ltd,1879.20, 13-Feb-2018
1176,Revenue,CAHD,Bed Purchasing - South,Permanent Residential,Edgemont House Ltd,2188.08, 13-Feb-2018
1177,Revenue,CAHD,South Glos Users in South Glos Homes,Permanent Nursing,Edgemont View Nursing Home,620.20, 13-Feb-2018
1178,Revenue,CAHD,Bed Purchasing - South,Permanent Nursing,Edgemont View Nursing Home,3400.00, 13-Feb-2018
1179,Revenue,CAHD,South Glos Users in South Glos Homes,Permanent Nursing,Edgemont View Nursing Home,620.20, 13-Feb-2018
1180,Revenue,CAHD,South Glos Users in South Glos Homes,Permanent Nursing,Edgemont View Nursing Home,620.20, 13-Feb-2018
1181,Revenue,CAHD,South Glos Users in South Glos Homes,Permanent Nursing,Edgemont View Nursing Home,620.20, 13-Feb-2018
1182,Revenue,CAHD,Bed Purchasing - South,Permanent Nursing,Edgemont View Nursing Home,2917.44, 13-Feb-2018
1183,Revenue,CAHD,South Glos Users in South Glos Homes,Permanent Nursing,Edgemont View Nursing Home,620.20, 13-Feb-2018
1184,Revenue,CAHD,South Glos Users in South Glos Homes,Permanent Nursing,Edgemont View Nursing Home,620.20, 13-Feb-2018
1185,Revenue,CAHD,South Glos Users in South Glos Homes,Permanent Nursing,Edgemont View Nursing Home,620.20, 13-Feb-2018
1186,Revenue,CAHD,South Glos Users in South Glos Homes,Permanent Nursing,Edgemont View Nursing Home,620.20, 13-Feb-2018
1187,Revenue,CAHD,Bed Purchasing - South,Permanent Nursing,Edgemont View Nursing Home,2880.00, 13-Feb-2018
1188,Revenue,CAHD,South Glos Users in South Glos Homes,Permanent Nursing,Edgemont View Nursing Home,620.20, 13-Feb-2018
1189,Revenue,CAHD,South Glos Users in South Glos Homes,Permanent Nursing,Edgemont View Nursing Home,620.20, 13-Feb-2018
1190,Revenue,CAHD,South Glos Users in South Glos Homes,Permanent Nursing,Edgemont View Nursing Home,620.20, 13-Feb-2018
1191,Revenue,CAHD,Bed Purchasing - South,Permanent Nursing,Edgemont View Nursing Home,2880.00, 13-Feb-2018
1192,Revenue,CAHD,Bed Purchasing - South,Permanent Nursing,Edgemont View Nursing Home,2228.00, 13-Feb-2018
1193,Revenue,CAHD,South Glos Users in South Glos Homes,Permanent Nursing,Edgemont View Nursing Home,620.20, 13-Feb-2018
1194,Revenue,CAHD,South Glos Users in South Glos Homes,Permanent Nursing,Edgemont View Nursing Home,620.20, 13-Feb-2018
1195,Revenue,CAHD,South Glos Users in South Glos Homes,Permanent Nursing,Edgemont View Nursing Home,620.20, 13-Feb-2018
1196,Revenue,CAHD,South Glos Users in South Glos Homes,Permanent Nursing,Fairview Court,620.20, 13-Feb-2018
1197,Revenue,CAHD,South Glos Users in South Glos Homes,Permanent Nursing,Fairview Court,620.20, 13-Feb-2018
1198,Revenue,CAHD,South Glos Users in South Glos Homes,Permanent Nursing,Fairview Court,620.20, 13-Feb-2018
1199,Revenue,CAHD,South Glos Users in South Glos Homes,Permanent Nursing,Fairview Court,620.20, 13-Feb-2018
1200,Revenue,CAHD,Bed Purchasing - Southmead Hospital,Permanent Nursing,Fairview Court,3885.71, 13-Feb-2018
1201,Revenue,CAHD,Bed Purchasing - Southmead Hospital,Permanent Nursing,Fairview Court,3400.00, 13-Feb-2018
1202,Revenue,CAHD,Bed Purchasing - Southmead Hospital,Permanent Nursing,Fairview Court,3360.00, 13-Feb-2018
1203,Revenue,CAHD,South Glos Users in South Glos Homes,Permanent Nursing,Fairview Court,620.20, 13-Feb-2018
1204,Revenue,CAHD,South Glos Users in South Glos Homes,Permanent Nursing,Fairview Court,620.20, 13-Feb-2018
1205,Revenue,CAHD,South Glos Users in South Glos Homes,Permanent Nursing,Fairview Court,620.20, 13-Feb-2018
1206,Revenue,CAHD,Bed purchasing - Elderly S117 - South,Permanent Nursing,Fairview Court,4000.00, 13-Feb-2018
1207,Revenue,CAHD,South Glos Users in South Glos Homes,Permanent Nursing,Fairview Court,620.20, 13-Feb-2018
1208,Revenue,CAHD,Bed purchasing - Elderly S117 - South,Permanent Nursing,Fairview Court,3000.00, 13-Feb-2018
1209,Revenue,CAHD,South Glos Users in South Glos Homes,Permanent Nursing,Fairview Court,620.20, 13-Feb-2018
1210,Revenue,CAHD,South Glos Users in South Glos Homes,Permanent Nursing,Fairview Court,620.20, 13-Feb-2018
1211,Revenue,CAHD,Bed Purchasing - Southmead Hospital,Permanent Nursing,Fairview Court,8014.29, 13-Feb-2018
1212,Revenue,CAHD,Bed Purchasing - Southmead Hospital,Permanent Nursing,Fairview Court,3400.00, 13-Feb-2018
1213,Revenue,CAHD,Bed Purchasing - Southmead Hospital,Fees & Charges Income - General,Fairview Court,1248.46, 13-Feb-2018
1214,Revenue,CAHD,Bed Purchasing - South,Permanent Nursing,Fairview Court,3241.60, 13-Feb-2018
1215,Revenue,CAHD,South Glos Users in South Glos Homes,Permanent Nursing,Fairview Court,620.20, 13-Feb-2018
1216,Revenue,CAHD,South Glos Users in South Glos Homes,Permanent Nursing,Fairview Court,620.20, 13-Feb-2018
1217,Revenue,CAHD,Bed Purchasing - Southmead Hospital,Permanent Nursing,Fairview Court,3241.60, 13-Feb-2018
1218,Revenue,CAHD,South Glos Users in South Glos Homes,Permanent Nursing,Fairview Court,620.20, 13-Feb-2018
1219,Revenue,CAHD,Bed Purchasing - Southmead Hospital,Permanent Nursing,Fairview Court,3400.00, 13-Feb-2018
1220,Revenue,CAHD,South Glos Users in South Glos Homes,Permanent Nursing,Fairview Court,620.20, 13-Feb-2018
1221,Revenue,CAHD,South Glos Users in South Glos Homes,Permanent Nursing,Fairview Court,620.20, 13-Feb-2018
1222,Revenue,CAHD,Bed Purchasing - Southmead Hospital,Permanent Nursing,Fairview Court,3400.00, 13-Feb-2018
1223,Revenue,CAHD,South Glos Users in South Glos Homes,Permanent Nursing,Fairview Court,620.20, 13-Feb-2018
1224,Revenue,CAHD,South Glos Users in South Glos Homes,Permanent Nursing,Fairview Court,620.20, 13-Feb-2018
1225,Revenue,CAHD,South Glos Users in South Glos Homes,Permanent Nursing,Fairview Court,2635.85, 13-Feb-2018
1226,Revenue,CAHD,South Glos Users in South Glos Homes,Permanent Nursing,Fairview Court,620.20, 13-Feb-2018
1227,Revenue,CAHD,Bed Purchasing - Southmead Hospital,Permanent Nursing,Fairview Court,3400.00, 13-Feb-2018
1228,Revenue,CAHD,Bed Purchasing - Southmead Hospital,Permanent Nursing,Fairview Court,1457.14, 13-Feb-2018
1229,Revenue,CAHD,South Glos Users in South Glos Homes,Permanent Nursing,Fairview Court,620.20, 13-Feb-2018
1230,Revenue,CAHD,Bed Purchasing - Southmead Hospital,Permanent Nursing,Fairview Court,3400.00, 13-Feb-2018
1231,Revenue,CAHD,South Glos Users in South Glos Homes,Permanent Nursing,Fairview Court,620.20, 13-Feb-2018
1232,Revenue,CAHD,South Glos Users in South Glos Homes,Permanent Nursing,Fairview Court,620.20, 13-Feb-2018
1233,Revenue,CAHD,Bed Purchasing - North,Permanent Nursing,Fairview Court,5950.00, 13-Feb-2018
1234,Revenue,CAHD,Bed Purchasing - North,Permanent Nursing,Fairview Court,3400.00, 13-Feb-2018
1235,Revenue,CAHD,South Glos Users in South Glos Homes,Permanent Nursing,Fairview Court,620.20, 13-Feb-2018
1236,Revenue,CAHD,South Glos Users in South Glos Homes,Permanent Nursing,Fairview Court,620.20, 13-Feb-2018
1237,Revenue,CAHD,Bed Purchasing - South,Permanent Nursing,Fairview Court,3000.00, 13-Feb-2018
1238,Revenue,CAHD,South Glos Users in South Glos Homes,Permanent Nursing,Fairview Court,620.20, 13-Feb-2018
1239,Revenue,CAHD,South Glos Users in South Glos Homes,Permanent Nursing,Fairview Court,620.20, 13-Feb-2018
1240,Revenue,CAHD,South Glos Users in South Glos Homes,Permanent Nursing,Fairview Court,5667.93, 13-Feb-2018
1241,Revenue,CAHD,South Glos Users in South Glos Homes,Permanent Nursing,Fairview Court,4348.00, 13-Feb-2018
1242,Revenue,CAHD,Bed Purchasing - Southmead Hospital,Permanent Nursing,Fairview Court,3400.00, 13-Feb-2018
1243,Revenue,CAHD,South Glos Users in South Glos Homes,Permanent Nursing,Fairview Court,620.20, 13-Feb-2018
1244,Revenue,CAHD,South Glos Users in South Glos Homes,Permanent Nursing,Fairview Court,2547.25, 13-Feb-2018
1245,Revenue,CAHD,South Glos Users in South Glos Homes,Permanent Nursing,Fairview Court,620.20, 13-Feb-2018
1246,Revenue,CAHD,South Glos Users in South Glos Homes,Permanent Nursing,Fairview Court,620.20, 13-Feb-2018
1247,Revenue,CAHD,Bed purchasing - Elderly S117 - South,Permanent Residential,Fairview House,2058.04, 13-Feb-2018
1248,Revenue,CAHD,Bed Purchasing - Southmead Hospital,Permanent Residential,Fairview House,2400.00, 13-Feb-2018
1249,Revenue,CAHD,Bed Purchasing - South,Permanent Residential,Fairview House,2094.64, 13-Feb-2018
1250,Revenue,CAHD,Bed Purchasing - South,Permanent Residential,Fairview House,1886.24, 13-Feb-2018
1251,Revenue,CAHD,Bed Purchasing - South,Permanent Residential,Fairview House,2127.32, 13-Feb-2018
1252,Revenue,CAHD,Bed Purchasing - South,Permanent Residential,Fairview House,1886.24, 13-Feb-2018
1253,Revenue,CAHD,Bed Purchasing - South,Permanent Residential,Fairview House,1886.24, 13-Feb-2018
1254,Revenue,CAHD,Bed Purchasing - South,Permanent Residential,Fairview House,1917.36, 13-Feb-2018
1255,Revenue,CAHD,Bed Purchasing - South,Permanent Residential,Fairview House,2117.24, 13-Feb-2018
1256,Revenue,CAHD,Bed Purchasing - Southmead Hospital,Permanent Residential,Fairview House,2600.00, 13-Feb-2018
1257,Revenue,CAHD,Bed Purchasing - Southmead Hospital,Permanent Residential,Fairview House,2500.00, 13-Feb-2018
1258,Revenue,CAHD,Bed Purchasing - Southmead Hospital,Permanent Residential,Fairview House,1160.71, 13-Feb-2018
1259,Revenue,CAHD,Bed Purchasing - North,Permanent Residential,Faith House,2740.00, 13-Feb-2018
1260,Revenue,CAHD,Bed Purchasing - North,Permanent Residential,Faith House,2633.80, 13-Feb-2018
1261,Revenue,CAHD,Bed Purchasing - North,Permanent Residential,Faith House,2740.00, 13-Feb-2018
1262,Revenue,CAHD,South Glos Users in South Glos Homes,Permanent Nursing,Field House Care Home,620.20, 13-Feb-2018
1263,Revenue,CAHD,Bed Purchasing - Southmead Hospital,Permanent Nursing,Field House Care Home,3261.88, 13-Feb-2018
1264,Revenue,CAHD,Bed Purchasing - Southmead Hospital,Permanent Nursing,Field House Care Home,3280.00, 13-Feb-2018
1265,Revenue,CAHD,Bed Purchasing - North,Permanent Nursing,Field House Care Home,3280.00, 13-Feb-2018
1266,Revenue,CAHD,Bed Purchasing - South,Permanent Nursing,Field House Care Home,17718.57, 13-Feb-2018
1267,Revenue,CAHD,Bed Purchasing - South,Permanent Nursing,Field House Care Home,3160.00, 13-Feb-2018
1268,Revenue,CAHD,Bed Purchasing - North,Permanent Nursing,Field House Care Home,29400.00, 13-Feb-2018
1269,Revenue,CAHD,Bed Purchasing - North,Permanent Nursing,Field House Care Home,3360.00, 13-Feb-2018
1270,Revenue,CAHD,Bed Purchasing - North,Fees & Charges Income - General,Field House Care Home,4705.75, 13-Feb-2018
1271,Revenue,CAHD,Bed Purchasing - North,Permanent Residential,Fieldview,2836.40, 13-Feb-2018
1272,Revenue,CAHD,Bed Purchasing - North,Permanent Residential,Fieldview,3600.00, 13-Feb-2018
1273,Revenue,CAHD,Bed Purchasing - Southmead Hospital,Permanent Residential,Fieldview,2800.00, 13-Feb-2018
1274,Revenue,CAHD,MH Purchasing - Younger,Permanent Nursing,Fieldview,5267.60, 13-Feb-2018
1275,Revenue,CAHD,Bed Purchasing - South,Permanent Residential,Fig House,2836.40, 13-Feb-2018
1276,Revenue,CAHD,Home Care - Elderly - North,Supported Living,Freeways Trust Ltd,810.40, 13-Feb-2018
1277,Revenue,CAHD,Bed purchasing - S28A Under 65 - South,Permanent Residential,Freeways Trust Ltd,3724.80, 13-Feb-2018
1278,Revenue,CAHD,Bed Purchasing - North,Permanent Residential,Freeways Trust Ltd,3606.68, 13-Feb-2018
1279,Revenue,CAHD,Bed Purchasing - South,Permanent Residential,Freeways Trust Ltd,3825.16, 13-Feb-2018
1280,Revenue,CAHD,Bed Purchasing - North,Permanent Residential,Freeways Trust Ltd,2888.32, 13-Feb-2018
1281,Revenue,CAHD,Bed Purchasing - South,Permanent Residential,Freeways Trust Ltd,3043.64, 13-Feb-2018
1282,Revenue,CAHD,Bed Purchasing - North,Permanent Residential,Freeways Trust Ltd,3190.00, 13-Feb-2018
1283,Revenue,CAHD,Bed Purchasing - North,Permanent Residential,Freeways Trust Ltd,3818.20, 13-Feb-2018
1284,Revenue,CAHD,18-25 Year Olds,Permanent Residential,Freeways Trust Ltd,3527.20, 13-Feb-2018
1285,Revenue,CAHD,Section 117 Placements MH Younger,Permanent Residential,Freeways Trust Ltd,3200.00, 13-Feb-2018
1286,Revenue,CAHD,Home Care - Elderly - North,Day Care / Social Activities,Frenchay Beckspool Building,864.00, 13-Feb-2018
1287,Revenue,CAHD,Home Care - Elderly - South,Day Care / Social Activities,Frenchay Beckspool Building,864.00, 13-Feb-2018
1288,Revenue,CAHD,Bed Purchasing - South,Permanent Nursing,Frenchay Park Nursing Home,3200.00, 13-Feb-2018
1289,Revenue,CAHD,Bed Purchasing - Southmead Hospital,Permanent Nursing,Frenchay Park Nursing Home,3200.00, 13-Feb-2018
1290,Revenue,CAHD,South Glos Users in South Glos Homes,Permanent Nursing,Fshc  1St Floor,620.20, 13-Feb-2018
1291,Revenue,CAHD,Bed Purchasing - South,Permanent Nursing,Fshc  1St Floor,2621.16, 13-Feb-2018
1292,Revenue,CAHD,South Glos Users in South Glos Homes,Permanent Nursing,Fshc  1St Floor,620.20, 13-Feb-2018
1293,Revenue,CAHD,Bed Purchasing - South,Permanent Nursing,Fshc  1St Floor,2228.00, 13-Feb-2018
1294,Revenue,CAHD,Bed Purchasing - Southmead Hospital,Permanent Nursing,Fshc  1St Floor,2281.28, 13-Feb-2018
1295,Revenue,CAHD,Bed Purchasing - South,Permanent Nursing,Fshc  1St Floor,2228.00, 13-Feb-2018
1296,Revenue,CAHD,South Glos Users in South Glos Homes,Permanent Nursing,Fshc  1St Floor,620.20, 13-Feb-2018
1297,Revenue,CAHD,Bed Purchasing - Southmead Hospital,Permanent Nursing,Fshc  1St Floor,2390.68, 13-Feb-2018
1298,Revenue,CAHD,South Glos Users in South Glos Homes,Permanent Nursing,Fshc  1St Floor,620.20, 13-Feb-2018
1299,Revenue,CAHD,Bed Purchasing - Southmead Hospital,Permanent Nursing,Fshc  1St Floor,2228.00, 13-Feb-2018
1300,Revenue,CAHD,South Glos Users in South Glos Homes,Permanent Nursing,Fshc  1St Floor,620.20, 13-Feb-2018
1301,Revenue,CAHD,Bed Purchasing - South,Permanent Residential,Fshc  1St Floor,2360.00, 13-Feb-2018
1302,Revenue,CAHD,Bed Purchasing - South,Fees & Charges Income - General,Fshc  1St Floor,1114.01, 13-Feb-2018
1303,Revenue,CAHD,Bed Purchasing - Southmead Hospital,Respite Planned - Nursing,Fshc  1St Floor,988.57, 13-Feb-2018
1304,Revenue,CAHD,Bed Purchasing - Southmead Hospital,Respite Planned - Nursing,Fshc  1St Floor,542.86, 13-Feb-2018
1305,Revenue,CAHD,Bed Purchasing - Southmead Hospital,Fees & Charges Income - General,Fshc  1St Floor,512.31, 13-Feb-2018
1306,Revenue,CAHD,Bed Purchasing - Southmead Hospital,Permanent Nursing,Fshc  1St Floor,2281.28, 13-Feb-2018
1307,Revenue,CAHD,South Glos Users in South Glos Homes,Permanent Nursing,Fshc  1St Floor,620.20, 13-Feb-2018
1308,Revenue,CAHD,South Glos Users in South Glos Homes,Permanent Nursing,Fshc  1St Floor,620.20, 13-Feb-2018
1309,Revenue,CAHD,Bed Purchasing - Southmead Hospital,Permanent Nursing,Fshc  1St Floor,2228.00, 13-Feb-2018
1310,Revenue,CAHD,Bed Purchasing - South,Respite Planned - Nursing,Fshc  1St Floor,800.00, 13-Feb-2018
1311,Revenue,CAHD,Bed Purchasing - Southmead Hospital,Permanent Nursing,Fshc  1St Floor,2360.00, 13-Feb-2018
1312,Revenue,CAHD,Bed Purchasing - Southmead Hospital,Permanent Nursing,Fshc  1St Floor,2360.00, 13-Feb-2018
1313,Revenue,CAHD,South Glos Users in South Glos Homes,Permanent Nursing,Fshc  1St Floor,620.20, 13-Feb-2018
1314,Revenue,CAHD,Bed Purchasing - Southmead Hospital,Permanent Nursing,Fshc  1St Floor,2560.00, 13-Feb-2018
1315,Revenue,CAHD,Bed Purchasing - Southmead Hospital,Permanent Nursing,Fshc  1St Floor,1188.57, 13-Feb-2018
1316,Revenue,CAHD,Bed Purchasing - South,Permanent Nursing,Fshc  1St Floor,2613.56, 13-Feb-2018
1317,Revenue,CAHD,South Glos Users in South Glos Homes,Permanent Nursing,Fshc  1St Floor,620.20, 13-Feb-2018
1318,Revenue,CAHD,South Glos Users in South Glos Homes,Permanent Nursing,Fshc  1St Floor,620.20, 13-Feb-2018
1319,Revenue,CAHD,Bed Purchasing - North,Respite Planned - Nursing,Fshc  1St Floor,1420.00, 13-Feb-2018
1320,Revenue,CAHD,South Glos Users in South Glos Homes,Permanent Nursing,Fshc  1St Floor,620.20, 13-Feb-2018
1321,Revenue,CAHD,South Glos Users in South Glos Homes,Permanent Nursing,Fshc  1St Floor,620.20, 13-Feb-2018
1322,Revenue,CAHD,Bed Purchasing - South,Permanent Nursing,Fshc  1St Floor,2360.00, 13-Feb-2018
1323,Revenue,CAHD,Bed Purchasing - Southmead Hospital,Permanent Nursing,Fshc  1St Floor,2281.28, 13-Feb-2018
1324,Revenue,CAHD,South Glos Users in South Glos Homes,Permanent Nursing,Fshc  1St Floor,620.20, 13-Feb-2018
1325,Revenue,CAHD,South Glos Users in South Glos Homes,Permanent Nursing,Fshc  1St Floor,2037.80, 13-Feb-2018
1326,Revenue,CAHD,Bed Purchasing - Southmead Hospital,Permanent Nursing,Fshc  1St Floor,2360.00, 13-Feb-2018
1327,Revenue,CAHD,South Glos Users in South Glos Homes,Permanent Nursing,Fshc  1St Floor,620.20, 13-Feb-2018
1328,Revenue,CAHD,Bed Purchasing - South,Permanent Nursing,Fshc  1St Floor,2228.00, 13-Feb-2018
1329,Revenue,CAHD,South Glos Users in South Glos Homes,Permanent Nursing,Fshc  1St Floor,620.20, 13-Feb-2018
1330,Revenue,CAHD,Bed Purchasing - Southmead Hospital,Permanent Nursing,Fshc  1St Floor,2228.00, 13-Feb-2018
1331,Revenue,CAHD,South Glos Users in South Glos Homes,Permanent Nursing,Fshc  1St Floor,620.20, 13-Feb-2018
1332,Revenue,CAHD,Bed Purchasing - South,Permanent Nursing,Fshc  1St Floor,2228.00, 13-Feb-2018
1333,Revenue,CAHD,South Glos Users in South Glos Homes,Permanent Nursing,Fshc  1St Floor,620.20, 13-Feb-2018
1334,Revenue,CAHD,Bed Purchasing - South,Permanent Nursing,Fshc  1St Floor,2281.28, 13-Feb-2018
1335,Revenue,CAHD,South Glos Users in South Glos Homes,Permanent Nursing,Fshc  1St Floor,620.20, 13-Feb-2018
1336,Revenue,CAHD,South Glos Users in South Glos Homes,Permanent Nursing,Fshc  1St Floor,5421.30, 13-Feb-2018
1337,Revenue,CAHD,Bed Purchasing - Southmead Hospital,Permanent Nursing,Fshc  1St Floor,2400.00, 13-Feb-2018
1338,Revenue,CAHD,Bed Purchasing - North,Permanent Nursing,Fshc  1St Floor,2312.32, 13-Feb-2018
1339,Revenue,CAHD,South Glos Users in South Glos Homes,Permanent Nursing,Fshc  1St Floor,620.20, 13-Feb-2018
1340,Revenue,CAHD,Bed Purchasing - South,Permanent Nursing,Fshc  1St Floor,2360.00, 13-Feb-2018
1341,Revenue,CAHD,Bed Purchasing - South,Permanent Nursing,Fshc  1St Floor,2022.86, 13-Feb-2018
1342,Revenue,CAHD,Bed Purchasing - Southmead Hospital,Permanent Nursing,Fshc  1St Floor,2810.84, 13-Feb-2018
1343,Revenue,CAHD,Bed Purchasing - North,Fees & Charges Income - General,Fshc  1St Floor,1213.64, 13-Feb-2018
1344,Revenue,CAHD,Bed Purchasing - Southmead Hospital,Permanent Residential,Fshc  1St Floor,2256.96, 13-Feb-2018
1345,Revenue,CAHD,South Glos Users in South Glos Homes,Permanent Nursing,Fshc  1St Floor,620.20, 13-Feb-2018
1346,Revenue,CAHD,Bed Purchasing - Southmead Hospital,Permanent Nursing,Fshc  1St Floor,2228.00, 13-Feb-2018
1347,Revenue,CAHD,South Glos Users in South Glos Homes,Permanent Nursing,Fshc  1St Floor,620.20, 13-Feb-2018
1348,Revenue,CAHD,Bed Purchasing - Southmead Hospital,Permanent Nursing,Fshc  1St Floor,2296.00, 13-Feb-2018
1349,Revenue,CAHD,South Glos Users in South Glos Homes,Permanent Nursing,Fshc  1St Floor,620.20, 13-Feb-2018
1350,Revenue,CAHD,Bed Purchasing - North,Permanent Nursing,Fshc  1St Floor,2228.00, 13-Feb-2018
1351,Revenue,CAHD,South Glos Users in South Glos Homes,Permanent Nursing,Fshc  1St Floor,620.20, 13-Feb-2018
1352,Revenue,CAHD,Bed Purchasing - Southmead Hospital,Permanent Nursing,Fshc  1St Floor,2296.00, 13-Feb-2018
1353,Revenue,CAHD,South Glos Users in South Glos Homes,Permanent Nursing,Fshc  1St Floor,620.20, 13-Feb-2018
1354,Revenue,CAHD,Bed Purchasing - North,Permanent Residential,Fshc  1St Floor,6075.00, 13-Feb-2018
1355,Revenue,CAHD,Bed Purchasing - North,Permanent Residential,Fshc  1St Floor,2700.00, 13-Feb-2018
1356,Revenue,CAHD,Bed Purchasing - Southmead Hospital,Permanent Nursing,Fshc  1St Floor,2228.00, 13-Feb-2018
1357,Revenue,CAHD,South Glos Users in South Glos Homes,Permanent Nursing,Fshc  1St Floor,620.20, 13-Feb-2018
1358,Revenue,CAHD,Bed Purchasing - Southmead Hospital,Permanent Residential,Fshc  1St Floor,2072.00, 13-Feb-2018
1359,Revenue,CAHD,South Glos Users in South Glos Homes,Permanent Nursing,Fshc  1St Floor,620.20, 13-Feb-2018
1360,Revenue,CAHD,Bed Purchasing - North,Permanent Residential,Fshc  1St Floor,2780.00, 13-Feb-2018
1361,Revenue,CAHD,Bed Purchasing - North,Respite Planned - Residential,Fshc  1St Floor,1390.00, 13-Feb-2018
1362,Revenue,CAHD,Bed Purchasing - South,Permanent Residential,Fshc  1St Floor,2700.00, 13-Feb-2018
1363,Revenue,CAHD,Bed Purchasing - North,Respite Planned - Residential,Fshc  1St Floor,595.71, 13-Feb-2018
1364,Revenue,CAHD,Bed Purchasing - North,Permanent Nursing,Fshc  1St Floor,2296.00, 13-Feb-2018
1365,Revenue,CAHD,South Glos Users in South Glos Homes,Permanent Nursing,Fshc  1St Floor,620.20, 13-Feb-2018
1366,Revenue,CAHD,Bed Purchasing - Southmead Hospital,Permanent Nursing,Fshc  1St Floor,2256.96, 13-Feb-2018
1367,Revenue,CAHD,South Glos Users in South Glos Homes,Permanent Nursing,Fshc  1St Floor,620.20, 13-Feb-2018
1368,Revenue,CAHD,Bed Purchasing - Southmead Hospital,Permanent Nursing,Fshc  1St Floor,2228.00, 13-Feb-2018
1369,Revenue,CAHD,South Glos Users in South Glos Homes,Permanent Nursing,Fshc  1St Floor,620.20, 13-Feb-2018
1370,Revenue,CAHD,Bed Purchasing - North,Permanent Nursing,Fshc  1St Floor,2228.00, 13-Feb-2018
1371,Revenue,CAHD,Bed Purchasing - North,Permanent Nursing,Fshc  1St Floor,2228.00, 13-Feb-2018
1372,Revenue,CAHD,South Glos Users in South Glos Homes,Permanent Nursing,Fshc  1St Floor,620.20, 13-Feb-2018
1373,Revenue,CAHD,Bed Purchasing - North,Permanent Nursing,Fshc  1St Floor,2296.00, 13-Feb-2018
1374,Revenue,CAHD,South Glos Users in South Glos Homes,Permanent Nursing,Fshc  1St Floor,620.20, 13-Feb-2018
1375,Revenue,CAHD,Bed Purchasing - North,Permanent Nursing,Fshc  1St Floor,2228.00, 13-Feb-2018
1376,Revenue,CAHD,South Glos Users in South Glos Homes,Permanent Nursing,Fshc  1St Floor,620.20, 13-Feb-2018
1377,Revenue,CAHD,South Glos Users in South Glos Homes,Permanent Nursing,Fshc  1St Floor,620.20, 13-Feb-2018
1378,Revenue,CAHD,Bed Purchasing - North,Permanent Residential,Fshc  1St Floor,2700.00, 13-Feb-2018
1379,Revenue,CAHD,Bed Purchasing - Southmead Hospital,Permanent Nursing,Fshc  1St Floor,2296.00, 13-Feb-2018
1380,Revenue,CAHD,South Glos Users in South Glos Homes,Permanent Nursing,Fshc  1St Floor,620.20, 13-Feb-2018
1381,Revenue,CAHD,Bed Purchasing - Southmead Hospital,Fees & Charges Income - General,Fshc  1St Floor,2861.86, 13-Feb-2018
1382,Revenue,CAHD,South Glos Users in South Glos Homes,Permanent Nursing,Fshc  1St Floor,620.20, 13-Feb-2018
1383,Revenue,CAHD,Bed Purchasing - North,Permanent Nursing,Fshc  1St Floor,2228.00, 13-Feb-2018
1384,Revenue,CAHD,South Glos Users in South Glos Homes,Permanent Nursing,Fshc  1St Floor,620.20, 13-Feb-2018
1385,Revenue,CAHD,South Glos Users in South Glos Homes,Permanent Nursing,Fshc  1St Floor,620.20, 13-Feb-2018
1386,Revenue,CAHD,South Glos Users in South Glos Homes,Permanent Nursing,Fshc  1St Floor,620.20, 13-Feb-2018
1387,Revenue,CAHD,South Glos Users in South Glos Homes,Permanent Nursing,Fshc  1St Floor,620.20, 13-Feb-2018
1388,Revenue,CAHD,Bed Purchasing - Southmead Hospital,Permanent Nursing,Fshc  1St Floor,2228.00, 13-Feb-2018
1389,Revenue,CAHD,South Glos Users in South Glos Homes,Permanent Nursing,Fshc  1St Floor,620.20, 13-Feb-2018
1390,Revenue,CAHD,South Glos Users in South Glos Homes,Permanent Nursing,Fshc  1St Floor,620.20, 13-Feb-2018
1391,Revenue,CAHD,South Glos Users in South Glos Homes,Permanent Nursing,Fshc  1St Floor,620.20, 13-Feb-2018
1392,Revenue,CAHD,Bed Purchasing - North,Permanent Nursing,Fshc  1St Floor,2228.00, 13-Feb-2018
1393,Revenue,CAHD,South Glos Users in South Glos Homes,Permanent Nursing,Fshc  1St Floor,620.20, 13-Feb-2018
1394,Revenue,CAHD,Bed Purchasing - North,Permanent Nursing,Fshc  1St Floor,2228.00, 13-Feb-2018
1395,Revenue,CAHD,South Glos Users in South Glos Homes,Permanent Nursing,Fshc  1St Floor,620.20, 13-Feb-2018
1396,Revenue,CAHD,Bed Purchasing - North,Permanent Nursing,Fshc  1St Floor,2228.00, 13-Feb-2018
1397,Revenue,CAHD,South Glos Users in South Glos Homes,Permanent Nursing,Fshc  1St Floor,620.20, 13-Feb-2018
1398,Revenue,CAHD,Bed Purchasing - Southmead Hospital,Permanent Nursing,Fshc  1St Floor,2228.00, 13-Feb-2018
1399,Revenue,CAHD,South Glos Users in South Glos Homes,Permanent Nursing,Fshc  1St Floor,620.20, 13-Feb-2018
1400,Revenue,CAHD,Bed Purchasing - North,Permanent Nursing,Fshc  1St Floor,2228.00, 13-Feb-2018
1401,Revenue,CAHD,South Glos Users in South Glos Homes,Permanent Nursing,Fshc  1St Floor,620.20, 13-Feb-2018
1402,Revenue,CAHD,Bed Purchasing - North,Permanent Nursing,Fshc  1St Floor,2228.00, 13-Feb-2018
1403,Revenue,CAHD,South Glos Users in South Glos Homes,Permanent Nursing,Fshc  1St Floor,620.20, 13-Feb-2018
1404,Revenue,CAHD,South Glos Users in South Glos Homes,Permanent Nursing,Fshc  1St Floor,620.20, 13-Feb-2018
1405,Revenue,CAHD,Bed Purchasing - Southmead Hospital,Permanent Nursing,Fshc  1St Floor,2228.00, 13-Feb-2018
1406,Revenue,CAHD,South Glos Users in South Glos Homes,Permanent Nursing,Fshc  1St Floor,620.20, 13-Feb-2018
1407,Revenue,CAHD,Bed Purchasing - North,Permanent Nursing,Fshc  1St Floor,2296.00, 13-Feb-2018
1408,Revenue,CAHD,South Glos Users in South Glos Homes,Permanent Nursing,Fshc  1St Floor,620.20, 13-Feb-2018
1409,Revenue,CAHD,Bed Purchasing - North,Permanent Nursing,Fshc  1St Floor,2228.00, 13-Feb-2018
1410,Revenue,CAHD,South Glos Users in South Glos Homes,Permanent Nursing,Fshc  1St Floor,620.20, 13-Feb-2018
1411,Revenue,CAHD,Bed Purchasing - North,Permanent Nursing,Fshc  1St Floor,2228.00, 13-Feb-2018
1412,Revenue,CAHD,South Glos Users in South Glos Homes,Permanent Nursing,Fshc  1St Floor,620.20, 13-Feb-2018
1413,Revenue,CAHD,Bed Purchasing - North,Permanent Nursing,Fshc  1St Floor,2296.00, 13-Feb-2018
1414,Revenue,CAHD,South Glos Users in South Glos Homes,Permanent Nursing,Fshc  1St Floor,620.20, 13-Feb-2018
1415,Revenue,CAHD,South Glos Users in South Glos Homes,Permanent Nursing,Fshc  1St Floor,620.20, 13-Feb-2018
1416,Revenue,CAHD,Bed Purchasing - Southmead Hospital,Permanent Nursing,Fshc  1St Floor,2382.56, 13-Feb-2018
1417,Revenue,CAHD,South Glos Users in South Glos Homes,Permanent Nursing,Fshc  1St Floor,620.20, 13-Feb-2018
1418,Revenue,CAHD,South Glos Users in South Glos Homes,Permanent Nursing,Fshc  1St Floor,620.20, 13-Feb-2018
1419,Revenue,CAHD,Bed Purchasing - North,Permanent Nursing,Fshc  1St Floor,2228.00, 13-Feb-2018
1420,Revenue,CAHD,South Glos Users in South Glos Homes,Permanent Nursing,Fshc  1St Floor,620.20, 13-Feb-2018
1421,Revenue,CAHD,Bed Purchasing - North,Permanent Nursing,Fshc  1St Floor,1904.24, 13-Feb-2018
1422,Revenue,CAHD,South Glos Users in South Glos Homes,Permanent Nursing,Fshc  1St Floor,620.20, 13-Feb-2018
1423,Revenue,CAHD,Bed Purchasing - Southmead Hospital,Permanent Nursing,Fshc  1St Floor,3100.00, 13-Feb-2018
1424,Revenue,CAHD,South Glos Users in South Glos Homes,Permanent Nursing,Fshc  1St Floor,620.20, 13-Feb-2018
1425,Revenue,CAHD,South Glos Users in South Glos Homes,Permanent Nursing,Fshc  1St Floor,620.20, 13-Feb-2018
1426,Revenue,CAHD,South Glos Users in South Glos Homes,Permanent Nursing,Fshc  1St Floor,620.20, 13-Feb-2018
1427,Revenue,CAHD,Bed Purchasing - Southmead Hospital,Respite Emergency - Residential,Fshc  1St Floor,2879.80, 13-Feb-2018
1428,Revenue,CAHD,Bed Purchasing - Southmead Hospital,Respite Emergency - Residential,Fshc  1St Floor,1954.15, 13-Feb-2018
1429,Revenue,CAHD,South Glos Users in South Glos Homes,Permanent Nursing,Fshc  1St Floor,620.20, 13-Feb-2018
1430,Revenue,CAHD,Bed Purchasing - North,Respite Planned - Nursing,Fshc  1St Floor,2914.29, 13-Feb-2018
1431,Revenue,CAHD,Bed Purchasing - North,Respite Planned - Nursing,Fshc  1St Floor,1700.00, 13-Feb-2018
1432,Revenue,CAHD,Bed Purchasing - South,Permanent Nursing,Fshc  1St Floor,2507.16, 13-Feb-2018
1433,Revenue,CAHD,South Glos Users in South Glos Homes,Permanent Nursing,Fshc  1St Floor,620.20, 13-Feb-2018
1434,Revenue,CAHD,South Glos Users in South Glos Homes,Permanent Nursing,Fshc  1St Floor,620.20, 13-Feb-2018
1435,Revenue,CAHD,Bed Purchasing - North,Permanent Nursing,Fshc  1St Floor,2228.00, 13-Feb-2018
1436,Revenue,CAHD,South Glos Users in South Glos Homes,Permanent Nursing,Fshc  1St Floor,620.20, 13-Feb-2018
1437,Revenue,CAHD,South Glos Users in South Glos Homes,Permanent Nursing,Fshc  1St Floor,620.20, 13-Feb-2018
1438,Revenue,CAHD,South Glos Users in South Glos Homes,Permanent Nursing,Fshc  1St Floor,620.20, 13-Feb-2018
1439,Revenue,CAHD,Bed Purchasing - Southmead Hospital,Permanent Residential,Fshc  1St Floor,2072.00, 13-Feb-2018
1440,Revenue,CAHD,South Glos Users in South Glos Homes,Permanent Nursing,Fshc  1St Floor,620.20, 13-Feb-2018
1441,Revenue,CAHD,Bed Purchasing - Southmead Hospital,Fees & Charges Income - General,Fshc  1St Floor,585.05, 13-Feb-2018
1442,Revenue,CAHD,South Glos Users in South Glos Homes,Permanent Nursing,Fshc  1St Floor,1936.00, 13-Feb-2018
1443,Revenue,CAHD,South Glos Users in South Glos Homes,Permanent Nursing,Fshc  1St Floor,620.20, 13-Feb-2018
1444,Revenue,CAHD,South Glos Users in South Glos Homes,Permanent Nursing,Fshc  1St Floor,620.20, 13-Feb-2018
1445,Revenue,CAHD,Bed Purchasing - North,Respite Planned - Nursing,Fshc  1St Floor,2479.80, 13-Feb-2018
1446,Revenue,CAHD,Bed Purchasing - North,Respite Planned - Nursing,Fshc  1St Floor,1151.34, 13-Feb-2018
1447,Revenue,CAHD,South Glos Users in South Glos Homes,Permanent Nursing,Fshc  1St Floor,620.20, 13-Feb-2018
1448,Revenue,CAHD,Bed Purchasing - Southmead Hospital,Permanent Nursing,Fshc  1St Floor,2405.88, 13-Feb-2018
1449,Revenue,CAHD,South Glos Users in South Glos Homes,Permanent Nursing,Fshc  1St Floor,620.20, 13-Feb-2018
1450,Revenue,CAHD,South Glos Users in South Glos Homes,Permanent Nursing,Fshc  1St Floor,620.20, 13-Feb-2018
1451,Revenue,CAHD,South Glos Users in South Glos Homes,Permanent Nursing,Fshc  1St Floor,620.20, 13-Feb-2018
1452,Revenue,CAHD,Bed Purchasing - Southmead Hospital,Respite Emergency - Residential,Fshc  1St Floor,3008.29, 13-Feb-2018
1453,Revenue,CAHD,Bed Purchasing - Southmead Hospital,Respite Emergency - Residential,Fshc  1St Floor,848.49, 13-Feb-2018
1454,Revenue,CAHD,South Glos Users in South Glos Homes,Permanent Nursing,Fshc  1St Floor,1639.10, 13-Feb-2018
1455,Revenue,CAHD,South Glos Users in South Glos Homes,Permanent Nursing,Fshc  1St Floor,620.20, 13-Feb-2018
1456,Revenue,CAHD,Bed Purchasing - North,Permanent Nursing,Fshc  1St Floor,2549.24, 13-Feb-2018
1457,Revenue,CAHD,South Glos Users in South Glos Homes,Permanent Nursing,Fshc  1St Floor,620.20, 13-Feb-2018
1458,Revenue,CAHD,Bed Purchasing - Southmead Hospital,Permanent Nursing,Fshc  1St Floor,2507.16, 13-Feb-2018
1459,Revenue,CAHD,South Glos Users in South Glos Homes,Permanent Nursing,Fshc  1St Floor,620.20, 13-Feb-2018
1460,Revenue,CAHD,Bed Purchasing - North,Permanent Nursing,Fshc  1St Floor,2296.00, 13-Feb-2018
1461,Revenue,CAHD,South Glos Users in South Glos Homes,Permanent Nursing,Fshc  1St Floor,620.20, 13-Feb-2018
1462,Revenue,CAHD,South Glos Users in South Glos Homes,Permanent Nursing,Fshc  1St Floor,620.20, 13-Feb-2018
1463,Revenue,CAHD,South Glos Users in South Glos Homes,Permanent Nursing,Fshc  1St Floor,620.20, 13-Feb-2018
1464,Revenue,CAHD,Bed Purchasing - Southmead Hospital,Permanent Nursing,Fshc  1St Floor,3100.00, 13-Feb-2018
1465,Revenue,CAHD,South Glos Users in South Glos Homes,Permanent Nursing,Fshc  1St Floor,620.20, 13-Feb-2018
1466,Revenue,CAHD,South Glos Users in South Glos Homes,Permanent Nursing,Fshc  1St Floor,620.20, 13-Feb-2018
1467,Revenue,CAHD,Bed Purchasing - North,Permanent Nursing,Fshc  1St Floor,2410.72, 13-Feb-2018
1468,Revenue,CAHD,South Glos Users in South Glos Homes,Permanent Nursing,Fshc  1St Floor,620.20, 13-Feb-2018
1469,Revenue,CAHD,Bed Purchasing - North,Permanent Nursing,Fshc  1St Floor,2228.00, 13-Feb-2018
1470,Revenue,CAHD,South Glos Users in South Glos Homes,Permanent Nursing,Fshc  1St Floor,620.20, 13-Feb-2018
1471,Revenue,CAHD,Bed Purchasing - South,Permanent Nursing,Fshc  1St Floor,2507.16, 13-Feb-2018
1472,Revenue,CAHD,South Glos Users in South Glos Homes,Permanent Nursing,Fshc  1St Floor,620.20, 13-Feb-2018
1473,Revenue,CAHD,Bed Purchasing - Southmead Hospital,Permanent Nursing,Fshc  1St Floor,2296.00, 13-Feb-2018
1474,Revenue,CAHD,South Glos Users in South Glos Homes,Permanent Nursing,Fshc  1St Floor,620.20, 13-Feb-2018
1475,Revenue,CAHD,Bed Purchasing - South,Permanent Nursing,Fshc  1St Floor,2431.20, 13-Feb-2018
1476,Revenue,CAHD,South Glos Users in South Glos Homes,Permanent Nursing,Fshc  1St Floor,620.20, 13-Feb-2018
1477,Revenue,CAHD,South Glos Users in South Glos Homes,Permanent Nursing,Fshc  1St Floor,620.20, 13-Feb-2018
1478,Revenue,CAHD,South Glos Users in South Glos Homes,Permanent Nursing,Fshc  1St Floor,686.65, 13-Feb-2018
1479,Revenue,CAHD,Bed Purchasing - South,Permanent Nursing,Fshc  1St Floor,2500.00, 13-Feb-2018
1480,Revenue,CAHD,South Glos Users in South Glos Homes,Permanent Nursing,Fshc  1St Floor,620.20, 13-Feb-2018
1481,Revenue,CAHD,Bed Purchasing - Southmead Hospital,Permanent Nursing,Fshc  1St Floor,2228.00, 13-Feb-2018
1482,Revenue,CAHD,South Glos Users in South Glos Homes,Permanent Nursing,Fshc  1St Floor,620.20, 13-Feb-2018
1483,Revenue,CAHD,South Glos Users in South Glos Homes,Permanent Nursing,Fshc  1St Floor,620.20, 13-Feb-2018
1484,Revenue,CAHD,South Glos Users in South Glos Homes,Permanent Nursing,Fshc  1St Floor,620.20, 13-Feb-2018
1485,Revenue,CAHD,Bed Purchasing - South,Permanent Nursing,Fshc  1St Floor,2300.00, 13-Feb-2018
1486,Revenue,CAHD,Bed Purchasing - Southmead Hospital,Permanent Residential,Fshc  1St Floor,2072.00, 13-Feb-2018
1487,Revenue,CAHD,South Glos Users in South Glos Homes,Permanent Nursing,Fshc  1St Floor,620.20, 13-Feb-2018
1488,Revenue,CAHD,Bed Purchasing - South,Permanent Nursing,Fshc  1St Floor,2228.00, 13-Feb-2018
1489,Revenue,CAHD,South Glos Users in South Glos Homes,Permanent Nursing,Fshc  1St Floor,620.20, 13-Feb-2018
1490,Revenue,CAHD,South Glos Users in South Glos Homes,Permanent Nursing,Fshc  1St Floor,620.20, 13-Feb-2018
1491,Revenue,CAHD,South Glos Users in South Glos Homes,Permanent Nursing,Fshc  1St Floor,620.20, 13-Feb-2018
1492,Revenue,CAHD,South Glos Users in South Glos Homes,Permanent Nursing,Fshc  1St Floor,620.20, 13-Feb-2018
1493,Revenue,CAHD,Bed Purchasing - Southmead Hospital,Permanent Residential,Fshc  1St Floor,2300.00, 13-Feb-2018
1494,Revenue,CAHD,South Glos Users in South Glos Homes,Permanent Nursing,Fshc  1St Floor,620.20, 13-Feb-2018
1495,Revenue,CAHD,Bed Purchasing - Southmead Hospital,Permanent Nursing,Fshc  1St Floor,2258.92, 13-Feb-2018
1496,Revenue,CAHD,South Glos Users in South Glos Homes,Permanent Nursing,Fshc  1St Floor,620.20, 13-Feb-2018
1497,Revenue,CAHD,South Glos Users in South Glos Homes,Permanent Nursing,Fshc  1St Floor,620.20, 13-Feb-2018
1498,Revenue,CAHD,South Glos Users in South Glos Homes,Permanent Nursing,Fshc  1St Floor,620.20, 13-Feb-2018
1499,Revenue,CAHD,Bed Purchasing - Southmead Hospital,Permanent Residential,Fshc  1St Floor,2300.00, 13-Feb-2018
1500,Revenue,CAHD,Bed Purchasing - South,Permanent Residential,Fshc  1St Floor,2140.00, 13-Feb-2018
1501,Revenue,CAHD,Bed Purchasing - Southmead Hospital,Permanent Nursing,Fshc  1St Floor,2296.00, 13-Feb-2018
1502,Revenue,CAHD,South Glos Users in South Glos Homes,Permanent Nursing,Fshc  1St Floor,620.20, 13-Feb-2018
1503,Revenue,CAHD,Bed Purchasing - Southmead Hospital,Permanent Nursing,Fshc  1St Floor,2228.00, 13-Feb-2018
1504,Revenue,CAHD,South Glos Users in South Glos Homes,Permanent Nursing,Fshc  1St Floor,620.20, 13-Feb-2018
1505,Revenue,CAHD,Bed Purchasing - South,Permanent Nursing,Fshc  1St Floor,2633.80, 13-Feb-2018
1506,Revenue,CAHD,South Glos Users in South Glos Homes,Permanent Nursing,Fshc  1St Floor,620.20, 13-Feb-2018
1507,Revenue,CAHD,Bed Purchasing - South,Permanent Nursing,Fshc  1St Floor,2228.00, 13-Feb-2018
1508,Revenue,CAHD,South Glos Users in South Glos Homes,Permanent Nursing,Fshc  1St Floor,620.20, 13-Feb-2018
1509,Revenue,CAHD,Bed Purchasing - South,Permanent Nursing,Fshc  1St Floor,2228.00, 13-Feb-2018
1510,Revenue,CAHD,South Glos Users in South Glos Homes,Permanent Nursing,Fshc  1St Floor,620.20, 13-Feb-2018
1511,Revenue,CAHD,Bed Purchasing - South,Permanent Nursing,Fshc  1St Floor,2354.28, 13-Feb-2018
1512,Revenue,CAHD,South Glos Users in South Glos Homes,Permanent Nursing,Fshc  1St Floor,620.20, 13-Feb-2018
1513,Revenue,CAHD,Bed Purchasing - South,Permanent Nursing,Fshc  1St Floor,2228.00, 13-Feb-2018
1514,Revenue,CAHD,South Glos Users in South Glos Homes,Permanent Nursing,Fshc  1St Floor,620.20, 13-Feb-2018
1515,Revenue,CAHD,South Glos Users in South Glos Homes,Permanent Nursing,Fshc  1St Floor,620.20, 13-Feb-2018
1516,Revenue,CAHD,Bed Purchasing - South,Permanent Residential,Fshc  1St Floor,2182.36, 13-Feb-2018
1517,Revenue,CAHD,Bed Purchasing - South,Permanent Nursing,Fshc  1St Floor,2192.12, 13-Feb-2018
1518,Revenue,CAHD,Bed Purchasing - Southmead Hospital,Permanent Nursing,Fshc  1St Floor,2874.96, 13-Feb-2018
1519,Revenue,CAHD,Bed purchasing - Elderly S117 - South,Permanent Nursing,Fshc  1St Floor,2192.12, 13-Feb-2018
1520,Revenue,CAHD,Bed Purchasing - South,Permanent Nursing,Fshc  1St Floor,3444.20, 13-Feb-2018
1521,Revenue,CAHD,Bed Purchasing - South,Permanent Nursing,Fshc  1St Floor,3849.40, 13-Feb-2018
1522,Revenue,CAHD,Bed Purchasing - Southmead Hospital,Permanent Nursing,Fshc  1St Floor,2192.12, 13-Feb-2018
1523,Revenue,CAHD,Bed Purchasing - Southmead Hospital,Respite Planned - Residential,Fshc  1St Floor,1285.71, 13-Feb-2018
1524,Revenue,CAHD,Bed Purchasing - Southmead Hospital,Permanent Nursing,Fshc  1St Floor,3100.00, 13-Feb-2018
1525,Revenue,CAHD,Bed Purchasing - Southmead Hospital,Permanent Nursing,Fshc  1St Floor,2192.12, 13-Feb-2018
1526,Revenue,CAHD,Bed Purchasing - Southmead Hospital,Permanent Nursing,Fshc  1St Floor,2192.12, 13-Feb-2018
1527,Revenue,CAHD,Bed Purchasing - South,Permanent Nursing,Fshc  1St Floor,2192.12, 13-Feb-2018
1528,Revenue,CAHD,Bed Purchasing - South,Permanent Residential,Fshc  1St Floor,3588.12, 13-Feb-2018
1529,Revenue,CAHD,Bed Purchasing - North,Respite Planned - Residential,Fshc  1St Floor,1265.51, 13-Feb-2018
1530,Revenue,CAHD,Bed Purchasing - Southmead Hospital,Permanent Residential,Fshc  1St Floor,2014.64, 13-Feb-2018
1531,Revenue,CAHD,Bed Purchasing - North,Permanent Nursing,Fshc  1St Floor,2194.20, 13-Feb-2018
1532,Revenue,CAHD,Bed Purchasing - North,Permanent Nursing,Fshc  1St Floor,2066.00, 13-Feb-2018
1533,Revenue,CAHD,South Glos Users in South Glos Homes,Permanent Nursing,Fshc  1St Floor,620.20, 13-Feb-2018
1534,Revenue,CAHD,Bed Purchasing - Southmead Hospital,Permanent Nursing,Fshc  1St Floor,4000.00, 13-Feb-2018
1535,Revenue,CAHD,Bed Purchasing - North,Permanent Nursing,Fshc  1St Floor,2222.72, 13-Feb-2018
1536,Revenue,CAHD,Bed Purchasing - North,Permanent Nursing,Fshc  1St Floor,2266.00, 13-Feb-2018
1537,Revenue,CAHD,Bed Purchasing - South,Permanent Residential,Fshc  1St Floor,2228.60, 13-Feb-2018
1538,Revenue,CAHD,Bed Purchasing - North,Permanent Residential,Fshc  1St Floor,1855.12, 13-Feb-2018
1539,Revenue,CAHD,Bed Purchasing - South,Permanent Residential,Gladstone House,5749.96, 13-Feb-2018
1540,Revenue,CAHD,Bed Purchasing - North,Permanent Residential,Glan Y Felin,6520.08, 13-Feb-2018
1541,Revenue,CAHD,Bed Purchasing - South,Permanent Residential,Glasallt Fawr,5121.84, 13-Feb-2018
1542,Revenue,CAHD,Bed Purchasing - North,Permanent Nursing,Glebe House Nursing Home,3511.56, 13-Feb-2018
1543,Revenue,CAHD,South Glos Users in South Glos Homes,Permanent Nursing,Glebe House Nursing Home,620.20, 13-Feb-2018
1544,Revenue,CAHD,South Glos Users in South Glos Homes,Permanent Nursing,Glebe House Nursing Home,620.20, 13-Feb-2018
1545,Revenue,CAHD,South Glos Users in South Glos Homes,Permanent Nursing,Glebe House Nursing Home,620.20, 13-Feb-2018
1546,Revenue,CAHD,South Glos Users in South Glos Homes,Permanent Nursing,Glebe House Nursing Home,620.20, 13-Feb-2018
1547,Revenue,CAHD,South Glos Users in South Glos Homes,Permanent Nursing,Glebe House Nursing Home,620.20, 13-Feb-2018
1548,Revenue,CAHD,South Glos Users in South Glos Homes,Permanent Nursing,Glebe House Nursing Home,620.20, 13-Feb-2018
1549,Revenue,CAHD,South Glos Users in South Glos Homes,Permanent Nursing,Glebe House Nursing Home,620.20, 13-Feb-2018
1550,Revenue,CAHD,South Glos Users in South Glos Homes,Permanent Nursing,Glebe House Nursing Home,620.20, 13-Feb-2018
1551,Revenue,CAHD,Bed Purchasing - North,Permanent Nursing,Glebe House Nursing Home,3043.36, 13-Feb-2018
1552,Revenue,CAHD,South Glos Users in South Glos Homes,Permanent Nursing,Glebe House Nursing Home,620.20, 13-Feb-2018
1553,Revenue,CAHD,South Glos Users in South Glos Homes,Permanent Nursing,Glebe House Nursing Home,620.20, 13-Feb-2018
1554,Revenue,CAHD,South Glos Users in South Glos Homes,Permanent Nursing,Glebe House Nursing Home,620.20, 13-Feb-2018
1555,Revenue,CAHD,South Glos Users in South Glos Homes,Permanent Nursing,Glebe House Nursing Home,620.20, 13-Feb-2018
1556,Revenue,CAHD,South Glos Users in South Glos Homes,Permanent Nursing,Glebe House Nursing Home,620.20, 13-Feb-2018
1557,Revenue,CAHD,South Glos Users in South Glos Homes,Permanent Nursing,Glebe House Nursing Home,620.20, 13-Feb-2018
1558,Revenue,CAHD,South Glos Users in South Glos Homes,Permanent Nursing,Glebe House Nursing Home,620.20, 13-Feb-2018
1559,Revenue,CAHD,South Glos Users in South Glos Homes,Permanent Nursing,Glebe House Nursing Home,620.20, 13-Feb-2018
1560,Revenue,CAHD,Bed Purchasing - South,Permanent Residential,Goldcare House,4539.28, 13-Feb-2018
1561,Revenue,CAHD,Bed Purchasing - Southmead Hospital,Permanent Residential,Gordena Care Home,3852.48, 13-Feb-2018
1562,Revenue,CAHD,Bed Purchasing - South,Permanent Residential,Gordena Care Home,2586.80, 13-Feb-2018
1563,Revenue,CAHD,Bed Purchasing - South,Permanent Residential,Gordena Care Home,3682.84, 13-Feb-2018
1564,Revenue,CAHD,Bed Purchasing - South,Permanent Residential,Gordena Care Home,3694.04, 13-Feb-2018
1565,Revenue,CAHD,Bed Purchasing - South,Permanent Residential,Gordena Care Limited,4826.88, 13-Feb-2018
1566,Revenue,CAHD,Bed Purchasing - South,Permanent Residential,Gordena Care Limited,7380.04, 13-Feb-2018
1567,Revenue,CAHD,Jointly Funded H&SC Packages,Permanent Residential,Gordena Care Limited,2900.80, 13-Feb-2018
1568,Revenue,CAHD,Bed purchasing - S28A Under 65 - South,Permanent Residential,Gordena Care Limited,4694.40, 13-Feb-2018
1569,Revenue,CAHD,Bed Purchasing - North,Permanent Residential,Gordena Care Limited,4892.64, 13-Feb-2018
1570,Revenue,CAHD,Bed Purchasing - South,Permanent Nursing,Gracefields Nursing Home,2486.52, 13-Feb-2018
1571,Revenue,CAHD,South Glos Users in South Glos Homes,Permanent Nursing,Gracefields Nursing Home,620.20, 13-Feb-2018
1572,Revenue,CAHD,South Glos Users in South Glos Homes,Permanent Nursing,Gracefields Nursing Home,620.20, 13-Feb-2018
1573,Revenue,CAHD,Bed Purchasing - North,Permanent Nursing,Gracefields Nursing Home,17580.00, 13-Feb-2018
1574,Revenue,CAHD,South Glos Users in South Glos Homes,Permanent Nursing,Gracefields Nursing Home,2392.20, 13-Feb-2018
1575,Revenue,CAHD,Bed Purchasing - North,Fees & Charges Income - General,Gracefields Nursing Home,535.77, 13-Feb-2018
1576,Revenue,CAHD,Bed Purchasing - North,Fees & Charges Income - General,Gracefields Nursing Home,1953.97, 13-Feb-2018
1577,Revenue,CAHD,South Glos Users in South Glos Homes,Permanent Nursing,Gracefields Nursing Home,620.20, 13-Feb-2018
1578,Revenue,CAHD,South Glos Users in South Glos Homes,Permanent Nursing,Gracefields Nursing Home,620.20, 13-Feb-2018
1579,Revenue,CAHD,Bed Purchasing - Southmead Hospital,Permanent Nursing,Gracefields Nursing Home,3500.00, 13-Feb-2018
1580,Revenue,CAHD,South Glos Users in South Glos Homes,Permanent Nursing,Gracefields Nursing Home,620.20, 13-Feb-2018
1581,Revenue,CAHD,South Glos Users in South Glos Homes,Permanent Nursing,Gracefields Nursing Home,620.20, 13-Feb-2018
1582,Revenue,CAHD,South Glos Users in South Glos Homes,Permanent Nursing,Gracefields Nursing Home,620.20, 13-Feb-2018
1583,Revenue,CAHD,Bed purchasing - Elderly S117 - South,Permanent Nursing,Gracefields Nursing Home,2445.68, 13-Feb-2018
1584,Revenue,CAHD,South Glos Users in South Glos Homes,Permanent Nursing,Gracefields Nursing Home,620.20, 13-Feb-2018
1585,Revenue,CAHD,Bed Purchasing - North,Permanent Nursing,Gracefields Nursing Home,3600.00, 13-Feb-2018
1586,Revenue,CAHD,South Glos Users in South Glos Homes,Permanent Nursing,Gracefields Nursing Home,1018.90, 13-Feb-2018
1587,Revenue,CAHD,South Glos Users in South Glos Homes,Permanent Nursing,Gracefields Nursing Home,620.20, 13-Feb-2018
1588,Revenue,CAHD,Bed Purchasing - South,Permanent Nursing,Gracefields Nursing Home,3094.72, 13-Feb-2018
1589,Revenue,CAHD,South Glos Users in South Glos Homes,Permanent Nursing,Gracefields Nursing Home,620.20, 13-Feb-2018
1590,Revenue,CAHD,Bed Purchasing - South,Permanent Nursing,Gracefields Nursing Home,3952.20, 13-Feb-2018
1591,Revenue,CAHD,South Glos Users in South Glos Homes,Permanent Nursing,Gracefields Nursing Home,620.20, 13-Feb-2018
1592,Revenue,CAHD,South Glos Users in South Glos Homes,Permanent Nursing,Gracefields Nursing Home,620.20, 13-Feb-2018
1593,Revenue,CAHD,South Glos Users in South Glos Homes,Permanent Nursing,Gracefields Nursing Home,620.20, 13-Feb-2018
1594,Revenue,CAHD,Bed Purchasing - South,Permanent Nursing,Gracefields Nursing Home,6678.57, 13-Feb-2018
1595,Revenue,CAHD,Bed Purchasing - South,Permanent Nursing,Gracefields Nursing Home,3400.00, 13-Feb-2018
1596,Revenue,CAHD,South Glos Users in South Glos Homes,Permanent Nursing,Gracefields Nursing Home,620.20, 13-Feb-2018
1597,Revenue,CAHD,Bed Purchasing - South,Fees & Charges Income - General,Gracefields Nursing Home,1468.93, 13-Feb-2018
1598,Revenue,CAHD,Bed Purchasing - South,Fees & Charges Income - General,Gracefields Nursing Home,1037.19, 13-Feb-2018
1599,Revenue,CAHD,Bed Purchasing - Southmead Hospital,Permanent Nursing,Gracefields Nursing Home,3400.00, 13-Feb-2018
1600,Revenue,CAHD,Bed Purchasing - Southmead Hospital,Permanent Nursing,Gracefields Nursing Home,1335.71, 13-Feb-2018
1601,Revenue,CAHD,South Glos Users in South Glos Homes,Permanent Nursing,Gracefields Nursing Home,620.20, 13-Feb-2018
1602,Revenue,CAHD,South Glos Users in South Glos Homes,Permanent Nursing,Gracefields Nursing Home,1772.00, 13-Feb-2018
1603,Revenue,CAHD,Bed Purchasing - Southmead Hospital,Permanent Nursing,Gracefields Nursing Home,3000.00, 13-Feb-2018
1604,Revenue,CAHD,South Glos Users in South Glos Homes,Permanent Nursing,Gracefields Nursing Home,620.20, 13-Feb-2018
1605,Revenue,CAHD,Bed Purchasing - Southmead Hospital,Permanent Nursing,Gracefields Nursing Home,500.00, 13-Feb-2018
1606,Revenue,CAHD,South Glos Users in South Glos Homes,Permanent Nursing,Gracefields Nursing Home,620.20, 13-Feb-2018
1607,Revenue,CAHD,South Glos Users in South Glos Homes,Permanent Nursing,Gracefields Nursing Home,620.20, 13-Feb-2018
1608,Revenue,CAHD,South Glos Users in South Glos Homes,Permanent Nursing,Gracefields Nursing Home,620.20, 13-Feb-2018
1609,Revenue,CAHD,South Glos Users in South Glos Homes,Permanent Nursing,Gracefields Nursing Home,620.20, 13-Feb-2018
1610,Revenue,CAHD,Bed Purchasing - Southmead Hospital,Permanent Nursing,Gracefields Nursing Home,3500.00, 13-Feb-2018
1611,Revenue,CAHD,Bed Purchasing - Southmead Hospital,Permanent Nursing,Gracefields Nursing Home,500.00, 13-Feb-2018
1612,Revenue,CAHD,South Glos Users in South Glos Homes,Permanent Nursing,Gracefields Nursing Home,620.20, 13-Feb-2018
1613,Revenue,CAHD,Bed Purchasing - Southmead Hospital,Permanent Nursing,Gracefields Nursing Home,3500.00, 13-Feb-2018
1614,Revenue,CAHD,Bed Purchasing - Southmead Hospital,Permanent Nursing,Gracefields Nursing Home,3250.00, 13-Feb-2018
1615,Revenue,CAHD,South Glos Users in South Glos Homes,Permanent Nursing,Gracefields Nursing Home,620.20, 13-Feb-2018
1616,Revenue,CAHD,South Glos Users in South Glos Homes,Permanent Nursing,Gracefields Nursing Home,620.20, 13-Feb-2018
1617,Revenue,CAHD,Bed Purchasing - South,Permanent Nursing,Gracefields Nursing Home,3071.40, 13-Feb-2018
1618,Revenue,CAHD,South Glos Users in South Glos Homes,Permanent Nursing,Gracefields Nursing Home,620.20, 13-Feb-2018
1619,Revenue,CAHD,South Glos Users in South Glos Homes,Permanent Nursing,Gracefields Nursing Home,620.20, 13-Feb-2018
1620,Revenue,CAHD,South Glos Users in South Glos Homes,Permanent Nursing,Gracefields Nursing Home,620.20, 13-Feb-2018
1621,Revenue,CAHD,Bed Purchasing - Southmead Hospital,Permanent Nursing,Gracefields Nursing Home,3400.00, 13-Feb-2018
1622,Revenue,CAHD,Bed Purchasing - Southmead Hospital,Permanent Nursing,Gracefields Nursing Home,3094.72, 13-Feb-2018
1623,Revenue,CAHD,South Glos Users in South Glos Homes,Permanent Nursing,Gracefields Nursing Home,620.20, 13-Feb-2018
1624,Revenue,CAHD,South Glos Users in South Glos Homes,Permanent Nursing,Gracefields Nursing Home,620.20, 13-Feb-2018
1625,Revenue,CAHD,Bed Purchasing - South,Permanent Nursing,Gracefields Nursing Home,2970.12, 13-Feb-2018
1626,Revenue,CAHD,South Glos Users in South Glos Homes,Permanent Nursing,Gracefields Nursing Home,620.20, 13-Feb-2018
1627,Revenue,CAHD,South Glos Users in South Glos Homes,Permanent Nursing,Gracefields Nursing Home,620.20, 13-Feb-2018
1628,Revenue,CAHD,South Glos Users in South Glos Homes,Permanent Nursing,Gracefields Nursing Home,620.20, 13-Feb-2018
1629,Revenue,CAHD,South Glos Users in South Glos Homes,Permanent Nursing,Gracefields Nursing Home,620.20, 13-Feb-2018
1630,Revenue,CAHD,South Glos Users in South Glos Homes,Permanent Nursing,Gracefields Nursing Home,620.20, 13-Feb-2018
1631,Revenue,CAHD,South Glos Users in South Glos Homes,Permanent Nursing,Gracefields Nursing Home,1373.30, 13-Feb-2018
1632,Revenue,CAHD,South Glos Users in South Glos Homes,Permanent Nursing,Gracefields Nursing Home,620.20, 13-Feb-2018
1633,Revenue,CAHD,Bed Purchasing - South,Permanent Nursing,Gracefields Nursing Home,2445.68, 13-Feb-2018
1634,Revenue,CAHD,South Glos Users in South Glos Homes,Permanent Nursing,Gracefields Nursing Home,620.20, 13-Feb-2018
1635,Revenue,CAHD,Bed Purchasing - South,Permanent Nursing,Gracefields Nursing Home,3400.00, 13-Feb-2018
1636,Revenue,CAHD,South Glos Users in South Glos Homes,Permanent Nursing,Gracefields Nursing Home,620.20, 13-Feb-2018
1637,Revenue,CAHD,South Glos Users in South Glos Homes,Permanent Nursing,Gracefields Nursing Home,620.20, 13-Feb-2018
1638,Revenue,CAHD,South Glos Users in South Glos Homes,Permanent Nursing,Gracefields Nursing Home,620.20, 13-Feb-2018
1639,Revenue,CAHD,South Glos Users in South Glos Homes,Permanent Nursing,Gracefields Nursing Home,620.20, 13-Feb-2018
1640,Revenue,CAHD,South Glos Users in South Glos Homes,Permanent Nursing,Gracefields Nursing Home,620.20, 13-Feb-2018
1641,Revenue,CAHD,Bed Purchasing - Southmead Hospital,Permanent Nursing,Gracefields Nursing Home,3274.00, 13-Feb-2018
1642,Revenue,CAHD,South Glos Users in South Glos Homes,Permanent Nursing,Gracefields Nursing Home,620.20, 13-Feb-2018
1643,Revenue,CAHD,Bed Purchasing - North,Permanent Residential,Greensleeves,2036.72, 13-Feb-2018
1644,Revenue,CAHD,Bed Purchasing - South,Permanent Residential,Gwendoline House,6586.82, 13-Feb-2018
1645,Revenue,CAHD,Bed Purchasing - South,Permanent Residential,Gwendoline House,2459.08, 13-Feb-2018
1646,Revenue,CAHD,Bed Purchasing - South,Fees & Charges Income - General,Gwendoline House,1668.81, 13-Feb-2018
1647,Revenue,CAHD,Bed Purchasing - South,Respite Planned - Residential,Gwendoline House,1190.00, 13-Feb-2018
1648,Revenue,CAHD,Bed Purchasing - South,Permanent Residential,Gwendoline House,2370.40, 13-Feb-2018
1649,Revenue,CAHD,Bed Purchasing - South,Permanent Residential,Gwendoline House,2380.00, 13-Feb-2018
1650,Revenue,CAHD,Bed Purchasing - South,Respite Planned - Residential,Gwendoline House,1870.00, 13-Feb-2018
1651,Revenue,CAHD,Bed Purchasing - Southmead Hospital,Permanent Residential,Gwendoline House,2068.24, 13-Feb-2018
1652,Revenue,CAHD,Section 117 Placements MH Younger,Permanent Residential,Harefield Hall,3039.00, 13-Feb-2018
1653,Revenue,CAHD,Bed Purchasing - South,Permanent Residential,Harefield Hall,2669.60, 13-Feb-2018
1654,Revenue,CAHD,Bed Purchasing - South,Permanent Residential,Harefield Hall,2252.96, 13-Feb-2018
1655,Revenue,CAHD,Bed Purchasing - South,Permanent Residential,Harefield Hall,2443.48, 13-Feb-2018
1656,Revenue,CAHD,Bed Purchasing - South,Permanent Residential,Harefield Hall,2594.64, 13-Feb-2018
1657,Revenue,CAHD,Bed Purchasing - Southmead Hospital,Permanent Nursing,Hazelwood Gardens Nursing Home,2800.00, 13-Feb-2018
1658,Revenue,CAHD,Bed Purchasing - Southmead Hospital,Permanent Nursing,Hazelwood Gardens Nursing Home,2800.00, 13-Feb-2018
1659,Revenue,CAHD,Bed Purchasing - Southmead Hospital,Permanent Nursing,Hazelwood Gardens Nursing Home,2608.48, 13-Feb-2018
1660,Revenue,CAHD,Bed Purchasing - Southmead Hospital,Permanent Nursing,Hazelwood Gardens Nursing Home,2245.88, 13-Feb-2018
1661,Revenue,CAHD,Bed Purchasing - Southmead Hospital,Permanent Nursing,Hazelwood Gardens Nursing Home,742.86, 13-Feb-2018
1662,Revenue,CAHD,Bed Purchasing - Southmead Hospital,Permanent Residential,Hc-One Ltd,2140.32, 13-Feb-2018
1663,Revenue,CAHD,Bed Purchasing - Southmead Hospital,Permanent Nursing,Hc-One Ltd,2135.24, 13-Feb-2018
1664,Revenue,CAHD,Bed Purchasing - Southmead Hospital,Permanent Nursing,Hc-One Ltd,2763.76, 13-Feb-2018
1665,Revenue,CAHD,Bed Purchasing - North,Permanent Nursing,Hc-One Ltd,2130.64, 13-Feb-2018
1666,Revenue,CAHD,Bed Purchasing - North,Permanent Nursing,Hc-One Ltd,2116.36, 13-Feb-2018
1667,Revenue,CAHD,Bed Purchasing - Southmead Hospital,Permanent Residential,Hc-One Ltd,2224.52, 13-Feb-2018
1668,Revenue,CAHD,South Glos Users in South Glos Homes,Permanent Nursing,Hc-One Ltd,620.20, 13-Feb-2018
1669,Revenue,CAHD,Bed Purchasing - North,Permanent Nursing,Hc-One Ltd,2130.60, 13-Feb-2018
1670,Revenue,CAHD,Bed Purchasing - Southmead Hospital,Permanent Nursing,Hc-One Ltd,2804.48, 13-Feb-2018
1671,Revenue,CAHD,Bed Purchasing - Southmead Hospital,Permanent Nursing,Hc-One Ltd,2804.48, 13-Feb-2018
1672,Revenue,CAHD,Bed Purchasing - Southmead Hospital,Permanent Nursing,Hc-One Ltd,2560.80, 13-Feb-2018
1673,Revenue,CAHD,Bed Purchasing - Southmead Hospital,Permanent Nursing,Head Office,2367.88, 13-Feb-2018
1674,Revenue,CAHD,Home Care - Elderly - North,Day Care / Social Activities,Head Office,552.96, 13-Feb-2018
1675,Revenue,CAHD,Bed Purchasing - South,Permanent Nursing,Head Office,3841.88, 13-Feb-2018
1676,Revenue,CAHD,S117 Placements PCT,Permanent Residential,Hesley Hall,18899.04, 13-Feb-2018
1677,Revenue,CAHD,Bed Purchasing - North,Permanent Residential,High Border Lodge,2001.68, 13-Feb-2018
1678,Revenue,CAHD,Bed Purchasing - Southmead Hospital,Permanent Residential,Highgate Studios,2378.68, 13-Feb-2018
1679,Revenue,CAHD,Home Care - Elderly - North,Supported Living,Hillcairnie House,4767.00, 13-Feb-2018
1680,Revenue,CAHD,Home Care - Elderly - North,Supported Living,Hillcairnie House,4225.24, 13-Feb-2018
1681,Revenue,CAHD,Home Care - Elderly - South,Supported Living,Hillcairnie House,2468.16, 13-Feb-2018
1682,Revenue,CAHD,Home Care - Elderly - South,Supported Living,Hillcairnie House,2468.16, 13-Feb-2018
1683,Revenue,CAHD,Home Care - Elderly - South,Supported Living,Hillcairnie House,2468.12, 13-Feb-2018
1684,Revenue,CAHD,Bed Purchasing - Southmead Hospital,Permanent Nursing,Holly Villa,2063.48, 13-Feb-2018
1685,Revenue,CAHD,Bed Purchasing - North,Permanent Residential,Holmleigh Care Homes Ltd,4579.12, 13-Feb-2018
1686,Revenue,CAHD,Bed Purchasing - South,Permanent Residential,Holmleigh Care Homes Ltd,4374.12, 13-Feb-2018
1687,Revenue,CAHD,Jointly Funded H&SC Packages,Permanent Residential,Holmleigh Care Homes Ltd,1253.16, 13-Feb-2018
1688,Revenue,CAHD,Home Care - Elderly - South,Supported Living,Home Farm Trust Ltd  5-6 Brook Office Pa,4074.20, 13-Feb-2018
1689,Revenue,CAHD,18-25 Year Olds,Permanent Residential,Home From Home Care Ltd,9740.76, 13-Feb-2018
1690,Revenue,CAHD,Bed Purchasing - North,Permanent Residential,Homes Caring For Autism Ltd  Churchill H,8175.92, 13-Feb-2018
1691,Revenue,CAHD,Jointly Funded H&SC Packages,Permanent Residential,Homes Caring For Autism Ltd  Churchill H,2470.36, 13-Feb-2018
1692,Revenue,CAHD,18-25 Year Olds,Permanent Residential,Homes Caring For Autism Ltd  Churchill H,5765.32, 13-Feb-2018
1693,Revenue,CAHD,Jointly Funded H&SC Packages,Permanent Residential,Homes Caring For Autism Ltd  Churchill H,8039.24, 13-Feb-2018
1694,Revenue,CAHD,Bed Purchasing - South,Permanent Residential,Jonen House,4147.72, 13-Feb-2018
1695,Revenue,CAHD,Bed Purchasing - Elderly S117- North,Permanent Residential,Kahala Court,2800.00, 13-Feb-2018
1696,Revenue,CAHD,Home Care - Elderly - South,Day Care / Social Activities,Kenver House Residential Home,780.00, 13-Feb-2018
1697,Revenue,CAHD,Bed Purchasing - South,Permanent Residential,Kenver House Residential Home,1700.00, 13-Feb-2018
1698,Revenue,CAHD,Bed Purchasing - South,Permanent Residential,Kenver House Residential Home,1100.00, 13-Feb-2018
1699,Revenue,CAHD,Bed Purchasing - South,Permanent Residential,Kenver House Residential Home,1200.00, 13-Feb-2018
1700,Revenue,CAHD,Bed Purchasing - Southmead Hospital,Permanent Residential,Kenver House Residential Home,2248.96, 13-Feb-2018
1701,Revenue,CAHD,Bed Purchasing - South,Permanent Residential,Kenver House Residential Home,2252.04, 13-Feb-2018
1702,Revenue,CAHD,Bed Purchasing - South,Permanent Residential,Kenver House Residential Home,2463.08, 13-Feb-2018
1703,Revenue,CAHD,Bed purchasing - Elderly S117 - South,Permanent Residential,Kenver House Residential Home,2463.08, 13-Feb-2018
1704,Revenue,CAHD,Bed Purchasing - South,Permanent Residential,Kenver House Residential Home,2613.56, 13-Feb-2018
1705,Revenue,CAHD,Bed Purchasing - South,Permanent Residential,Kenver House Residential Home,2463.08, 13-Feb-2018
1706,Revenue,CAHD,Bed Purchasing - North,Permanent Residential,Kenver House Residential Home,2880.00, 13-Feb-2018
1707,Revenue,CAHD,Bed Purchasing - South,Permanent Residential,Kenver House Residential Home,2463.08, 13-Feb-2018
1708,Revenue,CAHD,Home Care - Elderly - South,Day Care / Social Activities,Kenver House Residential Home,520.00, 13-Feb-2018
1709,Revenue,CAHD,Bed Purchasing - Southmead Hospital,Permanent Residential,Kenver House Residential Home,2580.00, 13-Feb-2018
1710,Revenue,CAHD,Bed Purchasing - Southmead Hospital,Permanent Residential,Kenver House Residential Home,2580.00, 13-Feb-2018
1711,Revenue,CAHD,Bed Purchasing - South,Permanent Residential,Kenver House Residential Home,2248.96, 13-Feb-2018
1712,Revenue,CAHD,South Glos Users in South Glos Homes,Permanent Nursing,Keyers Bridge House,620.20, 13-Feb-2018
1713,Revenue,CAHD,Bed Purchasing - Southmead Hospital,Permanent Nursing,Keyers Bridge House,2620.36, 13-Feb-2018
1714,Revenue,CAHD,South Glos Users in South Glos Homes,Permanent Nursing,Keyers Bridge House,620.20, 13-Feb-2018
1715,Revenue,CAHD,South Glos Users in South Glos Homes,Permanent Nursing,Keyers Bridge House,620.20, 13-Feb-2018
1716,Revenue,CAHD,Bed Purchasing - North,Permanent Nursing,Keyers Bridge House,2424.92, 13-Feb-2018
1717,Revenue,CAHD,South Glos Users in South Glos Homes,Permanent Nursing,Keyers Bridge House,620.20, 13-Feb-2018
1718,Revenue,CAHD,South Glos Users in South Glos Homes,Permanent Nursing,Keyers Bridge House,620.20, 13-Feb-2018
1719,Revenue,CAHD,South Glos Users in South Glos Homes,Permanent Nursing,Keyers Bridge House,620.20, 13-Feb-2018
1720,Revenue,CAHD,South Glos Users in South Glos Homes,Permanent Nursing,Keyers Bridge House,620.20, 13-Feb-2018
1721,Revenue,CAHD,South Glos Users in South Glos Homes,Permanent Nursing,Keyers Bridge House,620.20, 13-Feb-2018
1722,Revenue,CAHD,South Glos Users in South Glos Homes,Permanent Nursing,Keyers Bridge House,775.25, 13-Feb-2018
1723,Revenue,CAHD,South Glos Users in South Glos Homes,Permanent Nursing,Keyers Bridge House,620.20, 13-Feb-2018
1724,Revenue,CAHD,South Glos Users in South Glos Homes,Permanent Nursing,Keyers Bridge House,620.20, 13-Feb-2018
1725,Revenue,CAHD,South Glos Users in South Glos Homes,Permanent Nursing,Keyers Bridge House,620.20, 13-Feb-2018
1726,Revenue,CAHD,Bed Purchasing - Southmead Hospital,Respite Planned - Nursing,Keyers Bridge House,3039.80, 13-Feb-2018
1727,Revenue,CAHD,South Glos Users in South Glos Homes,Permanent Nursing,Keyers Bridge House,620.20, 13-Feb-2018
1728,Revenue,CAHD,South Glos Users in South Glos Homes,Permanent Nursing,Keyers Bridge House,620.20, 13-Feb-2018
1729,Revenue,CAHD,South Glos Users in South Glos Homes,Permanent Nursing,Keyers Bridge House,620.20, 13-Feb-2018
1730,Revenue,CAHD,Bed Purchasing - Southmead Hospital,Permanent Nursing,Keyers Bridge House,2047.76, 13-Feb-2018
1731,Revenue,CAHD,South Glos Users in South Glos Homes,Permanent Nursing,Keyers Bridge House,620.20, 13-Feb-2018
1732,Revenue,CAHD,South Glos Users in South Glos Homes,Permanent Nursing,Keyers Bridge House,620.20, 13-Feb-2018
1733,Revenue,CAHD,Bed Purchasing - North,Permanent Residential,Kilkhampton Lodge,17727.52, 13-Feb-2018
1734,Revenue,CAHD,Bed Purchasing - North,Fees & Charges Income - General,Kingfisher Lodge Care Centre,1482.00, 13-Feb-2018
1735,Revenue,CAHD,Bed Purchasing - Southmead Hospital,Permanent Nursing,Kingfisher Lodge Care Centre,3600.00, 13-Feb-2018
1736,Revenue,CAHD,Bed Purchasing - South,Permanent Nursing,Kingfisher Lodge Care Centre,12430.88, 13-Feb-2018
1737,Revenue,CAHD,Bed Purchasing - South,Permanent Nursing,Kingfisher Lodge Care Centre,4579.80, 13-Feb-2018
1738,Revenue,CAHD,Bed Purchasing - South,Fees & Charges Income - General,Kingfisher Lodge Care Centre,710.66, 13-Feb-2018
1739,Revenue,CAHD,Bed Purchasing - South,Fees & Charges Income - General,Kingfisher Lodge Care Centre,1350.55, 13-Feb-2018
1740,Revenue,CAHD,Bed purchasing - Elderly S117 - South,Permanent Nursing,Kingfisher Lodge Care Centre,4579.80, 13-Feb-2018
1741,Revenue,CAHD,Bed Purchasing - North,Permanent Residential,Kisimul Group,12236.52, 13-Feb-2018
1742,Revenue,CAHD,Home Care - Elderly - North,Other Small Contracts,KPW Newkey Ltd,650.08, 13-Feb-2018
1743,Revenue,CAHD,Bed Purchasing - North,Permanent Nursing,Larchfield Care Home,3068.36, 13-Feb-2018
1744,Revenue,CAHD,Bed Purchasing - North,Permanent Residential,Leonard Cheshire  National Account Centr,3517.16, 13-Feb-2018
1745,Revenue,CAHD,Bed Purchasing - South,Permanent Residential,Leonard Cheshire  National Account Centr,3889.64, 13-Feb-2018
1746,Revenue,CAHD,Bed Purchasing - North,Permanent Nursing,Leonard Cheshire  National Account Centr,4082.72, 13-Feb-2018
1747,Revenue,CAHD,Bed Purchasing - North,Permanent Nursing,Leonard Cheshire  National Account Centr,3361.60, 13-Feb-2018
1748,Revenue,CAHD,18-25 Year Olds,Permanent Residential,Leonard Cheshire  National Account Centr,3820.84, 13-Feb-2018
1749,Revenue,CAHD,Bed Purchasing - North,Permanent Residential,Leonard Cheshire  National Account Centr,6516.64, 13-Feb-2018
1750,Revenue,CAHD,Bed Purchasing - North,Permanent Nursing,Leonard Cheshire  National Account Centr,5246.76, 13-Feb-2018
1751,Revenue,CAHD,Bed Purchasing - North,Permanent Nursing,Leonard Cheshire  National Account Centr,3402.80, 13-Feb-2018
1752,Revenue,CAHD,Bed Purchasing - North,Permanent Nursing,Leonard Cheshire  National Account Centr,5131.24, 13-Feb-2018
1753,Revenue,CAHD,Bed Purchasing - North,Permanent Residential,Leonard Cheshire  National Account Centr,3457.60, 13-Feb-2018
1754,Revenue,CAHD,Bed Purchasing - North,Permanent Nursing,Leonard Cheshire  National Account Centr,3302.88, 13-Feb-2018
1755,Revenue,CAHD,Bed Purchasing - North,Permanent Nursing,Leonard Cheshire  National Account Centr,5866.96, 13-Feb-2018
1756,Revenue,CAHD,Bed Purchasing - South,Permanent Nursing,Leonard Cheshire  National Account Centr,6169.60, 13-Feb-2018
1757,Revenue,CAHD,Bed Purchasing - Southmead Hospital,Permanent Nursing,Leonard Cheshire  National Account Centr,3572.28, 13-Feb-2018
1758,Revenue,CAHD,Bed Purchasing - North,Permanent Nursing,Leonard Cheshire  National Account Centr,3910.52, 13-Feb-2018
1759,Revenue,CAHD,18-25 Year Olds,Permanent Residential,Linden House,9647.20, 13-Feb-2018
1760,Revenue,CAHD,Bed Purchasing - North,Permanent Residential,Linden House,8211.64, 13-Feb-2018
1761,Revenue,CAHD,Bed Purchasing - South,Permanent Residential,Linden House,48505.16, 13-Feb-2018
1762,Revenue,CAHD,Bed Purchasing - South,Permanent Residential,Linden House,8435.68, 13-Feb-2018
1763,Revenue,CAHD,Bed Purchasing - South,Fees & Charges Income - General,Linden House,6202.64, 13-Feb-2018
1764,Revenue,CAHD,Bed purchasing -S28A  Under 65 - North,Permanent Residential,Linden House,12145.16, 13-Feb-2018
1765,Revenue,CAHD,Bed Purchasing - South,Permanent Residential,Little Croft,2053.56, 13-Feb-2018
1766,Revenue,CAHD,Bed Purchasing - Southmead Hospital,Permanent Residential,Little Croft,3200.00, 13-Feb-2018
1767,Revenue,CAHD,Bed Purchasing - Southmead Hospital,Permanent Residential,Little Croft,2971.42, 13-Feb-2018
1768,Revenue,CAHD,Bed Purchasing - North,Permanent Residential,Little Croft,1886.24, 13-Feb-2018
1769,Revenue,CAHD,Bed Purchasing - Southmead Hospital,Permanent Residential,Little Croft,2258.92, 13-Feb-2018
1770,Revenue,CAHD,Bed Purchasing - South,Permanent Residential,Little Croft,3000.00, 13-Feb-2018
1771,Revenue,CAHD,Bed Purchasing - South,Permanent Residential,Little Croft,2329.92, 13-Feb-2018
1772,Revenue,CAHD,Bed Purchasing - Southmead Hospital,Permanent Residential,Little Croft,3000.00, 13-Feb-2018
1773,Revenue,CAHD,Bed Purchasing - Southmead Hospital,Permanent Residential,Little Croft,2735.12, 13-Feb-2018
1774,Revenue,CAHD,Bed Purchasing - South,Permanent Residential,Little Croft,1886.24, 13-Feb-2018
1775,Revenue,CAHD,Bed Purchasing - Southmead Hospital,Permanent Residential,Little Croft,2735.12, 13-Feb-2018
1776,Revenue,CAHD,Bed Purchasing - Southmead Hospital,Permanent Residential,Little Croft,2373.64, 13-Feb-2018
1777,Revenue,CAHD,Bed Purchasing - Southmead Hospital,Permanent Residential,Little Croft,1867.92, 13-Feb-2018
1778,Revenue,CAHD,Bed Purchasing - Southmead Hospital,Permanent Residential,Little Croft,2048.96, 13-Feb-2018
1779,Revenue,CAHD,Bed Purchasing - Southmead Hospital,Permanent Residential,Little Croft,2532.52, 13-Feb-2018
1780,Revenue,CAHD,Bed Purchasing - Southmead Hospital,Permanent Residential,Little Croft,2735.12, 13-Feb-2018
1781,Revenue,CAHD,Bed Purchasing - Southmead Hospital,Permanent Residential,Little Croft,1886.24, 13-Feb-2018
1782,Revenue,CAHD,Bed Purchasing - South,Permanent Residential,Little Croft,2329.92, 13-Feb-2018
1783,Revenue,CAHD,Bed Purchasing - South,Permanent Residential,Little Croft,3000.00, 13-Feb-2018
1784,Revenue,CAHD,Bed Purchasing - Southmead Hospital,Permanent Residential,Little Croft,2735.12, 13-Feb-2018
1785,Revenue,CAHD,Bed Purchasing - Southmead Hospital,Respite Planned - Residential,Little Croft,3200.00, 13-Feb-2018
1786,Revenue,CAHD,Bed Purchasing - South,Permanent Residential,Little Croft,2070.72, 13-Feb-2018
1787,Revenue,CAHD,Bed Purchasing - South,Permanent Residential,Little Croft,15910.00, 13-Feb-2018
1788,Revenue,CAHD,Bed Purchasing - South,Fees & Charges Income - General,Little Croft,6830.84, 13-Feb-2018
1789,Revenue,CAHD,Bed Purchasing - South,Fees & Charges Income - General,Little Croft,3743.79, 13-Feb-2018
1790,Revenue,CAHD,Bed Purchasing - Southmead Hospital,Permanent Residential,Little Croft,1886.24, 13-Feb-2018
1791,Revenue,CAHD,Bed Purchasing - Southmead Hospital,Permanent Residential,Little Croft,1886.24, 13-Feb-2018
1792,Revenue,CAHD,Bed Purchasing - South,Permanent Residential,Little Croft,2228.60, 13-Feb-2018
1793,Revenue,CAHD,Bed Purchasing - North,Permanent Residential,Littlecroft Residential Homes  Longcroft,7058.16, 13-Feb-2018
1794,Revenue,CAHD,Bed Purchasing - North,Permanent Nursing,Lodge House,3992.00, 13-Feb-2018
1795,Revenue,CAHD,Bed Purchasing - North,Permanent Nursing,Lodge House,1853.43, 13-Feb-2018
1796,Revenue,CAHD,South Glos Users in South Glos Homes,Permanent Nursing,Lodge House,620.20, 13-Feb-2018
1797,Revenue,CAHD,Bed Purchasing - South,Permanent Nursing,Lodge House,2248.72, 13-Feb-2018
1798,Revenue,CAHD,South Glos Users in South Glos Homes,Permanent Nursing,Lodge House,620.20, 13-Feb-2018
1799,Revenue,CAHD,Bed Purchasing - South,Permanent Nursing,Lodge House,3239.80, 13-Feb-2018
1800,Revenue,CAHD,South Glos Users in South Glos Homes,Permanent Nursing,Lodge House,620.20, 13-Feb-2018
1801,Revenue,CAHD,South Glos Users in South Glos Homes,Permanent Nursing,Lodge House,620.20, 13-Feb-2018
1802,Revenue,CAHD,South Glos Users in South Glos Homes,Permanent Nursing,Lodge House,620.20, 13-Feb-2018
1803,Revenue,CAHD,Bed Purchasing - South,Permanent Nursing,Lodge House,2744.68, 13-Feb-2018
1804,Revenue,CAHD,South Glos Users in South Glos Homes,Permanent Nursing,Lodge House,620.20, 13-Feb-2018
1805,Revenue,CAHD,Bed Purchasing - Southmead Hospital,Permanent Nursing,Lodge House,3239.80, 13-Feb-2018
1806,Revenue,CAHD,South Glos Users in South Glos Homes,Permanent Nursing,Lodge House,1329.00, 13-Feb-2018
1807,Revenue,CAHD,South Glos Users in South Glos Homes,Permanent Nursing,Lodge House,620.20, 13-Feb-2018
1808,Revenue,CAHD,South Glos Users in South Glos Homes,Permanent Nursing,Lodge House,620.20, 13-Feb-2018
1809,Revenue,CAHD,Bed Purchasing - Southmead Hospital,Permanent Nursing,Lodge House,3367.00, 13-Feb-2018
1810,Revenue,CAHD,South Glos Users in South Glos Homes,Permanent Nursing,Lodge House,620.20, 13-Feb-2018
1811,Revenue,CAHD,Bed Purchasing - South,Permanent Nursing,Lodge House,3109.92, 13-Feb-2018
1812,Revenue,CAHD,South Glos Users in South Glos Homes,Permanent Nursing,Lodge House,620.20, 13-Feb-2018
1813,Revenue,CAHD,Bed Purchasing - South,Permanent Nursing,Lodge House,3992.00, 13-Feb-2018
1814,Revenue,CAHD,South Glos Users in South Glos Homes,Permanent Nursing,Lodge House,620.20, 13-Feb-2018
1815,Revenue,CAHD,South Glos Users in South Glos Homes,Permanent Nursing,Lodge House,620.20, 13-Feb-2018
1816,Revenue,CAHD,South Glos Users in South Glos Homes,Permanent Nursing,Lodge House,620.20, 13-Feb-2018
1817,Revenue,CAHD,South Glos Users in South Glos Homes,Permanent Nursing,Lodge House,620.20, 13-Feb-2018
1818,Revenue,CAHD,Bed Purchasing - Southmead Hospital,Permanent Nursing,Lodge House,3109.92, 13-Feb-2018
1819,Revenue,CAHD,South Glos Users in South Glos Homes,Permanent Nursing,Lodge House,620.20, 13-Feb-2018
1820,Revenue,CAHD,South Glos Users in South Glos Homes,Permanent Nursing,Lodge House,620.20, 13-Feb-2018
1821,Revenue,CAHD,Bed Purchasing - Southmead Hospital,Permanent Nursing,Lodge House,3239.80, 13-Feb-2018
1822,Revenue,CAHD,South Glos Users in South Glos Homes,Permanent Nursing,Lodge House,620.20, 13-Feb-2018
1823,Revenue,CAHD,Bed Purchasing - North,Permanent Nursing,Lodge House,2987.84, 13-Feb-2018
1824,Revenue,CAHD,South Glos Users in South Glos Homes,Permanent Nursing,Lodge House,620.20, 13-Feb-2018
1825,Revenue,CAHD,Bed Purchasing - South,Permanent Nursing,Lodge House,3277.04, 13-Feb-2018
1826,Revenue,CAHD,South Glos Users in South Glos Homes,Permanent Nursing,Lodge House,620.20, 13-Feb-2018
1827,Revenue,CAHD,South Glos Users in South Glos Homes,Permanent Nursing,Lodge House,620.20, 13-Feb-2018
1828,Revenue,CAHD,Bed Purchasing - South,Permanent Nursing,Lodge House,3991.80, 13-Feb-2018
1829,Revenue,CAHD,South Glos Users in South Glos Homes,Permanent Nursing,Lodge House,620.20, 13-Feb-2018
1830,Revenue,CAHD,South Glos Users in South Glos Homes,Permanent Nursing,Lodge House,620.20, 13-Feb-2018
1831,Revenue,CAHD,Bed Purchasing - South,Permanent Nursing,Lodge House,3239.80, 13-Feb-2018
1832,Revenue,CAHD,South Glos Users in South Glos Homes,Permanent Nursing,Lodge House,620.20, 13-Feb-2018
1833,Revenue,CAHD,South Glos Users in South Glos Homes,Permanent Nursing,Lodge House,620.20, 13-Feb-2018
1834,Revenue,CAHD,South Glos Users in South Glos Homes,Permanent Nursing,Lodge House,620.20, 13-Feb-2018
